Workbook

Sheet TitlePage
A1: Title page
C6: Habitat - Aquatic Application :Imazapyr
E17: WorksheetMaker Version | F17: 6.00.07
A51: 2011-12-16

Sheet Disclaimer
A1: DISCLAIMER

Sheet General Notes
A1: General Notes
B2: Prepared by: | C2: Patrick R Durkin
B3: Program Version: | C3: 6.00.07
B4: Database Used: | C4: FS WsMkr V06-00-01.mdb
B5: Template Workbook: | C5: FS WsMkr V06-00-01.mdb
B6: Base Workbook: | C6: FS WSMkr Blank V06-00-01.xlsm
A8: Color Codes in WorksheetMaker
A13: Color Codes used in Workbook for Front Matter, Data and Calculation Worksheets
B14: Green shading | C14: This is a default value or a user specified a value. You can change these values as you see fit but you should have a reason for doing so.
B15: Yellow shading | C15: This is a source for a link in other parts of the workbook. If you have good reason to change the value, you should note the change (with your reason) in the “Revisions” page.
B16: Blue shading | C16: This cell is linked to another cell in the workbook. Do not change this value. If you change any of these values, the workbook may not update correctly.
B17: Blue shading blue border | C17: This cell is linked to a Program parameter in Worksheet A01. Do not change this value. If you want the value to change, go to Worksheet A01 and change the value in that worksheet.
B18: Purple Shading | C18: Indicates (for information only) that the typical of order of Lower and Upper values is intentionally reversed. This is only used in the second (label) column.
B19: Italics, no shading | C19: The value in this cell is generated by a formula (the number that you see is the result of an equation). This cell is linked only to other cells in the worksheet. Do not change this value.
A25: Color Codes used in Workbook for Risk Characterization Worksheets
B26: HQ ≥ 2 | C26: For hazard quotient greater than 2, the number is in bold font with a red background and rounded to the nearest integer.
B27: HQ > 1 but < 2 | C27: For hazard quotient greater than 1 but less than two, the number is in bold font with a white background and rounded to one significant place after the decimal.
B28: HQ ≥ 0.1 but <1 | C28: For hazard quotient greater than 0.1 but less than one, the number is in regular font with a white background and rounded to one significant place after the decimal.
B29: HQ < 0.1 | C29: For hazard quotient less than 0.1, the number is in regular font with a white background. The number is expressed in scientific notation and rounded to one significant place -- e.g., 2E-02 rather than 0.02.
B55: Prepared by: | C55: Patrick R Durkin
B56: Program Version: | C56: 6.00.07
B57: Database Used: | C57: FS WsMkr V06-00-01.mdb
B58: Template Workbook: | C58: FS WsMkr V06-00-01.mdb
B59: Base Workbook: | C59: FS WSMkr Blank V06-00-01.xlsm

Sheet Chemical Notes
A1: Chemical specific notes
A2: Risk Assessment: | D2: SERA TR-052-29-03a
A3: Report Date: | D3: 2011-12-16
A6: The area below is an embedded MS Word Document. Add chemical-specific notes as appropriate.

Sheet Revisions
A1: Revision Histroy
A8: The area below is an embedded MS Word Document. Add revision notes as appropriate.

Sheet Contents
B1: Table of Contents | C1: Toc
A2: Work-sheet No. | B2: Worksheet Title
A3: TitlePage | B3: Title page
A4: Disclaimer | B4: DISCLAIMER
A5: General Notes | B5: General Notes
A6: Chemical Notes | B6: Chemical specific notes
A7: Revisions | B7: Revision Histroy
A8: Contents
A9: A01 | B9: Program Data: Application rates, application volumns, and concentrations in field solutions
A10: A02a | B10: General reference values and exposure factors used in worksheets.
A11: A02b | B11: General reference values and exposure factors used in worksheets.
A12: A02c | B12: General reference values and exposure factors used in worksheets.
A13: A02d | B13: General reference values and exposure factors used in worksheets.
A14: A03 | B14: Consumption values used in worksheets
A15: B01 | B15: Chemical and Physical Properties for Imazapyr
A16: B02 | B16: Toxicity values for Imazapyr
A17: B03a | B17: Calculation of Zero-Order Dermal Permeability Rate (Kp) in cm/hour
A18: B03b | B18: Calculation of First-Order Dermal Absorption Rate
A19: B04a | B19: Estimates of Peak Concentrations of the Pesticide in Water After Aquatic Applications Expressed in Units of Pound Per Acre of Surface Water
A20: B04b | B20: Pond: Concentration of pesticide (liquid formulation) in pond water after an accidental spill
A21: C01 | B21: Worker exposure estimates and risk characterization for direct applications to water.
A22: C02a | B22: Accidental Dermal Exposure Assessment Using Zero-Order Absorption, Worker, Surface Area, Hands, for 1 minute(s)
A23: C02b | B23: Accidental Dermal Exposure Assessment Using Zero-Order Absorption, Worker, Surface Area, Hands, for 60 minute(s)
A24: C03a | B24: Accidental Dermal Exposure Assessment Using First-Order Absorption, Worker, Surface Area, Hands, for 60 minute(s)
A25: C03b | B25: Accidental Dermal Exposure Assessment Using First-Order Absorption, Worker, Surface Area, Lower legs, for 60 minute(s)
A26: D05 | B26: Consumption of contaminated water by Child, Accidental Spill
A27: D06 | B27: Consumption of contaminated water by Child, Peak Conentrations
A28: D07 | B28: Consumption of contaminated water by Adult Male, Longer-term Conentrations
A29: D08a | B29: Consumption of Contaminated Fish (Accidental Spill), Adult Male, acute exposure
A30: D08b | B30: Consumption of Contaminated Fish (Accidental Spill), Subsistence Populations, acute exposure
A31: D09a | B31: Consumption of Contaminated Fish (Longer-term), Adult Male, chronic exposure
A32: D09b | B32: Consumption of Contaminated Fish (Longer-term), Subsistence Populations, chronic exposure
A33: D09c | B33: Consumption of Contaminated Fish (Peak Exposure), Adult Male, acute exposure
A34: D09d | B34: Consumption of Contaminated Fish (Peak Exposure), Subsistence Populations, acute exposure
A35: D11 | B35: Swimming Exposure Assessment Using Zero-Order Absorption, Adult Female, Surface Area, Whole body, for 60 minute(s)
A36: E01 | B36: Worksheet E01: Summary of Worker Exposure Assessments
A37: E02 | B37: Worksheet E01: Summary of Worker Hazard Quotients (Toxicity)
A38: E03 | B38: Worksheet E03: Summary of Exposure Assessments for the General Public
A39: E04 | B39: Worksheet E03: Summary of Hazard Quotients (Toxicity) for the General Public
A40: F02a | B40: Consumption of contaminated water by Mammal, small, Accidental Spill
A41: F02b | B41: Consumption of contaminated water by Mammal, 400 g, Accidental Spill
A42: F02c | B42: Consumption of contaminated water by Mammal, carnivorous, Accidental Spill
A43: F02d | B43: Consumption of contaminated water by Mammal, large, Accidental Spill
A44: F02e | B44: Consumption of contaminated water by Bird, small, Accidental Spill
A45: F02f | B45: Consumption of contaminated water by Bird, large, Accidental Spill
A46: F03a | B46: Acute scenario for the consumption of Contaminated Fish ( Accidental Spill) by Mammal, large carnivorous
A47: F03b | B47: Acute scenario for the consumption of Contaminated Fish ( Accidental Spill) by Mammal, carnivorous
A48: F03c | B48: Acute scenario for the consumption of Contaminated Fish ( Accidental Spill) by Bird, piscivorous
A49: F06a | B49: Consumption of contaminated water by Mammal, small, Peak Concentrations
A50: F06b | B50: Consumption of contaminated water by Mammal, 400 g, Peak Concentrations
A51: F06c | B51: Consumption of contaminated water by Mammal, carnivorous, Peak Concentrations
A52: F06d | B52: Consumption of contaminated water by Mammal, large, Peak Concentrations
A53: F06e | B53: Consumption of contaminated water by Bird, small, Peak Concentrations
A54: F06f | B54: Consumption of contaminated water by Bird, large, Peak Concentrations
A55: F09a | B55: Acute scenario for the consumption of Contaminated Fish (Peak) by Mammal, large carnivorous
A56: F09b | B56: Acute scenario for the consumption of Contaminated Fish (Peak) by Mammal, carnivorous
A57: F09c | B57: Acute scenario for the consumption of Contaminated Fish (Peak) by Bird, piscivorous
A58: F12a | B58: Consumption of contaminated water by Mammal, small, Longer-term Concentrations
A59: F12b | B59: Consumption of contaminated water by Mammal, 400 g, Longer-term Concentrations
A60: F12c | B60: Consumption of contaminated water by Mammal, carnivorous, Longer-term Concentrations
A61: F12d | B61: Consumption of contaminated water by Mammal, large, Longer-term Concentrations
A62: F12e | B62: Consumption of contaminated water by Bird, small, Longer-term Concentrations
A63: F12f | B63: Consumption of contaminated water by Bird, large, Longer-term Concentrations
A64: F13a | B64: Chronic scenario for the consumption of Contaminated Fish (Longer-term) by Mammal, large carnivorous
A65: F13b | B65: Chronic scenario for the consumption of Contaminated Fish (Longer-term) by Mammal, carnivorous
A66: F13c | B66: Chronic scenario for the consumption of Contaminated Fish (Longer-term) by Bird, piscivorous
A67: G01 | B67: Summary of Exposure Assessments for the Terrestrial Animals
A68: G02 | B68: Summary of Hazard Quotients (Toxicity) for the Terrestrial Animals
A69: G03 | B69: Worksheet G03: Summary of Hazard Quotients for Aquatic Species
A70: G06a | B70: Potential exposure of non-target plants through the use of contaminated irrigation water based on estimates concentrations in ambient water.
A71: G09 | B71: Exposures and HQs for a Terrestrial Insect (Honeybee) Associated with Direct Spray or Drift Following Terrestrial Applications
A72: References | B72: References cited in workbook

Sheet A01
A1: Program Data: Application rates, application volumns, and concentrations in field solutions
A2: Parameter/Assumption | B2: Code / Range | C2: Equation/ Value | D2: Units | E2: Reference/Equation
A3: Application Information in Terms of Surface Area of Water
A4: Application Rate | B4: ApRt | C4: 1 | D4: lb/acre | E4: Program Input
A5: Application Volume | B5: ApVol
B6: Central | C6: 20 | D6: gal/acre | E6: Program Input
B7: Upper | C7: 100 | E7: Program Input
B8: Lower | C8: 5 | E8: Program Input
A9: Concentration in field solution (lb/gal) | B9: Concppg | C9: ApRt (lb/acre) / ApVol (gal/acre)
B10: Central | C10: =ApRt_C/C6 -> 0.05 | D10: lb/gal | E10: Eq
B11: Lower | C11: =ApRt_C/C7 -> 0.01 | E11: Eq
B12: Upper | C12: =ApRt_C/C8 -> 0.2 | E12: Eq
A13: Conversion Factor for lbs/gal to mg/mL | B13: CnvF | C13: 119.8 | D13: mg/mL/lb/gal
A14: Concentration in field solution (mg/mL) | B14: FldConc | C14: Concppg * CnvF
B15: Central | C15: =IF(C6>0, DigitRound( C10*C$13, C$18), "NA") -> 6 | D15: mg/mL | E15: Eq
B16: Lower | C16: =IF(C7>0, DigitRound( C11*C$13, C$18), "NA") -> 1.2 | E16: Eq
B17: Upper | C17: =IF(C8>0, DigitRound( C12*C$13, C$18), "NA") -> 24 | E17: Eq
A18: Number of significant figures in mg/L concentration. | B18: NSig | C18: 2
A21: Information on Water Body
A22: Surface Area to be Treated | B22: SurfA | C22: 10 | D22: acres
A23: Depth of Water in feet | B23: WBDft
B24: Central | C24: 3 | D24: feet
B25: Lower | C25: 1
B26: Upper | C26: 10
A27: Standard Values/Options for Scenarios
A28: Surface area of pond for spill | B28: PondSA_M | C28: 1000 | D28: Sq. Meters | E28: Risk assessment.
A29: Pond depth | B29: PondDepthM | C29: 1 | D29: Meters | E29: Risk assessment.
A30: Duration for longer-term exposures | B30: SubChDays | C30: 90 | D30: Days | E30: Risk assessment.
A31: Duration for swimming scenarios | B31: SwimMin | C31: 60 | D31: Minutes | E31: Risk assessment.
A32: Protection factor for workers based on PPE. | B32: WrkProtectFact
B33: Central | C33: 0 | E33: Risk assessment.
B34: Lower | C34: 0
B35: Upper | C35: 0
A36: Toxic Equivalency Factor for formulation | B36: TEF
B37: Central | C37: 1 | E37: Risk assessment.
B38: Lower | C38: 1
B39: Upper | C39: 1
A40: Used in food commody worksheets | B40: DriftToFood
B41: Central | C41: 1 | E41: Risk assessment.
B42: Lower | C42: 1
B43: Upper | C43: 1
A44: Amount spilled into ponds | B44: PondSpillVolGal
B45: Central | C45: 100 | D45: Gal | E45: Risk assessment.
B46: Lower | C46: 20
B47: Upper | C47: 200
A48: Worker Exposure Rate | B48: WrkExpRate
B49: Central | C49: 0.0009 | D49: Mg/kg bw per lb | E49: Risk assessment.
B50: Lower | C50: 0.0004
B51: Upper | C51: 0.002
A52: Field half-life in water body (aquatic apps in lb/acre) | B52: WatBodTD50
B53: Central | C53: 65 | D53: per day | E53: Risk assessment.
B54: Lower | C54: 25
B55: Upper | C55: 180

Sheet A02a
A1: General reference values and exposure factors used in worksheets.
A3: Receptor | B3: Factor | C3: Value | D3: Units | E3: Reference | F3: Reference Note
A4: Adult Female | B4: Body weight | C4: 64 | D4: kg | E4: U.S. EPA/ORD 1985 | F4: page 5, Table 2-2
A5: Adult Female | B5: Surface Area, Feet and lower Legs | C5: 2915 | D5: cm2 | E5: U.S. EPA/ORD 1992 | F5: p. 8-11, Table 8-3, total for feet and lower legs
A6: Adult Female | B6: Surface Area, Wearing shorts and T-shirt | C6: 5300 | D6: cm2 | E6: U.S. EPA/ORD 1992 | F6: p. 8-11, Table 8-3, total for arms, hands, lower legs, and feet.
A7: Adult Female | B7: Surface Area, Whole body | C7: 16900 | D7: cm2 | E7: U.S. EPA/ORD 1997 | F7: p. 6-13, Table 6-3, whole body, 50th percentile
A8: Adult Male | B8: Body weight | C8: 70 | D8: kg | E8: ICRP 1975 | F8: p. 13.
A9: Subsistence Populations | B9: Body weight | C9: 70 | D9: kg | E9: ICRP 1975 | F9: p. 13
A10: Worker, Aerial Spray | B10: Absorbed dose rate, central estimate | C10: 3e-05 | D10: (mg/kg bw)/(lbs handled per day) | E10: SERA 2007 | F10: Acres treated per hour
A11: Worker, Aerial Spray | B11: Absorbed dose rate, lower range | C11: 1e-06 | D11: (mg/kg bw)/(lbs handled per day) | E11: SERA 2007 | F11: Acres treated per hour
A12: Worker, Aerial Spray | B12: Absorbed dose rate, upper range | C12: 0.0001 | D12: (mg/kg bw)/(lbs handled per day) | E12: SERA 2007 | F12: Acres treated per hour
A13: Worker, Aerial Spray | B13: Hours of application per day, central estimate | C13: 7 | D13: Hours per day | E13: USDA 1989a | F13: N/A
A14: Worker, Aerial Spray | B14: Hours of application per day, lower range | C14: 6 | D14: Hours per day | E14: USDA 1989a | F14: N/A
A15: Worker, Aerial Spray | B15: Hours of application per day, upper range | C15: 8 | D15: Hours per day | E15: USDA 1989a | F15: N/A
A16: Worker, Aerial Spray | B16: Acres treated per hour, central estimate | C16: 70 | D16: acres/hour | E16: USDA 1989a | F16: Acres treated per hour
A17: Worker, Aerial Spray | B17: Acres treated per hour, lower range | C17: 40 | D17: acres/hour | E17: USDA 1989a | F17: Acres treated per hour
A18: Worker, Aerial Spray | B18: Acres treated per hour, upper range | C18: 100 | D18: acres/hour | E18: USDA 1989a | F18: Acres treated per hour
A19: Worker, Backpack | B19: Absorbed dose rate, central estimate | C19: 0.003 | D19: (mg/kg bw)/(lbs handled per day) | E19: SERA 2007 | F19: Acres treated per hour
A20: Worker, Backpack | B20: Absorbed dose rate, lower range | C20: 0.0003 | D20: (mg/kg bw)/(lbs handled per day) | E20: SERA 2007 | F20: Acres treated per hour
A21: Worker, Backpack | B21: Absorbed dose rate, upper range | C21: 0.01 | D21: (mg/kg bw)/(lbs handled per day) | E21: SERA 2007 | F21: Acres treated per hour
A22: Worker, Backpack | B22: Hours of application per day, central estimate | C22: 7 | D22: Hours per day | E22: USDA 1989a | F22: N/A
A23: Worker, Backpack | B23: Hours of application per day, lower range | C23: 6 | D23: Hours per day | E23: USDA 1989a | F23: N/A
A24: Worker, Backpack | B24: Hours of application per day, upper range | C24: 8 | D24: Hours per day | E24: USDA 1989a | F24: N/A
A25: Worker, Backpack | B25: Acres treated per hour, central estimate | C25: 0.625 | D25: acres/hour | E25: USDA 1989a | F25: Acres treated per hour
A26: Worker, Backpack | B26: Acres treated per hour, lower range | C26: 0.25 | D26: acres/hour | E26: USDA 1989a | F26: Acres treated per hour
A27: Worker, Backpack | B27: Acres treated per hour, upper range | C27: 1 | D27: acres/hour | E27: USDA 1989a | F27: Acres treated per hour
A28: Child | B28: Body weight | C28: 13.3 | D28: kg | E28: U.S. EPA/ORD 1996 | F28: p. 7-1, Table 7-2
A29: Child | B29: Surface Area, Whole body | C29: 6030 | D29: cm2 | E29: U.S. EPA/ORD 1996 | F29: p. 6-15, Table 6-6, 50th percentile.
A30: Worker, Ground Spray | B30: Absorbed dose rate, central estimate | C30: 0.0002 | D30: (mg/kg bw)/(lbs handled per day) | E30: SERA 2007 | F30: Acres treated per hour
A31: Worker, Ground Spray | B31: Absorbed dose rate, lower range | C31: 1e-05 | D31: (mg/kg bw)/(lbs handled per day) | E31: SERA 2007 | F31: Acres treated per hour
A32: Worker, Ground Spray | B32: Absorbed dose rate, upper range | C32: 0.0009 | D32: (mg/kg bw)/(lbs handled per day) | E32: SERA 2007 | F32: Acres treated per hour
A33: Worker, Ground Spray | B33: Hours of application per day, central estimate | C33: 7 | D33: Hours per day | E33: USDA 1989a | F33: N/A
A34: Worker, Ground Spray | B34: Hours of application per day, lower range | C34: 6 | D34: Hours per day | E34: USDA 1989a | F34: N/A
A35: Worker, Ground Spray | B35: Hours of application per day, upper range | C35: 8 | D35: Hours per day | E35: USDA 1989a | F35: N/A
A36: Worker, Ground Spray | B36: Acres treated per hour, central estimate | C36: 16 | D36: acres/hour | E36: USDA 1989a | F36: Acres treated per hour
A37: Worker, Ground Spray | B37: Acres treated per hour, lower range | C37: 11 | D37: acres/hour | E37: USDA 1989a | F37: Acres treated per hour
A38: Worker, Ground Spray | B38: Acres treated per hour, upper range | C38: 21 | D38: acres/hour | E38: USDA 1989a | F38: Acres treated per hour
A39: Worker | B39: Body weight | C39: 70 | D39: kg | E39: ICRP 1975 | F39: p. 13
A40: Worker | B40: Surface Area, Hands | C40: 840 | D40: cm2 | E40: U.S. EPA/ORD 1992 | F40: p. 8-11
A41: Worker | B41: Surface Area, Lower legs | C41: 2070 | D41: cm2 | E41: U.S. EPA/ORD 1992 | F41: p. 8-11

Sheet A02b
A1: General reference values and exposure factors used in worksheets.
A3: Receptor | B3: Factor | C3: Value | D3: Units | E3: Reference | F3: Reference Note
A4: Amphibian | B4: Kilocalories, alpha parameter for allometric equation | C4: 0.054 | D4: BW(g),Kcal (kcal/day) | E4: U.S. EPA/ORD 1993 | F4: p. 3-7, equation 3-14
A5: Amphibian | B5: Kilocalories, beta parameter for allometric equation | C5: 0.799 | D5: BW(g),Kcal (kcal/day) | E5: U.S. EPA/ORD 1993 | F5: p. 3-7, equation 3-14
A6: Amphibian, bull frog | B6: Food consumption, alpha parameter for allometric equation | C6: 1.09 | D6: BW(g),FC(g) | E6: SERA 2010 | F6: Figure 15
A7: Amphibian, bull frog | B7: Food consumption, beta parameter for allometric equation | C7: 0.1723 | D7: BW(g),FC(g) | E7: SERA 2010 | F7: Figure 15
A8: Bird, NOS | B8: Food consumption, alpha parameter for allometric equation | C8: 0.648 | D8: BW(g),FC(g) | E8: U.S. EPA/ORD 1993 | F8: Eq. 3-3, p. 3-4, all birds
A9: Bird, NOS | B9: Food consumption, beta parameter for allometric equation | C9: 0.651 | D9: BW(g),FC(g) | E9: U.S. EPA/ORD 1993 | F9: Eq. 3-3, p. 3-4, all birds
A10: Bird, carnivorous | B10: Body weight | C10: 0.64 | D10: kg | E10: Dunning 1993 | F10: p. 97. Female Spotted Owl (Strix occidentalis). Range of 548 to 760 g.
A11: Bird, carnivorous | B11: Kilocalories, alpha parameter for allometric equation | C11: 1.146 | D11: BW(g),KCal(kcal/day) | E11: U.S. EPA/ORD 1993 | F11: Eq. 3-37, nonpasserines
A12: Bird, carnivorous | B12: Kilocalories, beta parameter for allometric equation | C12: 0.749 | D12: BW(g),KCal(kcal/day) | E12: U.S. EPA/ORD 1993 | F12: Eq. 3-37, nonpasserines
A13: Bird, carnivorous | B13: Water consumption, alpha parameter for allometric equation | C13: 0.059 | D13: BW(kg), WC(L) | E13: U.S. EPA/ORD 1993 | F13: Eq. 3-15, p. 3-8
A14: Bird, carnivorous | B14: Water consumption, beta parameter for allometric equation | C14: 0.67 | D14: BW(kg), WC(L) | E14: U.S. EPA/ORD 1993 | F14: Eq. 3-15, p. 3-8
A15: Bird, large | B15: Body weight | C15: 4 | D15: kg | E15: Default | F15: Canada goose
A16: Bird, large | B16: Kilocalories, alpha parameter for allometric equation | C16: 1.146 | D16: BW(g),KCal(kcal/day) | E16: U.S. EPA/ORD 1993 | F16: Eq. 3-37, non-passerines
A17: Bird, large | B17: Kilocalories, beta parameter for allometric equation | C17: 0.749 | D17: BW(g),KCal(kcal/day) | E17: U.S. EPA/ORD 1993 | F17: Eq. 3-37, non-passerines
A18: Bird, large | B18: Water consumption, alpha parameter for allometric equation | C18: 0.059 | D18: BW(kg), WC(L) | E18: U.S. EPA/ORD 1993 | F18: Eq. 3-15, p. 3-8
A19: Bird, large | B19: Water consumption, beta parameter for allometric equation | C19: 0.67 | D19: BW(kg), WC(L) | E19: U.S. EPA/ORD 1993 | F19: Eq. 3-15, p. 3-8
A20: Bird, non-Passerine | B20: Food consumption, alpha parameter for allometric equation | C20: 0.301 | D20: BW(g),FC(g) | E20: U.S. EPA/ORD 1993 | F20: Eq. 3-5, p. 3-5, non-passerines
A21: Bird, non-Passerine | B21: Food consumption, beta parameter for allometric equation | C21: 0.751 | D21: BW(g),FC(g) | E21: U.S. EPA/ORD 1993 | F21: Eq. 3-5, p. 3-5, non-passerines
A22: Bird, Passerine | B22: Food consumption, alpha parameter for allometric equation | C22: 0.398 | D22: BW(g),FC(g) | E22: U.S. EPA/ORD 1993 | F22: Eq. 3-4, p. 3-4, passerines
A23: Bird, Passerine | B23: Food consumption, beta parameter for allometric equation | C23: 0.85 | D23: BW(g),FC(g) | E23: U.S. EPA/ORD 1993 | F23: Eq. 3-4, p. 3-4, passerines
A24: Bird, piscivorous | B24: Body weight | C24: 2.4 | D24: kg | E24: Sibley 2000 | F24: p. 60. Great Blue Heron
A25: Bird, piscivorous | B25: Food consumption, alpha parameter for allometric equation | C25: 0.495 | D25: BW(g), FC(g) | E25: U.S. EPA/ORD 1993 | F25: Eq. 3-6, p. 3-5, seabird
A26: Bird, piscivorous | B26: Food consumption, beta parameter for allometric equation | C26: 0.704 | D26: BW(g), FC(g) | E26: U.S. EPA/ORD 1993 | F26: Eq. 3-6, p. 3-5, seabird
A27: Bird, piscivorous | B27: Kilocalories, alpha parameter for allometric equation | C27: 1.916 | D27: BW(g),KCal(kcal/day) | E27: U.S. EPA/ORD 1993 | F27: Eq. 3-38, p. 3-23, seabird
A28: Bird, piscivorous | B28: Kilocalories, beta parameter for allometric equation | C28: 0.704 | D28: BW(g),KCal(kcal/day) | E28: U.S. EPA/ORD 1993 | F28: Eq. 3-38, p. 3-23, seabird
A29: Bird, piscivorous | B29: Water consumption, alpha parameter for allometric equation | C29: 0.059 | D29: BW(kg), WC(L) | E29: U.S. EPA/ORD 1993 | F29: Eq. 3-15, p. 3-8
A30: Bird, piscivorous | B30: Water consumption, beta parameter for allometric equation | C30: 0.67 | D30: BW(kg), WC(L) | E30: U.S. EPA/ORD 1993 | F30: Eq. 3-15, p. 3-8
A31: Bird, small | B31: Body weight | C31: 0.01 | D31: kg | E31: Default | F31: N/A
A32: Bird, small | B32: Kilocalories, alpha parameter for allometric equation | C32: 3.12 | D32: BW(g),KCal(kcal/day) | E32: U.S. EPA/ORD 1993 | F32: Equation 3-36, passerines
A33: Bird, small | B33: Kilocalories, beta parameter for allometric equation | C33: 0.605 | D33: BW(g),KCal(kcal/day) | E33: U.S. EPA/ORD 1993 | F33: Equation 3-36, passerines
A34: Bird, small | B34: Water consumption, alpha parameter for allometric equation | C34: 0.059 | D34: BW(kg), WC(L) | E34: U.S. EPA/ORD 1993 | F34: Eq. 3-15, p. 3-8
A35: Bird, small | B35: Water consumption, beta parameter for allometric equation | C35: 0.67 | D35: BW(kg), WC(L) | E35: U.S. EPA/ORD 1993 | F35: Eq. 3-15, p. 3-8
A36: Honeybee | B36: Body weight | C36: 0.000116 | D36: kg | E36: Winston 1987 | F36: p. 54. Arithmetic average of range: 81 to 151 mg/bee.
A37: Honeybee | B37: Surface Area, Whole body | C37: 1.42 | D37: cm2 | E37: Humphery and Dykes 2008 | F37: Based on a bee with a body length of 1.44 cm.
A38: Mammal, Nos | B38: Food consumption, alpha parameter for allometric equation | C38: 0.235 | D38: BW(g),FC(g) | E38: U.S. EPA/ORD 1993 | F38: Eq. 3-7 ,p. 3-6, all mammals
A39: Mammal, Nos | B39: Food consumption, beta parameter for allometric equation | C39: 0.822 | D39: BW(g),FC(g) | E39: U.S. EPA/ORD 1993 | F39: Eq. 3-7 ,p. 3-6, all mammals
A40: Mammal, 400 g | B40: Body weight | C40: 0.4 | D40: kg | E40: Default | F40: N/A
A41: Mammal, 400 g | B41: Food consumption, alpha parameter for allometric equation | C41: 0.621 | D41: BW(g),FC(g) | E41: U.S. EPA/ORD 1993 | F41: Eq. 3-8, p. 3-6, equation for rodents
A42: Mammal, 400 g | B42: Food consumption, beta parameter for allometric equation | C42: 0.564 | D42: BW(g),FC(g) | E42: U.S. EPA/ORD 1993 | F42: Eq. 3-8, p. 3-6, equation for rodents
A43: Mammal, 400 g | B43: Kilocalories, alpha parameter for allometric equation | C43: 2.514 | D43: BW(g),KCal(kcal/day) | E43: U.S. EPA/ORD 1993 | F43: Equation 3-48, rodent
A44: Mammal, 400 g | B44: Kilocalories, beta parameter for allometric equation | C44: 0.507 | D44: BW(g),KCal(kcal/day) | E44: U.S. EPA/ORD 1993 | F44: Equation 3-48, rodent
A45: Mammal, 400 g | B45: Water consumption, alpha parameter for allometric equation | C45: 0.099 | D45: BW(kg),WC(L) | E45: U.S. EPA/ORD 1993 | F45: Eq. 3-17, p. 3-10, all mammals
A46: Mammal, 400 g | B46: Water consumption, beta parameter for allometric equation | C46: 0.9 | D46: BW(kg),WC(L) | E46: U.S. EPA/ORD 1993 | F46: Eq. 3-17, p. 3-10, all mammals
A47: Mammal, carnivorous | B47: Body weight | C47: 5 | D47: kg | E47: U.S. EPA/ORD 1993 | F47: p. 2-221. Central value for red fox with a range of 3 to 7 kg.
A48: Mammal, carnivorous | B48: Kilocalories, alpha parameter for allometric equation | C48: 0.6167 | D48: BW(g),KCal(kcal/day) | E48: U.S. EPA/ORD 1993 | F48: Equation 3-47, non-herbivore
A49: Mammal, carnivorous | B49: Kilocalories, beta parameter for allometric equation | C49: 0.862 | D49: BW(g),KCal(kcal/day) | E49: U.S. EPA/ORD 1993 | F49: Equation 3-47, non-herbivore
A50: Mammal, carnivorous | B50: Water consumption, alpha parameter for allometric equation | C50: 0.099 | D50: BW(kg),WC(L) | E50: U.S. EPA/ORD 1993 | F50: Eq. 3-17, p. 3-10, all mammals
A51: Mammal, carnivorous | B51: Water consumption, beta parameter for allometric equation | C51: 0.9 | D51: BW(kg), WC(L) | E51: U.S. EPA/ORD 1993 | F51: Eq. 3-17, p. 3-10, all mammals
A52: Mammal, large carnivorous | B52: Body weight | C52: 70 | D52: kg | E52: Reid 2006 | F52: pp. 451-453. Black bear or small grizzly.
A53: Mammal, large carnivorous | B53: Kilocalories, alpha parameter for allometric equation | C53: 0.6167 | D53: BW(g),KCal(kcal/day) | E53: U.S. EPA/ORD 1993 | F53: Equation 3-47, non-herbivore
A54: Mammal, large carnivorous | B54: Kilocalories, beta parameter for allometric equation | C54: 0.862 | D54: BW(g),KCal(kcal/day) | E54: U.S. EPA/ORD 1993 | F54: Equation 3-47, non-herbivore
A55: Mammal, large carnivorous | B55: Water consumption, alpha parameter for allometric equation | C55: 0.099 | D55: BW(kg),WC(L) | E55: U.S. EPA/ORD 1993 | F55: Eq. 3-17, p. 3-10, all mammals
A56: Mammal, large carnivorous | B56: Water consumption, beta parameter for allometric equation | C56: 0.9 | D56: BW(kg), WC(L) | E56: U.S. EPA/ORD 1993 | F56: Eq. 3-17, p. 3-10, all mammals
A57: Mammal, herbivorous | B57: Food consumption, alpha parameter for allometric equation | C57: 0.577 | D57: BW(g),FC(g) | E57: U.S. EPA/ORD 1993 | F57: Eq. 3-9, p. 3-6, equation for herbivores
A58: Mammal, herbivorous | B58: Food consumption, beta parameter for allometric equation | C58: 0.727 | D58: BW(g),FC(g) | E58: U.S. EPA/ORD 1993 | F58: Eq. 3-9, p. 3-6, equation for herbivores
A59: Mammal, herbivorous | B59: Kilocalories, alpha parameter for allometric equation | C59: 1.518 | D59: BW(g),KCal(kcal/day) | E59: U.S. EPA/ORD 1993 | F59: Equation 3-46, herbivores
A60: Mammal, herbivorous | B60: Kilocalories, beta parameter for allometric equation | C60: 0.73 | D60: BW(g),KCal(kcal/day) | E60: U.S. EPA/ORD 1993 | F60: Equation 3-46, herbivores
A61: Mammal, large | B61: Body weight | C61: 70 | D61: kg | E61: Default | F61: N/A
A62: Mammal, large | B62: Kilocalories, alpha parameter for allometric equation | C62: 1.518 | D62: BW(g),KCal(kcal/day) | E62: U.S. EPA/ORD 1993 | F62: p. 3-6, Eq. 3-10, herbivores
A63: Mammal, large | B63: Kilocalories, beta parameter for allometric equation | C63: 0.73 | D63: BW(g),KCal(kcal/day) | E63: U.S. EPA/ORD 1993 | F63: p. 3-6, Eq. 3-10, herbivores
A64: Mammal, large | B64: Water consumption, alpha parameter for allometric equation | C64: 0.099 | D64: BW(kg),WC(L) | E64: U.S. EPA/ORD 1993 | F64: Eq. 3-17, p. 3-10, all mammals
A65: Mammal, large | B65: Water consumption, beta parameter for allometric equation | C65: 0.9 | D65: BW(kg), WC(L) | E65: U.S. EPA/ORD 1993 | F65: Eq. 3-17, p. 3-10, all mammals
A66: Mammal, rabbit | B66: Body weight | C66: 1.3 | D66: kg | E66: Default | F66: N/A
A67: Mammal, rabbit | B67: Surface Area, alpha parameter for allometric equation | C67: 0.11 | D67: BW(kg),SA(m2) | E67: U.S. EPA/ORD 1993 | F67: p. 3-14, Eq. 3-22, for all mammals
A68: Mammal, rabbit | B68: Surface Area, beta parameter for allometric equation | C68: 0.65 | D68: BW(kg),SA(m2) | E68: U.S. EPA/ORD 1993 | F68: p. 3-14, Eq. 3-22, for all mammals
A69: Mammal, rodent | B69: Food consumption, alpha parameter for allometric equation | C69: 0.621 | D69: BW(g),FC(g) | E69: U.S. EPA/ORD 1993 | F69: Eq. 3-8, p. 3-6, equation for rodents
A70: Mammal, rodent | B70: Food consumption, beta parameter for allometric equation | C70: 0.584 | D70: BW(g),FC(g) | E70: U.S. EPA/ORD 1993 | F70: Eq. 3-8,p. 3-6, equation for rodents
A71: Mammal, small | B71: Body weight | C71: 0.02 | D71: kg | E71: Default | F71: N/A
A72: Mammal, small | B72: Caloric content (wet weight) | C72: 1.7 | D72: kcal/g (wet weight) | E72: U.S. EPA/ORD 1993 | F72: Table 4-1, p. 4-13. Value for small mammals. Wet weight.
A73: Mammal, small | B73: Food consumption, alpha parameter for allometric equation | C73: 0.621 | D73: BW(g),FC(g) | E73: U.S. EPA/ORD 1993 | F73: Eq. 3-8, p. 3-6, equation for rodents
A74: Mammal, small | B74: Food consumption, beta parameter for allometric equation | C74: 0.564 | D74: BW(g),FC(g) | E74: U.S. EPA/ORD 1993 | F74: Eq. 3-8, p. 3-6, equation for rodents
A75: Mammal, small | B75: Kilocalories, alpha parameter for allometric equation | C75: 2.514 | D75: BW(g),KCal(kcal/day) | E75: U.S. EPA/ORD 1993 | F75: Equation 3-48, rodent
A76: Mammal, small | B76: Kilocalories, beta parameter for allometric equation | C76: 0.507 | D76: BW(g),KCal(kcal/day) | E76: U.S. EPA/ORD 1993 | F76: Equation 3-48, rodent
A77: Mammal, small | B77: Surface Area, alpha parameter for allometric equation | C77: 0.11 | D77: BW(kg),SA(m2) | E77: U.S. EPA/ORD 1993 | F77: p. 3-14, Eq. 3-22, for all mammals
A78: Mammal, small | B78: Surface Area, beta parameter for allometric equation | C78: 0.65 | D78: BW(kg),SA(m2) | E78: U.S. EPA/ORD 1993 | F78: p. 3-14, Eq. 3-22, for all mammals
A79: Mammal, small | B79: Water consumption, alpha parameter for allometric equation | C79: 0.099 | D79: BW(kg),WC(L) | E79: U.S. EPA/ORD 1993 | F79: Eq. 3-17, p. 3-10, all mammals
A80: Mammal, small | B80: Water consumption, beta parameter for allometric equation | C80: 0.9 | D80: BW(kg),WC(L) | E80: U.S. EPA/ORD 1993 | F80: Eq. 3-17, p. 3-10, all mammals

Sheet A02c
A1: General reference values and exposure factors used in worksheets.
A3: Receptor | B3: Factor | C3: Value | D3: Units | E3: Reference | F3: Reference Note
A4: Small Insects | B4: Caloric content (wet weight) | C4: 1.5 | D4: kcal/g (wet weight) | E4: U.S. EPA/ORD 1993 | F4: Table 4-1, p. 4-13. Value for beetles. Wet weight
A5: Fish | B5: Caloric content (wet weight) | C5: 1.2 | D5: kcal/g (wet weight) | E5: U.S. EPA/ORD 1993 | F5: Table 4-1, p. 4-13. Value for bony fish. Wet weight
A6: Vegetation | B6: Caloric content (dry weight) | C6: 2.26 | D6: kcal/g | E6: U.S. EPA/ORD 1993 | F6: p. 3-5, Table 3-1
A7: Vegetation | B7: Water content (proportion) | C7: 0.85 | D7: unitless | E7: U.S. EPA/ORD 1993 | F7: p. 4-14
A8: VegRR | B8: Broadleaf/forage plants and small insects, central estimate | C8: 45 | D8: mg chem/kg veg | E8: Fletcher et al. 1994 | F8: Broadleaf/forage plants and small insects
A9: VegRR | B9: Broadleaf/forage plants and small insects, upper range | C9: 135 | D9: mg chem/kg veg | E9: Fletcher et al. 1994 | F9: Broadleaf/forage plants and small insects
A10: VegRR | B10: Fruits, pods, seeds, and large insects, central estimate | C10: 7 | D10: mg chem/kg veg | E10: Fletcher et al. 1994 | F10: Fruits, pods, seeds, and large insects
A11: VegRR | B11: Fruits, pods, seeds, and large insects, upper range | C11: 15 | D11: mg chem/kg veg | E11: Fletcher et al. 1994 | F11: Fruits, pods, seeds, and large insects
A12: VegRR | B12: Broadleaf plants and small insects, granular applications, central estimate | C12: 1.8 | D12: mg chem/kg veg | E12: SERA 2005 | F12: Broadleaf forage plants and contaminated insects after granular application
A13: VegRR | B13: Broadleaf plants and small insects, granular applications, upper range | C13: 5.4 | D13: mg chem/kg veg | E13: SERA 2005 | F13: Broadleaf forage plants and contaminated insects after granular application
A14: VegRR | B14: Fruits, granular applications, central estimate | C14: 0.28 | D14: mg chem/kg veg | E14: SERA 2005 | F14: Fruit after granular application
A15: VegRR | B15: Fruits, granular applications, upper range | C15: 0.6 | D15: mg chem/kg veg | E15: SERA 2005 | F15: Fruit after granular application
A16: VegRR | B16: Short grass, granular applications, lower range | C16: 1.2 | D16: mg chem/kg veg | E16: SERA 2005 | F16: Short grass after granular application
A17: VegRR | B17: Short grass, granular applications, upper range | C17: 9.6 | D17: mg chem/kg veg | E17: SERA 2005 | F17: Short grass after granular application
A18: VegRR | B18: Tall grass, granular applications, central estimate | C18: 1.44 | D18: mg chem/kg veg | E18: SERA 2005 | F18: Tall grass after granular application
A19: VegRR | B19: Tall grass, granular applications, upper range | C19: 4.4 | D19: mg chem/kg veg | E19: SERA 2005 | F19: Tall grass after granular application
A20: VegRR | B20: Short grass, central estimate | C20: 85 | D20: mg chem/kg veg | E20: Fletcher et al. 1994 | F20: Short grass
A21: VegRR | B21: Short grass, lower range | C21: 30 | D21: mg chem/kg veg | E21: SERA 2007 | F21: Short grass
A22: VegRR | B22: Short grass, upper range | C22: 240 | D22: mg chem/kg veg | E22: Fletcher et al. 1994 | F22: Short grass
A23: VegRR | B23: Tall grass, central estimate | C23: 36 | D23: mg chem/kg veg | E23: Fletcher et al. 1994 | F23: Tall grass
A24: VegRR | B24: Tall grass, upper range | C24: 110 | D24: mg chem/kg veg | E24: Fletcher et al. 1994 | F24: Tall grass

Sheet A02d
A1: General reference values and exposure factors used in worksheets.
A3: Receptor | B3: Factor | C3: Value | D3: Units | E3: Reference | F3: Reference Note
A4: Conversion Factors | B4: acrefoot2gal | C4: 325900 | D4: gal/acre-foot | E4: Budavari 1989 | F4: N/A
A5: Conversion Factors | B5: liters per gal | C5: 3.785 | D5: L/gal | E5: Budavari 1989 | F5: N/A
A6: Conversion Factors | B6: pound per milligram | C6: 453600 | D6: mg/lb | E6: Budavari 1989 | F6: N/A
A7: Conversion Factors | B7: lbac2mgcm2 | C7: 0.01121 | D7: mg/cm2 per lb/acre | E7: Budavari 1989 | F7: N/A
A8: Conversion Factors | B8: lbac2ugcm2 | C8: 11.21 | D8: ug/cm2 per lb/acre | E8: Budavari 1989 | F8: N/A
A9: Conversion Factors | B9: conversion for milligrams to pounds | C9: 2.204e-06 | D9: lb/mg | E9: Budavari 1989 | F9: N/A
A10: Conversion Factors | B10: conversion for milliliters to gallons | C10: 3785 | D10: ml/gal | E10: Budavari 1989 | F10: N/A
A11: Misc | B11: Liquid adhering to skin | C11: 0.008 | D11: mL/cm2 | E11: Mason and Johnson 1987 | F11: Weight of liquid adhering to surface of skin after a spill
A12: Misc | B12: Dislodgeable residue as proportion | C12: 0.1 | D12: none | E12: Harris and Solomon 1992 | F12: Estimate of dislodgeable residue as a proportion of application rate shortly after application based on 2,4-D.
A13: Standard Pond | B13: Depth | C13: 1 | D13: m | E13: Default | F13: Depth of pond
A14: Standard Pond | B14: Surface Area | C14: 1000 | D14: m^2 | E14: Default | F14: Surface Area
A15: Standard Pond | B15: Volume of Spill | C15: 200 | D15: gallons | E15: Default | F15: Volume of spill
A16: VegRR | B16: Broadleaf/forage plants and small insects, lower range | C16: 15 | D16: mg chem/kg veg | E16: SERA 2007 | F16: Broadleaf/forage plants and small insects
A17: VegRR | B17: Fruits, pods, seeds, and large insects, lower range | C17: 3.2 | D17: mg chem/kg veg | E17: SERA 2007 | F17: Fruits, pods, seeds, and large insects
A18: VegRR | B18: Broadleaf plants and small insects, granular applications, lower range | C18: 0.6 | D18: mg chem/kg veg | E18: SERA 2007 | F18: Broadleaf/forage plants after granular application
A19: VegRR | B19: Fruits, granular applications, lower range | C19: 0.13 | D19: mg chem/kg veg | E19: SERA 2007 | F19: Fruit after granular application
A20: VegRR | B20: Short grass, granular applications, central estimate | C20: 3.4 | D20: mg chem/kg veg | E20: SERA 2005 | F20: Short grass after granular application
A21: VegRR | B21: Short grass, granular applications, lower range | C21: 1.2 | D21: mg chem/kg veg | E21: SERA 2007 | F21: Short grass after granular application
A22: VegRR | B22: Tall grass, granular applications, lower range | C22: 0.48 | D22: mg chem/kg veg | E22: SERA 2007 | F22: Tall grass after granular application
A23: VegRR | B23: Short grass, lower range | C23: 30 | D23: mg chem/kg veg | E23: Fletcher et al. 1994 | F23: Short grass
A24: VegRR | B24: Tall grass, lower range | C24: 12 | D24: mg chem/kg veg | E24: SERA 2007 | F24: Tall grass

Sheet A03
A1: Consumption values used in worksheets
A3: Receptor | B3: Item | C3: Qualifier | D3: Modifier | E3: Value | F3: Units | G3: Reference | H3: Reference Note
A4: Adult Female | B4: Fish | C4: Amount | D4: central estimate | E4: 0.01 | F4: kg/day | G4: U.S. EPA/ORD 1996 | H4: p. 10-51, average of means from four studies rounded to one significant place.
A5: Adult Female | B5: Fish | C5: Amount | D5: upper range | E5: 0.158 | F5: kg/day | G5: Ruffle et al. 1994 | H5: N/A
A6: Adult Female | B6: Fruit | C6: Proportion of body weight | D6: central estimate | E6: 0.00168 | F6: kg fruit/kg bw/day | G6: U.S. EPA/ORD 1996 | H6: Table 9-3, p. 9-11, mean value.
A7: Adult Female | B7: Fruit | C7: Proportion of body weight | D7: lower range | E7: 0.00168 | F7: kg fruit/kg bw/day | G7: U.S. EPA/ORD 1996 | H7: Table 9-3, p. 9-11. The 5th percentile is given as zero. For these worksheets, the central estimate is used for the lower bound.
A8: Adult Female | B8: Fruit | C8: Proportion of body weight | D8: upper range | E8: 0.01244 | F8: kg fruit/kg bw/day | G8: U.S. EPA/ORD 1996 | H8: Table 9-3, p. 9-11, 95th percentile value.
A9: Adult Female | B9: Vegetation, home grown | C9: Proportion of body weight | D9: central estimate | E9: 0.00076 | F9: kg veg/kg bw/day | G9: U.S. EPA/ORD 1996 | H9: Table 12-15, p. 9-14, mean for individuals between 20 and 39 years old.
A10: Adult Female | B10: Vegetation, home grown | C10: Proportion of body weight | D10: lower range | E10: 8e-05 | F10: kg veg/kg bw/day | G10: U.S. EPA/ORD 1996 | H10: Table 12-15, p. 9-14, 5th percentile for individuals between 20 and 39 years old.
A11: Adult Female | B11: Vegetation, home grown | C11: Proportion of body weight | D11: upper range | E11: 0.00492 | F11: kg veg/kg bw/day | G11: U.S. EPA/ORD 1996 | H11: Table 12-15, p. 9-14, 95th percentile for individuals between 20 and 39 years old.
A12: Adult Female | B12: Vegetation | C12: Amount | D12: Extreme | E12: 0.454 | F12: kg food | G12: U.S. EPA/ORD 1996 | H12: 1 lb. The approximate mid range of the above typical and upper limits based on the 64 kg body weight.
A13: Adult Female | B13: Vegetation | C13: Proportion of body weight | D13: central estimate | E13: 0.0036 | F13: kg veg/kg bw/day | G13: U.S. EPA/ORD 1996 | H13: Table 9-12, p. 9-12, mean.
A14: Adult Female | B14: Vegetation | C14: Proportion of body weight | D14: lower range | E14: 0.00075 | F14: kg veg/kg bw/day | G14: U.S. EPA/ORD 1996 | H14: Table 9-12, p. 9-12, 5th percentile.
A15: Adult Female | B15: Vegetation | C15: Proportion of body weight | D15: upper range | E15: 0.01 | F15: kg veg/kg bw/day | G15: U.S. EPA/ORD 1996 | H15: Table 9-12, p. 9-12, 95th percentile.
A16: Adult Female | B16: Water | C16: Amount | D16: central estimate | E16: 2 | F16: L/day | G16: U.S. EPA/ORD 1996 | H16: p. 3-28, Table 3-30, midpoint of mean (1.4 L/day) and 90th percentile (2.4 L/day) rounded to one significant place.
A17: Adult Female | B17: Water | C17: Amount | D17: lower range | E17: 1.4 | F17: L/day | G17: U.S. EPA/ORD 1996 | H17: p. 3-28, Table 3-30, mean
A18: Adult Female | B18: Water | C18: Amount | D18: upper range | E18: 2.4 | F18: L/day | G18: U.S. EPA/ORD 1996 | H18: p. 3-28, Table 3-30, 90th percentile
A19: Adult Male | B19: Fish | C19: Amount | D19: central estimate | E19: 0.01 | F19: kg/day | G19: U.S. EPA/ORD 1996 | H19: p. 10-51, average of means from four studies rounded to one significant place.
A20: Adult Male | B20: Fish | C20: Amount | D20: upper range | E20: 0.158 | F20: kg/day | G20: Ruffle et al. 1994 | H20: N/A
A21: Adult Male | B21: Fruit | C21: Proportion of body weight | D21: central estimate | E21: 0.00168 | F21: unitless | G21: U.S. EPA/ORD 1996 | H21: Table 9-3, p. 9-11, mean value.
A22: Adult Male | B22: Fruit | C22: Proportion of body weight | D22: lower range | E22: 0.00168 | F22: unitless | G22: U.S. EPA/ORD 1996 | H22: Table 9-3, p. 9-11. The 5th percentile is given as zero. For these worksheets, the central estimate is used for the lower bound.
A23: Adult Male | B23: Fruit | C23: Proportion of body weight | D23: upper range | E23: 0.01244 | F23: unitless | G23: U.S. EPA/ORD 1996 | H23: Table 9-3, p. 9-11, 95th percentile value.
A24: Adult Male | B24: Vegetation, home grown | C24: Proportion of body weight | D24: central estimate | E24: 0.00076 | F24: unitless | G24: U.S. EPA/ORD 1996 | H24: Table 12-15, p. 9-14, mean for individuals between 20 and 39 years old.
A25: Adult Male | B25: Vegetation, home grown | C25: Proportion of body weight | D25: lower range | E25: 8e-05 | F25: unitless | G25: U.S. EPA/ORD 1996 | H25: Table 12-15, p. 9-14, 5th percentile for individuals between 20 and 39 years old.
A26: Adult Male | B26: Vegetation, home grown | C26: Proportion of body weight | D26: upper range | E26: 0.00492 | F26: unitless | G26: U.S. EPA/ORD 1996 | H26: Table 12-15, p. 9-14, 95th percentile for individuals between 20 and 39 years old.
A27: Adult Male | B27: Vegetation | C27: Amount | D27: Extreme | E27: 0.454 | F27: kg/day | G27: U.S. EPA/ORD 1996 | H27: 1 lb. The approximate mid range of the above typical and upper limits based on the 64 kg body weight.
A28: Adult Male | B28: Vegetation | C28: Proportion of body weight | D28: central estimate | E28: 0.0036 | F28: unitless | G28: U.S. EPA/ORD 1996 | H28: Table 9-12, p. 9-12, mean.
A29: Adult Male | B29: Vegetation | C29: Proportion of body weight | D29: lower range | E29: 0.00075 | F29: unitless | G29: U.S. EPA/ORD 1996 | H29: Table 9-12, p. 9-12, 5th percentile.
A30: Adult Male | B30: Vegetation | C30: Proportion of body weight | D30: upper range | E30: 0.01 | F30: unitless | G30: U.S. EPA/ORD 1996 | H30: Table 9-12, p. 9-12, 95th percentile.
A31: Adult Male | B31: Water | C31: Amount | D31: central estimate | E31: 2 | F31: L/day | G31: U.S. EPA/ORD 1996 | H31: p. 3-28, Table 3-30, midpoint of mean (1.4 L/day) and 90th percentile (2.4 L/day) rounded to one significant place.
A32: Adult Male | B32: Water | C32: Amount | D32: lower range | E32: 1.4 | F32: L/day | G32: U.S. EPA/ORD 1996 | H32: p. 3-28, Table 3-30, mean
A33: Adult Male | B33: Water | C33: Amount | D33: upper range | E33: 2.4 | F33: L/day | G33: U.S. EPA/ORD 1996 | H33: p. 3-28, Table 3-30, 90th percentile
A34: Subsistence Populations | B34: Fish | C34: Amount | D34: central estimate | E34: 0.081 | F34: kg/day | G34: U.S. EPA/ORD 1996 | H34: p. 10-51, median value of 94 individuals
A35: Subsistence Populations | B35: Fish | C35: Amount | D35: upper range | E35: 0.77 | F35: kg/day | G35: U.S. EPA/ORD 1996 | H35: p. 10-51, highest value of 94 individuals
A36: Child | B36: Water | C36: Amount | D36: central estimate | E36: 1 | F36: L/day | G36: U.S. EPA/ORD 1996 | H36: p. 3-28, Table 3-30, midpoint of mean (0.61L/day) and 90th percentile (1.5 L/day) rounded to one significant place.
A37: Child | B37: Water | C37: Amount | D37: lower range | E37: 0.61 | F37: L/day | G37: U.S. EPA/ORD 1996 | H37: p. 3-28, Table 3-30, mean
A38: Child | B38: Water | C38: Amount | D38: upper range | E38: 1.5 | F38: L/day | G38: U.S. EPA/ORD 1996 | H38: p. 3-28, Table 3-30, 90th percentile
A39: Herbivorous Insect | B39: Broadleaf/Small Insects | C39: Proportion of body weight | D39: central estimate | E39: 1.3 | F39: kg food/kg bw/day | G39: Waldbauer 1968 | H39: N/A
A40: Herbivorous Insect | B40: Broadleaf/Small Insects | C40: Proportion of body weight | D40: lower range | E40: 0.6 | F40: kg food/kg bw/day | G40: Reichle et al. 1973 | H40: N/A
A41: Herbivorous Insect | B41: Broadleaf/Small Insects | C41: Proportion of body weight | D41: upper range | E41: 2.2 | F41: kg food/kg bw/day | G41: Waldbauer 1968 | H41: N/A
A42: Herbivorous Insect | B42: Fruit | C42: Proportion of body weight | D42: central estimate | E42: 1.3 | F42: kg food/kg bw/day | G42: Waldbauer 1968 | H42: N/A
A43: Herbivorous Insect | B43: Fruit | C43: Proportion of body weight | D43: lower range | E43: 0.6 | F43: kg food/kg bw/day | G43: Reichle et al. 1973 | H43: N/A
A44: Herbivorous Insect | B44: Fruit | C44: Proportion of body weight | D44: upper range | E44: 2.2 | F44: kg food/kg bw/day | G44: Waldbauer 1968 | H44: N/A
A45: Herbivorous Insect | B45: Short grass | C45: Proportion of body weight | D45: central estimate | E45: 1.3 | F45: kg food/kg bw/day | G45: Waldbauer 1968 | H45: N/A
A46: Herbivorous Insect | B46: Short grass | C46: Proportion of body weight | D46: lower range | E46: 0.6 | F46: kg food/kg bw/day | G46: Reichle et al. 1973 | H46: N/A
A47: Herbivorous Insect | B47: Short grass | C47: Proportion of body weight | D47: upper range | E47: 2.2 | F47: kg food/kg bw/day | G47: Waldbauer 1968 | H47: N/A
A48: Herbivorous Insect | B48: Tall Grass | C48: Proportion of body weight | D48: central estimate | E48: 1.3 | F48: kg food/kg bw/day | G48: Waldbauer 1968 | H48: N/A
A49: Herbivorous Insect | B49: Tall Grass | C49: Proportion of body weight | D49: lower range | E49: 0.6 | F49: kg food/kg bw/day | G49: Reichle et al. 1973 | H49: N/A
A50: Herbivorous Insect | B50: Tall Grass | C50: Proportion of body weight | D50: upper range | E50: 2.2 | F50: kg food/kg bw/day | G50: Waldbauer 1968 | H50: N/A

Sheet B01
A1: Chemical and Physical Properties for Imazapyr
A3: Property | B3: Receptor | C3: Value | D3: Units | E3: Document Reference
A4: Bioconcentration Factor (BCF), edible, acute | B4: N/A | C4: 0.5 | D4: L/kg fish | E4: Section 3.2.3.5.
A5: Bioconcentration Factor (BCF), edible, chronic | B5: N/A | C5: 0.5 | D5: L/kg fish | E5: Section 3.2.3.5.
A6: Bioconcentration Factor (BCF), whole fish, acute | B6: N/A | C6: 0.5 | D6: L/kg fish | E6: Section 3.2.3.5.
A7: Bioconcentration Factor (BCF), whole fish, chronic | B7: N/A | C7: 0.5 | D7: L/kg fish | E7: Section 3.2.3.5.
A8: Kow (Octanol-water partition coefficient) | B8: N/A | C8: 1.3 | D8: unitless | E8: Table 2-1
A9: Molecular weight | B9: N/A | C9: 261.3 | D9: grams/mole | E9: Table 2-1
A10: Water Solubility | B10: N/A | C10: 13100 | D10: mg/L | E10: Table 2-1
A11: First order dermal absorption rate (ka), central estimate | B11: N/A | C11: 0.0011 | D11: per hour | E11: Section 3.2.2.2
A12: First order dermal absorption rate (ka), lower range | B12: N/A | C12: 0.00044 | D12: per hour | E12: Section 3.2.2.2
A13: First order dermal absorption rate (ka), upper range | B13: N/A | C13: 0.0029 | D13: per hour | E13: Section 3.2.2.2
A14: Dermal permeability (Kp), central estimate | B14: N/A | C14: 5.6e-05 | D14: cm/hour | E14: Section 3.2.2.2
A15: Dermal permeability (Kp), lower range | B15: N/A | C15: 2.8e-05 | D15: cm/hour | E15: Section 3.2.2.2
A16: Dermal permeability (Kp), upper range | B16: N/A | C16: 0.00011 | D16: cm/hour | E16: Section 3.2.2.2
A17: Halftime, central estimate | B17: Fruit | C17: 30 | D17: days | E17: Section 3.2.3.6
A18: Halftime, lower range | B18: Fruit | C18: 15 | D18: days | E18: Section 3.2.3.6
A19: Halftime, upper range | B19: Fruit | C19: 37 | D19: days | E19: Section 3.2.3.6
A20: Halftime, central estimate | B20: Vegetation | C20: 30 | D20: days | E20: Section 3.2.3.6
A21: Halftime, lower range | B21: Vegetation | C21: 15 | D21: days | E21: Section 3.2.3.6
A22: Halftime, upper range | B22: Vegetation | C22: 37 | D22: days | E22: Section 3.2.3.6

Sheet B02
A1: Toxicity values for Imazapyr
A3: Receptor | B3: Receptor | C3: Qualifier | D3: Endpoint | E3: Value | F3: Units | G3: Document Reference
A4: Human | B4: acute | C4: N/A | D4: Reference Dose (RfD) | E4: 2.5 | F4: mg/kg bw | G4: Table 21
A5: Human | B5: chronic | C5: N/A | D5: Reference Dose (RfD) | E5: 2.5 | F5: mg/kg bw/day | G5: Table 21
A6: Mammal, Nos | B6: acute | C6: N/A | D6: NOAEL | E6: 738 | F6: mg/kg bw | G6: Table 21
A7: Mammal, Nos | B7: chronic | C7: N/A | D7: NOAEL | E7: 738 | F7: mg/kg bw/day | G7: Table 21
A8: Bird, NOS | B8: acute | C8: N/A | D8: NOAEL | E8: 2510 | F8: mg/kg bw | G8: Table 21
A9: Bird, NOS | B9: chronic | C9: N/A | D9: NOAEL | E9: 610 | F9: mg/kg bw/day | G9: Table 21
A10: Honeybee | B10: acute | C10: N/A | D10: NOAEL | E10: 860 | F10: mg/kg bw | G10: Table 21
A11: Fish | B11: acute | C11: sensitive species | D11: NOAEC | E11: 10.4 | F11: mg/L | G11: Table 21
A12: Fish | B12: chronic | C12: sensitive species | D12: NOAEC* | E12: 4 | F12: mg/L | G12: Table 21
A13: Fish | B13: chronic | C13: tolerant species | D13: NOEC | E13: 12 | F13: mg/L | G13: Table 21
A14: Aquatic invertebrate | B14: acute | C14: tolerant species | D14: NOAEC | E14: 41 | F14: mg/L | G14: Table 21
A15: Aquatic invertebrate | B15: chronic | C15: tolerant species | D15: NOAEC | E15: 12 | F15: mg/L | G15: Table 21
A16: Algae | B16: N/A | C16: sensitive species | D16: NOAEC | E16: 7.6 | F16: mg/L | G16: Table 21
A17: Algae | B17: N/A | C17: tolerant species | D17: NOEC | E17: 50.9 | F17: mg/L | G17: Table 21
A18: Mammal, carnivorous | B18: acute | C18: N/A | D18: NOAEL | E18: 250 | F18: mg/kg bw | G18: Table 21
A19: Macrophyte, aquatic | B19: N/A | C19: sensitive species | D19: NOAEC | E19: 0.003 | F19: mg/L | G19: Table 21
A20: Macrophyte, aquatic | B20: N/A | C20: tolerant species | D20: NOAEC | E20: 0.1 | F20: mg/L | G20: Table 21
A21: Terrestrial plant | B21: Seedling Emergence | C21: sensitive species | D21: NOAEL | E21: 0.00017 | F21: lb/acre | G21: Table 21
A22: Terrestrial plant | B22: Seedling Emergence | C22: tolerant species | D22: NOAEL | E22: 0.0156 | F22: lb/acre | G22: Table 21
A23: Terrestrial plant | B23: Vegetative vigor | C23: sensitive species | D23: NOAEL | E23: 6.4e-05 | F23: lb/acre | G23: Table 21
A24: Terrestrial plant | B24: Vegetative vigor | C24: tolerant species | D24: NOAEL | E24: 0.4 | F24: lb/acre | G24: Table 21
A25: Mammal, carnivorous | B25: chronic | C25: N/A | D25: NOAEL | E25: 250 | F25: mg/kg bw/day | G25: Table 21
A26: Herbivorous Insect | B26: acute | C26: N/A | D26: NOAEL | E26: 860 | F26: mg/kg bw | G26: Table 21

Sheet B03a
A1: Calculation of Zero-Order Dermal Permeability Rate (Kp) in cm/hour
A2: Short Title | B2: Calculation of Kp | E2: ChemDrmKp
A3: Parameter/Assumption | B3: Code / Range | C3: Equation/ Value | D3: Units | E3: Reference/Designation
A4: Molecular weight | B4: MW | C4: ='B01'!$C$9 -> 261.3 | D4: g/mole | E4: Table 2-1
A5: Ko/w | B5: Kow | C5: ='B01'!$C$8 -> 1.3 | D5: unitless | E5: Table 2-1
A6: Vector a[] | B6: a[1] | C6: 1
B7: a[2] | C7: =C4 -> 261.3
B8: a[3] | C8: =LOG10(C5) -> 0.1139433523
A9: Transpose of a[] (a') | B9: =$C$6 -> 1 | C9: =$C$7 -> 261.3 | D9: =$C$8 -> 0.1139433523
A10: X'X Cross Product Matrix | B10: X'X
B11: 0.055931 | C11: -9.41546e-05 | D11: -0.0103443
B12: -9.41546e-05 | C12: 5.978e-07 | D12: -2.22508e-05
B13: -0.0103443 | C13: -2.22508e-05 | D13: 0.00740677
A14: a'X'X a | B14: a'X'X a | C14: =MMULT(B9:D9,MMULT(B11:D13, C6:C8)) -> 0.04395607958
A15: Coefficients for model
A16: Intercept | B16: K0 | C16: -2.72576
A17: Coeff for MW | B17: K1 | C17: -0.006151
A18: Coeff for Log10(Kow) | B18: K2 | C18: 0.706648
A19: Standard deviation of model | B19: s | C19: 0.727129
A20: Critical value at 0.025 with 87 d.f. | B20: t0.025 | C20: 1.96
A21: Log10 of Estimated dermal permeability rate (Kp) | B21: Log(Kp) = | C21: K0 + K1 MW + K2 Log10(Kow)
B22: Central | C22: =$C$16 + ($C$17*$C$4) + ($C$18*LOG10($C$5)) -> -4.252498458 | E22: Eq
B23: Lower 95% CI | C23: =$C$22 - ($C$20 * $C$19 * ($C$14^0.5)) -> -4.551295995 | E23: Eq
B24: Upper 95% CI | C24: =$C$22 + ($C$20 * $C$19 * ($C$14^0.5)) -> -3.953700921 | E24: Eq
A25: Estimated dermal permeability rate (Kp) | B25: Kp = | C25: 10Log(Kp)
B26: Central | C26: =10^C22 -> 5.591155128e-05 | D26: cm/hour | E26: Eq
B27: Lower 95% CI | C27: =10^C23 -> 2.809985024e-05 | E27: Eq
B28: Upper 95% CI | C28: =10^C24 -> 0.000111249759 | E28: Eq

Sheet B03b
A1: Calculation of First-Order Dermal Absorption Rate
A2: Short Title | B2: Calculation of ka | E2: ChemDrmKa
A3: Parameter/Assumption | B3: Code / Range | C3: Equation/ Value | D3: Units | E3: Reference/Designation
A4: Molecular weight | B4: MW | C4: ='B01'!$C$9 -> 261.3 | D4: g/mole | E4: Table 2-1
A5: Ko/w | B5: Kow | C5: ='B01'!$C$8 -> 1.3 | D5: unitless | E5: Table 2-1
A6: Vector a[] | B6: a[1] | C6: 1
B7: a[2] | C7: =C4 -> 261.3
B8: a[3] | C8: =LOG10(C5) -> 0.1139433523
A9: Transpose of a[] (a') | B9: =$C$6 -> 1 | C9: =$C$7 -> 261.3 | D9: =$C$8 -> 0.1139433523
A10: X'X Cross Product Matrix | B10: X'X
B11: 0.307537 | C11: -0.00103089 | D11: 0.00822769
B12: -0.00103089 | C12: 4.377e-06 | D12: -9.44359e-05
B13: 0.00822769 | C13: -9.44359e-05 | D13: 0.0085286
A14: a'X'X a | B14: a'X'X a | C14: =MMULT(B9:D9,MMULT(B11:D13, C6:C8)) -> 0.06400768859
A15: Coefficients for model
A16: Intercept | B16: K0 | C16: -1.49615
A17: Coeff for MW | B17: K1 | C17: -0.005657
A18: Coeff for Log10(Kow) | B18: K2 | C18: 0.233255
A19: Standard deviation of model | B19: s | C19: 0.787218
A20: Critical value at 0.025 with 26 d.f. | B20: t0.025 | C20: 2.056
A21: Log10 of Estimated first-order absorption rate | B21: Log(ka) = | C21: K0 + K1 MW + K2 Log10(Kow)
B22: Central | C22: =$C$16 + ($C$17*$C$4) + ($C$18*LOG10($C$5)) -> -2.947746243 | E22: Eq
B23: Lower 95% CI | C23: =$C$22 - ($C$20 * $C$19 * ($C$14^0.5)) -> -3.357227661 | E23: Eq
B24: Upper 95% CI | C24: =$C$22 + ($C$20 * $C$19 * ($C$14^0.5)) -> -2.538264826 | E24: Eq
A25: Estimated first-order absorption rate | B25: ka = | C25: 10Log(ka)
B26: Central | C26: =10^C22 -> 0.001127856266 | D26: hour-1 | E26: Eq
B27: Lower 95% CI | C27: =10^C23 -> 0.000439311264 | E27: Eq
B28: Upper 95% CI | C28: =10^C24 -> 0.002895577375 | E28: Eq

Sheet B04a
A1: Estimates of Peak Concentrations of the Pesticide in Water After Aquatic Applications Expressed in Units of Pound Per Acre of Surface Water
A2: Parameter/Assumption | B2: Code / Range | C2: Equation/ Value | D2: Units | E2: EECAqLbAcV6
A3: Water Body and Applicaiton
A4: Application Rate | B4: ApRt
B5: Central | C5: ='A01'!ApRt_C -> 1 | D5: lb/acre | E5: Worksheet A01
A6: Surface Area to be Treated | B6: SurfA | C6: ='A01'!SurfA -> 10 | D6: acres | E6: Program Parameter
A7: Depth of Water in feet | B7: WBDft
B8: Central | C8: ='A01'!WBDft_C -> 3 | D8: feet | E8: Program Parameter
B9: Lower | C9: ='A01'!WBDft_L -> 1 | E9: Program Parameter
B10: Upper | C10: ='A01'!WBDft_U -> 10 | E10: Program Parameter
A11: Number of applications | B11: n | C11: 1 | D11: unitless | E11: Worksheet A01
A12: Interval between applications | B12: intv | C12: 1 | D12: days | E12: Worksheet A01
A13: Calculation of Peak Concentrations
A14: Conversion factor for lbs to mg | B14: Conv1 | C14: 453592.37 | D14: mg/lb (Merck Index)
A15: Amount of Pesticide Applied to Water Body in mg | B15: Amnt_mg | C15: = ApRt x Surf x Conv1
B16: Central | C16: =C$5*C$6*C$14 -> 4535923.7 | D16: mg | E16: Eq
B17: Lower | C17: =C$5*C$6*C$14 -> 4535923.7 | E17: Eq
B18: Upper | C18: =C$5*C$6*C$14 -> 4535923.7 | E18: Eq
A19: Square feet per acre | B19: Conv2 | C19: 43560 | D19: ft2/acre (Merck)
A20: Volume of Water in Cubic Feet | B20: WatVolCuFt | C20: = SA x DBDft x Conv2
B21: Central | C21: =C$6*C8*C$19 -> 1306800 | D21: ft3 | E21: Eq
B22: Lower | C22: =C$6*C9*C$19 -> 435600 | E22: Eq
B23: Upper | C23: =C$6*C10*C$19 -> 4356000 | E23: Eq
A24: Conversion factor for cubic feet to liters | B24: Conv3 | C24: 28.32 | D24: ft2/acre (Merck)
A25: Volume of Water in Liters | B25: WatVolL | C25: = WatVolCuFt x Conv3
B26: Central | C26: =C21*C$24 -> 37008576 | E26: Eq
B27: Upper | C27: =C23*C$24 -> 123361920 | E27: Eq
B28: Lower | C28: =C22*C$24 -> 12336192 | E28: Eq
A29: Toxic Equivalency Factor for formulation: (See risk assessment if this has a value other than 1.) | B29: TEF
B30: Central | C30: ='A01'!C$37 -> 1 | D30: Unitless | E30: Worksheet A01
B31: Lower | C31: ='A01'!C$38 -> 1 | E31: Worksheet A01
B32: Upper | C32: ='A01'!C$39 -> 1 | E32: Worksheet A01
A33: Peak Concentrations | B33: Water | C33: = Amnt_mg x TEF / WatVolL
B34: Central | C34: =C16*C30/C26 -> 0.1225641241 | D34: mg/L
B35: Lower | C35: =C17*C31/C27 -> 0.03676923722
B36: Upper | C36: =C18*C32/C28 -> 0.3676923722
A37: Calculation of Longer-Term Concentrations
A38: Exposure Period | B38: T | C38: ='A01'!C$30 -> 90 | D38: days | E38: Worksheet A01
A39: Field Dissipation Half-life in Water Body | B39: Halflife
B40: Central | C40: ='A01'!C$53 -> 65 | D40: Days | E40: Worksheet A01
B41: Lower | C41: ='A01'!C$54 -> 25 | E41: Worksheet A01
B42: Upper | C42: ='A01'!C$55 -> 180 | E42: Worksheet A01
A43: Decay Coefficient | B43: k | C43: Ln(2)/Halflife
B44: Central | C44: =LN(2)/C40 -> 0.01066380278 | D44: Days-1 | E44: Eq
B45: Upper | C45: =LN(2)/C41 -> 0.02772588722 | E45: Eq
B46: Lower | C46: =LN(2)/C42 -> 0.00385081767 | E46: Eq
A47: Concentration water at time, T. | B47: ConcT | C47: C0 × e-kT
B48: Central | C48: =C34*EXP(-C44*C$38) -> 0.04694102867 | D48: mg/L | E48: Eq
B49: Lower | C49: =C35*EXP(-C45*C$38) -> 0.003032331211 | E49: Eq
B50: Upper | C50: 0.2599977698 | E50: Eq
A51: Average Concentrations | B51: ConcTWA | C51: C0 × (1-e-kT) ÷ (k T)
B52: Central | C52: =(C34*(1-EXP(-C44*C$38)))/(C44*C$38) -> 0.07879521339 | D52: mg/L
B53: Lower | C53: =(C35*(1-EXP(-C45*C$38)))/(C45*C$38) -> 0.01352001861
B54: Upper | C54: 0.3107409377

Sheet B04b
A1: Pond: Concentration of pesticide (liquid formulation) in pond water after an accidental spill
A2: Short Title | B2: Pond Spill | E2: PondSpillLiqV6
A3: Receptor | B3: Pond
A4: Duration | B4: Acute
A5: Parameter/Assumption | B5: Code / Range | C5: Equation/ Value | D5: Units | E5: Reference/Designation
A6: Surface Area of Pond | B6: SA | C6: ='A01'!C$28 -> 1000 | D6: m2 | E6: Worksheet A01
A7: Depth of Pond | B7: Depth | C7: ='A01'!C$29 -> 1 | D7: meter | E7: Worksheet A01
A8: Volume of Pond | B8: VPM | C8: =C6*C7 -> 1000 | D8: m3 | E8: Eq
B9: VPL | C9: =1000*C8 -> 1000000 | D9: liters | E9: Eq
A10: Concentration in solution | B10: Conc
B11: Central | C11: ='A01'!FldConc_C -> 6 | D11: mg/mL | E11: Worksheet A01
B12: Lower | C12: ='A01'!FldConc_L -> 1.2 | E12: Worksheet A01
B13: Upper | C13: ='A01'!FldConc_U -> 24 | E13: Worksheet A01
A14: Volume of Spill (gallons) | B14: VSGal
B15: Central | C15: ='A01'!C$45 -> 100 | D15: gallons | E15: Worksheet A01
B16: Lower | C16: ='A01'!C$46 -> 20 | E16: Worksheet A01
B17: Upper | C17: ='A01'!C$47 -> 200 | E17: Worksheet A01
A18: Conversion factor for gallons to liters | B18: Conv | C18: 3.785 | D18: liters/gal
A19: Volume of Spill (liters) | B19: VSLit | C19: VSGal x Conv
B20: Central | C20: =C15*C$18 -> 378.5 | D20: liters | E20: Eq
B21: Lower | C21: =C16*C$18 -> 75.7 | D21: liters | E21: Eq
B22: Upper | C22: =C17*C$18 -> 757 | D22: liters | E22: Eq
A23: Concentration in pond water at various times after as spill | B23: ConcWat | C23: Conc × 1000 mL/L × VSL ÷ VPL
A24: Time | B24: Central | C24: Lower | D24: Upper
A25: 0 | B25: =C11*1000*C20/C$9 -> 2.271 | C25: =C12*1000*C21/C$9 -> 0.09084 | D25: =C13*1000*C22/C$9 -> 18.168 | E25: mg/L

Sheet C01
A1: Worker exposure estimates and risk characterization for direct applications to water.
A2: Short Title | B2: Direct Application to Water | E2: WkAquaAp
A3: Receptor | B3: Worker
A4: Duration | B4: Chronic
A5: Parameter/Assumption | B5: Code / Range | C5: Equation/ Value | D5: Units | E5: Reference/Equation
A6: Application rates | B6: ApRt | C6: ='A01'!ApRt_C -> 1 | D6: lb/acre | E6: Worksheet A01
A7: Acres of Water Surface treated per day: | B7: ATD | C7: ='A01'!SurfA -> 10 | E7: Program Parameter
A8: Amount handled per day: | B8: AmntH | C8: =C6*C7 -> 10 | D8: lb/day [ApRt × ATD]
A9: Toxic Equivalency Factor for formulation: (See risk assessment if this has a value other than 1.) | B9: TEF
B10: Central | C10: ='A01'!C$37 -> 1 | D10: Unitless | E10: Worksheet A01
B11: Lower | C11: ='A01'!C$38 -> 1 | E11: Worksheet A01
B12: Upper | C12: ='A01'!C$39 -> 1 | E12: Worksheet A01
A13: Clothing Protection Factor | B13: Prot
B14: Central | C14: ='A01'!C$33 -> 0 | D14: Unitless (value between 0 [no protection] and 1 [complete protection]) | E14: Worksheet A01
B15: Upper | C15: ='A01'!C$35 -> 0 | E15: Worksheet A01
B16: Lower | C16: ='A01'!C$34 -> 0 | E16: Worksheet A01
A17: Absorbed dose rate: | B17: ADR
B18: Central | C18: ='A01'!C$49 -> 0.0009 | D18: (mg agent/kg bw) ÷ (lbs agent handled per day) | E18: Worksheet A01
B19: Lower | C19: ='A01'!C$50 -> 0.0004 | E19: Worksheet A01
B20: Upper | C20: ='A01'!C$51 -> 0.002 | E20: Worksheet A01
A21: Absorbed dose | B21: Dose | C21: AmntH × ADR × TEF × Prot
B22: Central | C22: =C$8* C10 * C18*(1-C14) -> 0.009 | D22: mg/kg bw/day | E22: Eq
B23: Lower | C23: =C$8* C11 * C19*(1-C15) -> 0.004 | E23: Eq
B24: Upper | C24: =C$8* C12 * C20*(1-C16) -> 0.02 | E24: Eq

Sheet C02a
A1: Accidental Dermal Exposure Assessment Using Zero-Order Absorption, Worker, Surface Area, Hands, for 1 minute(s)
A2: Short Title | B2: Contaminated Gloves, 1 minute | E2: DrmZr
A3: Receptor | B3: Worker
A4: Duration | B4: Acute
A5: Surface Contaminated | B5: Surface Area, Hands
A6: Parameter/Assumption | B6: Code / Range | C6: Equation/ Value | D6: Units | E6: Reference/Designation
A7: Surface Area | B7: SA | C7: =A02a!$C$40 -> 840 | D7: cm2 | E7: U.S. EPA/ORD 1992
A8: Duration of Exposure | B8: T_min | C8: 1 | D8: minutes | E8: Scenario parameter
B9: T_hr | C9: =C8/60 -> 0.01666666667 | D9: hours | E9: Eq
A10: Body weight | B10: BW | C10: =A02a!$C$39 -> 70 | D10: kg | E10: ICRP 1975
A11: Concentration in solution (mg/mL) | B11: Conc
B12: Central | C12: ='A01'!FldConc_C -> 6 | D12: mg/mL | E12: Worksheet A01
B13: Lower | C13: ='A01'!FldConc_L -> 1.2 | E13: Worksheet A01
B14: Upper | C14: ='A01'!FldConc_U -> 24 | E14: Worksheet A01
A15: Toxic Equivalency Factor for formulation: (See risk assessment if this has a value other than 1.) | B15: TEF
B16: Central | C16: ='A01'!C$37 -> 1 | D16: Unitless | E16: Worksheet A01
B17: Lower | C17: ='A01'!C$38 -> 1 | E17: Worksheet A01
B18: Upper | C18: ='A01'!C$39 -> 1 | E18: Worksheet A01
A19: Dermal permeability | B19: Kp
B20: Central | C20: ='B01'!$C$14 -> 5.6e-05 | D20: cm/hour | E20: Section 3.2.2.2
B21: Lower | C21: ='B01'!$C$15 -> 2.8e-05 | E21: Section 3.2.2.2
B22: Upper | C22: ='B01'!$C$16 -> 0.00011 | E22: Section 3.2.2.2
A23: Absorbed Dose | B23: Dose | C23: Kp × Conc × T_hr × SA x TEF ÷ BW
B24: Central | C24: =C20*C12*C$9*C$7*C16/C$10 -> 6.72e-05 | D24: mg/kg | E24: Eq
B25: Lower | C25: =C21*C13*C$9*C$7*C17/C$10 -> 6.72e-06 | D25: mg/kg | E25: Eq
B26: Upper | C26: =C22*C14*C$9*C$7*C18/C$10 -> 0.000528 | D26: mg/kg | E26: Eq

Sheet C02b
A1: Accidental Dermal Exposure Assessment Using Zero-Order Absorption, Worker, Surface Area, Hands, for 60 minute(s)
A2: Short Title | B2: Contaminated Gloves, 1 Hour | E2: DrmZr
A3: Receptor | B3: Worker
A4: Duration | B4: Acute
A5: Surface Contaminated | B5: Surface Area, Hands
A6: Parameter/Assumption | B6: Code / Range | C6: Equation/ Value | D6: Units | E6: Reference/Designation
A7: Surface Area | B7: SA | C7: =A02a!$C$40 -> 840 | D7: cm2 | E7: U.S. EPA/ORD 1992
A8: Duration of Exposure | B8: T_min | C8: 60 | D8: minutes | E8: Scenario parameter
B9: T_hr | C9: =C8/60 -> 1 | D9: hours | E9: Eq
A10: Body weight | B10: BW | C10: =A02a!$C$39 -> 70 | D10: kg | E10: ICRP 1975
A11: Concentration in solution (mg/mL) | B11: Conc
B12: Central | C12: ='A01'!FldConc_C -> 6 | D12: mg/mL | E12: Worksheet A01
B13: Lower | C13: ='A01'!FldConc_L -> 1.2 | E13: Worksheet A01
B14: Upper | C14: ='A01'!FldConc_U -> 24 | E14: Worksheet A01
A15: Toxic Equivalency Factor for formulation: (See risk assessment if this has a value other than 1.) | B15: TEF
B16: Central | C16: ='A01'!C$37 -> 1 | D16: Unitless | E16: Worksheet A01
B17: Lower | C17: ='A01'!C$38 -> 1 | E17: Worksheet A01
B18: Upper | C18: ='A01'!C$39 -> 1 | E18: Worksheet A01
A19: Dermal permeability | B19: Kp
B20: Central | C20: ='B01'!$C$14 -> 5.6e-05 | D20: cm/hour | E20: Section 3.2.2.2
B21: Lower | C21: ='B01'!$C$15 -> 2.8e-05 | E21: Section 3.2.2.2
B22: Upper | C22: ='B01'!$C$16 -> 0.00011 | E22: Section 3.2.2.2
A23: Absorbed Dose | B23: Dose | C23: Kp × Conc × T_hr × SA x TEF ÷ BW
B24: Central | C24: =C20*C12*C$9*C$7*C16/C$10 -> 0.004032 | D24: mg/kg | E24: Eq
B25: Lower | C25: =C21*C13*C$9*C$7*C17/C$10 -> 0.0004032 | D25: mg/kg | E25: Eq
B26: Upper | C26: =C22*C14*C$9*C$7*C18/C$10 -> 0.03168 | D26: mg/kg | E26: Eq

Sheet C03a
A1: Accidental Dermal Exposure Assessment Using First-Order Absorption, Worker, Surface Area, Hands, for 60 minute(s)
A2: Short Title | B2: Spill on hands, 1 hour | E2: DrmFOA
A3: Receptor | B3: Worker
A4: Duration | B4: Acute
A5: Surface Contaminated | B5: Surface Area, Hands
A6: Parameter/Assumption | B6: Code / Range | C6: Equation/ Value | D6: Units | E6: Reference/Designation
A7: Surface Area | B7: SA | C7: =A02a!$C$40 -> 840 | D7: cm2 | E7: U.S. EPA/ORD 1992
A8: Duration of Exposure | C8: 60 | D8: minutes | E8: Scenario parameter
B9: T | C9: =C8/60 -> 1 | D9: hours | E9: Eq
A10: Body weight | B10: BW | C10: =A02a!$C$39 -> 70 | D10: kg | E10: ICRP 1975
A11: Liquid adhering to skin | B11: L | C11: =A02d!$C$11 -> 0.008 | D11: mL/cm2 | E11: Mason and Johnson 1987
A12: Concentration in solution | B12: Conc
B13: Central | C13: ='A01'!FldConc_C -> 6 | D13: mg/mL | E13: Worksheet A01
B14: Lower | C14: ='A01'!FldConc_L -> 1.2 | E14: Worksheet A01
B15: Upper | C15: ='A01'!FldConc_U -> 24 | E15: Worksheet A01
A16: First-order dermal absorption rates | B16: ka
B17: Central | C17: ='B01'!$C$11 -> 0.0011 | D17: hour-1 | E17: Section 3.2.2.2
B18: Lower | C18: ='B01'!$C$12 -> 0.00044 | E18: Section 3.2.2.2
B19: Upper | C19: ='B01'!$C$13 -> 0.0029 | E19: Section 3.2.2.2
A20: Toxic Equivalency Factor for formulation: (See risk assessment if this has a value other than 1.) | B20: TEF
B21: Central | C21: ='A01'!C$37 -> 1 | D21: Unitless | E21: Worksheet A01
B22: Lower | C22: ='A01'!C$38 -> 1 | E22: Worksheet A01
B23: Upper | C23: ='A01'!C$39 -> 1 | E23: Worksheet A01
A24: Amount Deposited on Skin | B24: Amnt | C24: L × SA × Conc x TEF
B25: Central | C25: =$C$11*$C$7*C13*C21 -> 40.32 | D25: mg | E25: Eq
B26: Lower | C26: =$C$11*$C$7*C14*C22 -> 8.064 | E26: Eq
B27: Upper | C27: =$C$11*$C$7*C15*C23 -> 161.28 | E27: Eq
A28: Skin Loading | B28: Loading
B29: Central | C29: =C25/C$7 -> 0.048 | D29: mg/cm2 | E29: Eq
B30: Lower | C30: =C26/C$7 -> 0.0096 | E30: Eq
B31: Upper | C31: =C27/C$7 -> 0.192 | E31: Eq
A32: Proportion absorbed over period T | B32: Prop | C32: 1-exp(-ka T)
B33: Central | C33: =1-EXP(-C17 *$C$9) -> 0.001099395222 | D33: hour-1 | E33: Eq
B34: Lower | C34: =1-EXP(-C18 *$C$9) -> 0.0004399032142 | E34: Eq
B35: Upper | C35: =1-EXP(-C19 *$C$9) -> 0.002895799062 | E35: Eq
A36: Absorbed Dose | B36: Dose | C36: Amnt × Prop ÷ BW
B37: Central | C37: =C25*C33/$C$10 -> 0.0006332516477 | D37: mg/kg bw | E37: Eq
B38: Lower | C38: =C26*C34/$C$10 -> 5.067685028e-05 | E38: Eq
B39: Upper | C39: =C27*C35/$C$10 -> 0.006671921039 | E39: Eq

Sheet C03b
A1: Accidental Dermal Exposure Assessment Using First-Order Absorption, Worker, Surface Area, Lower legs, for 60 minute(s)
A2: Short Title | B2: Spill on lower legs, 1 hour | E2: DrmFOA
A3: Receptor | B3: Worker
A4: Duration | B4: Acute
A5: Surface Contaminated | B5: Surface Area, Lower legs
A6: Parameter/Assumption | B6: Code / Range | C6: Equation/ Value | D6: Units | E6: Reference/Designation
A7: Surface Area | B7: SA | C7: =A02a!$C$41 -> 2070 | D7: cm2 | E7: U.S. EPA/ORD 1992
A8: Duration of Exposure | C8: 60 | D8: minutes | E8: Scenario parameter
B9: T | C9: =C8/60 -> 1 | D9: hours | E9: Eq
A10: Body weight | B10: BW | C10: =A02a!$C$39 -> 70 | D10: kg | E10: ICRP 1975
A11: Liquid adhering to skin | B11: L | C11: =A02d!$C$11 -> 0.008 | D11: mL/cm2 | E11: Mason and Johnson 1987
A12: Concentration in solution | B12: Conc
B13: Central | C13: ='A01'!FldConc_C -> 6 | D13: mg/mL | E13: Worksheet A01
B14: Lower | C14: ='A01'!FldConc_L -> 1.2 | E14: Worksheet A01
B15: Upper | C15: ='A01'!FldConc_U -> 24 | E15: Worksheet A01
A16: First-order dermal absorption rates | B16: ka
B17: Central | C17: ='B01'!$C$11 -> 0.0011 | D17: hour-1 | E17: Section 3.2.2.2
B18: Lower | C18: ='B01'!$C$12 -> 0.00044 | E18: Section 3.2.2.2
B19: Upper | C19: ='B01'!$C$13 -> 0.0029 | E19: Section 3.2.2.2
A20: Toxic Equivalency Factor for formulation: (See risk assessment if this has a value other than 1.) | B20: TEF
B21: Central | C21: ='A01'!C$37 -> 1 | D21: Unitless | E21: Worksheet A01
B22: Lower | C22: ='A01'!C$38 -> 1 | E22: Worksheet A01
B23: Upper | C23: ='A01'!C$39 -> 1 | E23: Worksheet A01
A24: Amount Deposited on Skin | B24: Amnt | C24: L × SA × Conc x TEF
B25: Central | C25: =$C$11*$C$7*C13*C21 -> 99.36 | D25: mg | E25: Eq
B26: Lower | C26: =$C$11*$C$7*C14*C22 -> 19.872 | E26: Eq
B27: Upper | C27: =$C$11*$C$7*C15*C23 -> 397.44 | E27: Eq
A28: Skin Loading | B28: Loading
B29: Central | C29: =C25/C$7 -> 0.048 | D29: mg/cm2 | E29: Eq
B30: Lower | C30: =C26/C$7 -> 0.0096 | E30: Eq
B31: Upper | C31: =C27/C$7 -> 0.192 | E31: Eq
A32: Proportion absorbed over period T | B32: Prop | C32: 1-exp(-ka T)
B33: Central | C33: =1-EXP(-C17 *$C$9) -> 0.001099395222 | D33: hour-1 | E33: Eq
B34: Lower | C34: =1-EXP(-C18 *$C$9) -> 0.0004399032142 | E34: Eq
B35: Upper | C35: =1-EXP(-C19 *$C$9) -> 0.002895799062 | E35: Eq
A36: Absorbed Dose | B36: Dose | C36: Amnt × Prop ÷ BW
B37: Central | C37: =C25*C33/$C$10 -> 0.001560512989 | D37: mg/kg bw | E37: Eq
B38: Lower | C38: =C26*C34/$C$10 -> 0.0001248822382 | E38: Eq
B39: Upper | C39: =C27*C35/$C$10 -> 0.0164415197 | E39: Eq

Sheet D05
A1: Consumption of contaminated water by Child, Accidental Spill
A2: Short Title | B2: Accidental Spill | E2: WatAmntV6
A3: Receptor | B3: Child
A4: Duration | B4: Acute | E4: Scenario parameter
A5: Parameter/Assumption | B5: Code / Range | C5: Equation/ Value | D5: Units | E5: Reference/Designation
A6: Concentration in water | B6: ConcWat
B7: Central | C7: =B04b!Acute_C -> 2.271 | D7: mg/L | E7: ='B04b'!Acute_C
B8: Lower | C8: =B04b!Acute_L -> 0.09084 | E8: ='B04b'!Acute_L
B9: Upper | C9: =B04b!Acute_U -> 18.168 | E9: ='B04b'!Acute_U
A10: Receptor
A11: Amount of water consumed in one day | B11: Amnt
B12: Central | C12: ='A03'!$E$36 -> 1 | D12: liters/day | E12: U.S. EPA/ORD 1996
B13: Lower | C13: ='A03'!$E$37 -> 0.61 | E13: U.S. EPA/ORD 1996
B14: Upper | C14: ='A03'!$E$38 -> 1.5 | E14: U.S. EPA/ORD 1996
A15: Body weight | B15: BW | C15: =A02a!$C$28 -> 13.3 | D15: kg | E15: U.S. EPA/ORD 1996
A16: Dose | B16: Dose | C16: ConcWat × Amnt ÷ BW
B17: Central | C17: =C7*C12/C$15 -> 0.1707518797 | D17: mg/kg | E17: Eq
B18: Lower | C18: =C8*C13/C$15 -> 0.004166345865 | D18: mg/kg | E18: Eq
B19: Upper | C19: =C9*C14/C$15 -> 2.049022556 | D19: mg/kg | E19: Eq

Sheet D06
A1: Consumption of contaminated water by Child, Peak Conentrations
A2: Short Title | B2: Peak Conentrations | E2: WatAmntV6
A3: Receptor | B3: Child
A4: Duration | B4: Acute | E4: Scenario parameter
A5: Parameter/Assumption | B5: Code / Range | C5: Equation/ Value | D5: Units | E5: Reference/Designation
A6: Concentration in water | B6: ConcWat
B7: Central | C7: =B04a!Acute_C -> 0.1225641241 | D7: mg/L | E7: ='B04a'!Acute_C
B8: Lower | C8: =B04a!Acute_L -> 0.03676923722 | E8: ='B04a'!Acute_L
B9: Upper | C9: =B04a!Acute_U -> 0.3676923722 | E9: ='B04a'!Acute_U
A10: Receptor
A11: Amount of water consumed in one day | B11: Amnt
B12: Central | C12: ='A03'!$E$36 -> 1 | D12: liters/day | E12: U.S. EPA/ORD 1996
B13: Lower | C13: ='A03'!$E$37 -> 0.61 | E13: U.S. EPA/ORD 1996
B14: Upper | C14: ='A03'!$E$38 -> 1.5 | E14: U.S. EPA/ORD 1996
A15: Body weight | B15: BW | C15: =A02a!$C$28 -> 13.3 | D15: kg | E15: U.S. EPA/ORD 1996
A16: Dose | B16: Dose | C16: ConcWat × Amnt ÷ BW
B17: Central | C17: =C7*C12/C$15 -> 0.009215347673 | D17: mg/kg | E17: Eq
B18: Lower | C18: =C8*C13/C$15 -> 0.001686408624 | D18: mg/kg | E18: Eq
B19: Upper | C19: =C9*C14/C$15 -> 0.04146906453 | D19: mg/kg | E19: Eq

Sheet D07
A1: Consumption of contaminated water by Adult Male, Longer-term Conentrations
A2: Short Title | B2: Longer-term Conentrations | E2: WatAmntV6
A3: Receptor | B3: Adult Male
A4: Duration | B4: Chronic | E4: Scenario parameter
A5: Parameter/Assumption | B5: Code / Range | C5: Equation/ Value | D5: Units | E5: Reference/Designation
A6: Concentration in water | B6: ConcWat
B7: Central | C7: =B04a!Chronic_C -> 0.07879521339 | D7: mg/L | E7: ='B04a'!Chronic_C
B8: Lower | C8: =B04a!Chronic_L -> 0.01352001861 | E8: ='B04a'!Chronic_L
B9: Upper | C9: =B04a!Chronic_U -> 0.3107409377 | E9: ='B04a'!Chronic_U
A10: Receptor
A11: Amount of water consumed in one day | B11: Amnt
B12: Central | C12: ='A03'!$E$31 -> 2 | D12: liters/day | E12: U.S. EPA/ORD 1996
B13: Lower | C13: ='A03'!$E$32 -> 1.4 | E13: U.S. EPA/ORD 1996
B14: Upper | C14: ='A03'!$E$33 -> 2.4 | E14: U.S. EPA/ORD 1996
A15: Body weight | B15: BW | C15: =A02a!$C$8 -> 70 | D15: kg | E15: ICRP 1975
A16: Dose | B16: Dose | C16: ConcWat × Amnt ÷ BW
B17: Central | C17: =C7*C12/C$15 -> 0.002251291811 | D17: mg/kg | E17: Eq
B18: Lower | C18: =C8*C13/C$15 -> 0.0002704003722 | D18: mg/kg | E18: Eq
B19: Upper | C19: =C9*C14/C$15 -> 0.01065397501 | D19: mg/kg | E19: Eq

Sheet D08a
A1: Consumption of Contaminated Fish (Accidental Spill), Adult Male, acute exposure
A2: Short Title | B2: Fish consumption | E2: FishAmntV6
A3: Receptor | B3: Adult Male
A4: Duration | B4: acute
A5: Parameter/Assumption | B5: Code / Range | C5: Equation/ Value | D5: Units | E5: Reference/Designation
A6: Water
A7: Concentration in water | B7: ConcWat | C7: ApR × WCR
B8: Central | C8: =B04b!Acute_C -> 2.271 | D8: mg/L | E8: ='B04b'!Acute_C
B9: Lower | C9: =B04b!Acute_L -> 0.09084 | E9: ='B04b'!Acute_L
B10: Upper | C10: =B04b!Acute_U -> 18.168 | E10: ='B04b'!Acute_U
A11: Fish
A12: Bioconcentration factor | B12: BCF
B13: Central | C13: ='B01'!$C$4 -> 0.5 | D13: L/kg | E13: Section 3.2.3.5.
B14: Lower | C14: ='B01'!$C$4 -> 0.5 | E14: Section 3.2.3.5.
B15: Upper | C15: ='B01'!$C$4 -> 0.5 | E15: Section 3.2.3.5.
A16: Concentration in fish | B16: ConcFish | C16: ConcWat × BCF
B17: Central | C17: =C8*C13 -> 1.1355 | D17: mg/kg | E17: Eq
B18: Lower | C18: =C9*C14 -> 0.04542 | E18: Eq
B19: Upper | C19: =C10*C15 -> 9.084 | E19: Eq
A20: Receptor
A21: Amount of fish consumed | B21: Amnt
B22: Central | C22: ='A03'!$E$20 -> 0.158 | D22: kg/day | E22: Ruffle et al. 1994
B23: Lower | C23: ='A03'!$E$20 -> 0.158 | E23: Ruffle et al. 1994
B24: Upper | C24: ='A03'!$E$20 -> 0.158 | E24: Ruffle et al. 1994
A25: Toxic Equivalency Factor for formulation: (See risk assessment if this has a value other than 1.) | B25: TEF
B26: Central | C26: ='A01'!C$37 -> 1 | D26: Unitless | E26: Worksheet A01
B27: Lower | C27: ='A01'!C$38 -> 1 | E27: Worksheet A01
B28: Upper | C28: ='A01'!C$39 -> 1 | E28: Worksheet A01
A29: Body weight | B29: BW | C29: =A02a!$C$8 -> 70 | D29: kg | E29: ICRP 1975
A30: Dose | B30: Dose | C30: ConcFish× Amnt x TEF ÷ BW
B31: Central | C31: =C17*C22*C26/C$29 -> 0.002562985714 | D31: mg/kg | E31: Eq
B32: Lower | C32: =C18*C23*C27/C$29 -> 0.0001025194286 | D32: mg/kg | E32: Eq
B33: Upper | C33: =C19*C24*C28/C$29 -> 0.02050388571 | D33: mg/kg | E33: Eq
E34: FishAmntV6

Sheet D08b
A1: Consumption of Contaminated Fish (Accidental Spill), Subsistence Populations, acute exposure
A2: Short Title | B2: Fish consumption | E2: FishAmntV6
A3: Receptor | B3: Subsistence Populations
A4: Duration | B4: acute
A5: Parameter/Assumption | B5: Code / Range | C5: Equation/ Value | D5: Units | E5: Reference/Designation
A6: Water
A7: Concentration in water | B7: ConcWat | C7: ApR × WCR
B8: Central | C8: =B04b!Acute_C -> 2.271 | D8: mg/L | E8: ='B04b'!Acute_C
B9: Lower | C9: =B04b!Acute_L -> 0.09084 | E9: ='B04b'!Acute_L
B10: Upper | C10: =B04b!Acute_U -> 18.168 | E10: ='B04b'!Acute_U
A11: Fish
A12: Bioconcentration factor | B12: BCF
B13: Central | C13: ='B01'!$C$4 -> 0.5 | D13: L/kg | E13: Section 3.2.3.5.
B14: Lower | C14: ='B01'!$C$4 -> 0.5 | E14: Section 3.2.3.5.
B15: Upper | C15: ='B01'!$C$4 -> 0.5 | E15: Section 3.2.3.5.
A16: Concentration in fish | B16: ConcFish | C16: ConcWat × BCF
B17: Central | C17: =C8*C13 -> 1.1355 | D17: mg/kg | E17: Eq
B18: Lower | C18: =C9*C14 -> 0.04542 | E18: Eq
B19: Upper | C19: =C10*C15 -> 9.084 | E19: Eq
A20: Receptor
A21: Amount of fish consumed | B21: Amnt
B22: Central | C22: ='A03'!$E$35 -> 0.77 | D22: kg/day | E22: U.S. EPA/ORD 1996
B23: Lower | C23: ='A03'!$E$35 -> 0.77 | E23: U.S. EPA/ORD 1996
B24: Upper | C24: ='A03'!$E$35 -> 0.77 | E24: U.S. EPA/ORD 1996
A25: Toxic Equivalency Factor for formulation: (See risk assessment if this has a value other than 1.) | B25: TEF
B26: Central | C26: ='A01'!C$37 -> 1 | D26: Unitless | E26: Worksheet A01
B27: Lower | C27: ='A01'!C$38 -> 1 | E27: Worksheet A01
B28: Upper | C28: ='A01'!C$39 -> 1 | E28: Worksheet A01
A29: Body weight | B29: BW | C29: =A02a!$C$9 -> 70 | D29: kg | E29: ICRP 1975
A30: Dose | B30: Dose | C30: ConcFish× Amnt x TEF ÷ BW
B31: Central | C31: =C17*C22*C26/C$29 -> 0.0124905 | D31: mg/kg | E31: Eq
B32: Lower | C32: =C18*C23*C27/C$29 -> 0.00049962 | D32: mg/kg | E32: Eq
B33: Upper | C33: =C19*C24*C28/C$29 -> 0.099924 | D33: mg/kg | E33: Eq
E34: FishAmntV6

Sheet D09a
A1: Consumption of Contaminated Fish (Longer-term), Adult Male, chronic exposure
A2: Short Title | B2: Fish consumption | E2: FishAmntV6
A3: Receptor | B3: Adult Male
A4: Duration | B4: chronic
A5: Parameter/Assumption | B5: Code / Range | C5: Equation/ Value | D5: Units | E5: Reference/Designation
A6: Water
A7: Concentration in water | B7: ConcWat | C7: ApR × WCR
B8: Central | C8: =B04a!Chronic_C -> 0.07879521339 | D8: mg/L | E8: ='B04a'!Chronic_C
B9: Lower | C9: =B04a!Chronic_L -> 0.01352001861 | E9: ='B04a'!Chronic_L
B10: Upper | C10: =B04a!Chronic_U -> 0.3107409377 | E10: ='B04a'!Chronic_U
A11: Fish
A12: Bioconcentration factor | B12: BCF
B13: Central | C13: ='B01'!$C$5 -> 0.5 | D13: L/kg | E13: Section 3.2.3.5.
B14: Lower | C14: ='B01'!$C$5 -> 0.5 | E14: Section 3.2.3.5.
B15: Upper | C15: ='B01'!$C$5 -> 0.5 | E15: Section 3.2.3.5.
A16: Concentration in fish | B16: ConcFish | C16: ConcWat × BCF
B17: Central | C17: =C8*C13 -> 0.03939760669 | D17: mg/kg | E17: Eq
B18: Lower | C18: =C9*C14 -> 0.006760009304 | E18: Eq
B19: Upper | C19: =C10*C15 -> 0.1553704688 | E19: Eq
A20: Receptor
A21: Amount of fish consumed | B21: Amnt
B22: Central | C22: ='A03'!$E$19 -> 0.01 | D22: kg/day | E22: U.S. EPA/ORD 1996
B23: Lower | C23: ='A03'!$E$19 -> 0.01 | E23: U.S. EPA/ORD 1996
B24: Upper | C24: ='A03'!$E$19 -> 0.01 | E24: U.S. EPA/ORD 1996
A25: Toxic Equivalency Factor for formulation: (See risk assessment if this has a value other than 1.) | B25: TEF
B26: Central | C26: ='A01'!C$37 -> 1 | D26: Unitless | E26: Worksheet A01
B27: Lower | C27: ='A01'!C$38 -> 1 | E27: Worksheet A01
B28: Upper | C28: ='A01'!C$39 -> 1 | E28: Worksheet A01
A29: Body weight | B29: BW | C29: =A02a!$C$8 -> 70 | D29: kg | E29: ICRP 1975
A30: Dose | B30: Dose | C30: ConcFish× Amnt x TEF ÷ BW
B31: Central | C31: =C17*C22*C26/C$29 -> 5.628229528e-06 | D31: mg/kg | E31: Eq
B32: Lower | C32: =C18*C23*C27/C$29 -> 9.657156149e-07 | D32: mg/kg | E32: Eq
B33: Upper | C33: =C19*C24*C28/C$29 -> 2.219578126e-05 | D33: mg/kg | E33: Eq
E34: FishAmntV6

Sheet D09b
A1: Consumption of Contaminated Fish (Longer-term), Subsistence Populations, chronic exposure
A2: Short Title | B2: Fish consumption | E2: FishAmntV6
A3: Receptor | B3: Subsistence Populations
A4: Duration | B4: chronic
A5: Parameter/Assumption | B5: Code / Range | C5: Equation/ Value | D5: Units | E5: Reference/Designation
A6: Water
A7: Concentration in water | B7: ConcWat | C7: ApR × WCR
B8: Central | C8: =B04a!Chronic_C -> 0.07879521339 | D8: mg/L | E8: ='B04a'!Chronic_C
B9: Lower | C9: =B04a!Chronic_L -> 0.01352001861 | E9: ='B04a'!Chronic_L
B10: Upper | C10: =B04a!Chronic_U -> 0.3107409377 | E10: ='B04a'!Chronic_U
A11: Fish
A12: Bioconcentration factor | B12: BCF
B13: Central | C13: ='B01'!$C$5 -> 0.5 | D13: L/kg | E13: Section 3.2.3.5.
B14: Lower | C14: ='B01'!$C$5 -> 0.5 | E14: Section 3.2.3.5.
B15: Upper | C15: ='B01'!$C$5 -> 0.5 | E15: Section 3.2.3.5.
A16: Concentration in fish | B16: ConcFish | C16: ConcWat × BCF
B17: Central | C17: =C8*C13 -> 0.03939760669 | D17: mg/kg | E17: Eq
B18: Lower | C18: =C9*C14 -> 0.006760009304 | E18: Eq
B19: Upper | C19: =C10*C15 -> 0.1553704688 | E19: Eq
A20: Receptor
A21: Amount of fish consumed | B21: Amnt
B22: Central | C22: ='A03'!$E$34 -> 0.081 | D22: kg/day | E22: U.S. EPA/ORD 1996
B23: Lower | C23: ='A03'!$E$34 -> 0.081 | E23: U.S. EPA/ORD 1996
B24: Upper | C24: ='A03'!$E$34 -> 0.081 | E24: U.S. EPA/ORD 1996
A25: Toxic Equivalency Factor for formulation: (See risk assessment if this has a value other than 1.) | B25: TEF
B26: Central | C26: ='A01'!C$37 -> 1 | D26: Unitless | E26: Worksheet A01
B27: Lower | C27: ='A01'!C$38 -> 1 | E27: Worksheet A01
B28: Upper | C28: ='A01'!C$39 -> 1 | E28: Worksheet A01
A29: Body weight | B29: BW | C29: =A02a!$C$9 -> 70 | D29: kg | E29: ICRP 1975
A30: Dose | B30: Dose | C30: ConcFish× Amnt x TEF ÷ BW
B31: Central | C31: =C17*C22*C26/C$29 -> 4.558865918e-05 | D31: mg/kg | E31: Eq
B32: Lower | C32: =C18*C23*C27/C$29 -> 7.82229648e-06 | D32: mg/kg | E32: Eq
B33: Upper | C33: =C19*C24*C28/C$29 -> 0.0001797858282 | D33: mg/kg | E33: Eq
E34: FishAmntV6

Sheet D09c
A1: Consumption of Contaminated Fish (Peak Exposure), Adult Male, acute exposure
A2: Short Title | B2: Fish consumption | E2: FishAmntV6
A3: Receptor | B3: Adult Male
A4: Duration | B4: acute
A5: Parameter/Assumption | B5: Code / Range | C5: Equation/ Value | D5: Units | E5: Reference/Designation
A6: Water
A7: Concentration in water | B7: ConcWat | C7: ApR × WCR
B8: Central | C8: =B04a!Acute_C -> 0.1225641241 | D8: mg/L | E8: ='B04a'!Acute_C
B9: Lower | C9: =B04a!Acute_L -> 0.03676923722 | E9: ='B04a'!Acute_L
B10: Upper | C10: =B04a!Acute_U -> 0.3676923722 | E10: ='B04a'!Acute_U
A11: Fish
A12: Bioconcentration factor | B12: BCF
B13: Central | C13: ='B01'!$C$4 -> 0.5 | D13: L/kg | E13: Section 3.2.3.5.
B14: Lower | C14: ='B01'!$C$4 -> 0.5 | E14: Section 3.2.3.5.
B15: Upper | C15: ='B01'!$C$4 -> 0.5 | E15: Section 3.2.3.5.
A16: Concentration in fish | B16: ConcFish | C16: ConcWat × BCF
B17: Central | C17: =C8*C13 -> 0.06128206203 | D17: mg/kg | E17: Eq
B18: Lower | C18: =C9*C14 -> 0.01838461861 | E18: Eq
B19: Upper | C19: =C10*C15 -> 0.1838461861 | E19: Eq
A20: Receptor
A21: Amount of fish consumed | B21: Amnt
B22: Central | C22: ='A03'!$E$20 -> 0.158 | D22: kg/day | E22: Ruffle et al. 1994
B23: Lower | C23: ='A03'!$E$20 -> 0.158 | E23: Ruffle et al. 1994
B24: Upper | C24: ='A03'!$E$20 -> 0.158 | E24: Ruffle et al. 1994
A25: Toxic Equivalency Factor for formulation: (See risk assessment if this has a value other than 1.) | B25: TEF
B26: Central | C26: ='A01'!C$37 -> 1 | D26: Unitless | E26: Worksheet A01
B27: Lower | C27: ='A01'!C$38 -> 1 | E27: Worksheet A01
B28: Upper | C28: ='A01'!C$39 -> 1 | E28: Worksheet A01
A29: Body weight | B29: BW | C29: =A02a!$C$8 -> 70 | D29: kg | E29: ICRP 1975
A30: Dose | B30: Dose | C30: ConcFish× Amnt x TEF ÷ BW
B31: Central | C31: =C17*C22*C26/C$29 -> 0.0001383223686 | D31: mg/kg | E31: Eq
B32: Lower | C32: =C18*C23*C27/C$29 -> 4.149671057e-05 | D32: mg/kg | E32: Eq
B33: Upper | C33: =C19*C24*C28/C$29 -> 0.0004149671057 | D33: mg/kg | E33: Eq
E34: FishAmntV6

Sheet D09d
A1: Consumption of Contaminated Fish (Peak Exposure), Subsistence Populations, acute exposure
A2: Short Title | B2: Fish consumption | E2: FishAmntV6
A3: Receptor | B3: Subsistence Populations
A4: Duration | B4: acute
A5: Parameter/Assumption | B5: Code / Range | C5: Equation/ Value | D5: Units | E5: Reference/Designation
A6: Water
A7: Concentration in water | B7: ConcWat | C7: ApR × WCR
B8: Central | C8: =B04a!Acute_C -> 0.1225641241 | D8: mg/L | E8: ='B04a'!Acute_C
B9: Lower | C9: =B04a!Acute_L -> 0.03676923722 | E9: ='B04a'!Acute_L
B10: Upper | C10: =B04a!Acute_U -> 0.3676923722 | E10: ='B04a'!Acute_U
A11: Fish
A12: Bioconcentration factor | B12: BCF
B13: Central | C13: ='B01'!$C$4 -> 0.5 | D13: L/kg | E13: Section 3.2.3.5.
B14: Lower | C14: ='B01'!$C$4 -> 0.5 | E14: Section 3.2.3.5.
B15: Upper | C15: ='B01'!$C$4 -> 0.5 | E15: Section 3.2.3.5.
A16: Concentration in fish | B16: ConcFish | C16: ConcWat × BCF
B17: Central | C17: =C8*C13 -> 0.06128206203 | D17: mg/kg | E17: Eq
B18: Lower | C18: =C9*C14 -> 0.01838461861 | E18: Eq
B19: Upper | C19: =C10*C15 -> 0.1838461861 | E19: Eq
A20: Receptor
A21: Amount of fish consumed | B21: Amnt
B22: Central | C22: ='A03'!$E$35 -> 0.77 | D22: kg/day | E22: U.S. EPA/ORD 1996
B23: Lower | C23: ='A03'!$E$35 -> 0.77 | E23: U.S. EPA/ORD 1996
B24: Upper | C24: ='A03'!$E$35 -> 0.77 | E24: U.S. EPA/ORD 1996
A25: Toxic Equivalency Factor for formulation: (See risk assessment if this has a value other than 1.) | B25: TEF
B26: Central | C26: ='A01'!C$37 -> 1 | D26: Unitless | E26: Worksheet A01
B27: Lower | C27: ='A01'!C$38 -> 1 | E27: Worksheet A01
B28: Upper | C28: ='A01'!C$39 -> 1 | E28: Worksheet A01
A29: Body weight | B29: BW | C29: =A02a!$C$9 -> 70 | D29: kg | E29: ICRP 1975
A30: Dose | B30: Dose | C30: ConcFish× Amnt x TEF ÷ BW
B31: Central | C31: =C17*C22*C26/C$29 -> 0.0006741026823 | D31: mg/kg | E31: Eq
B32: Lower | C32: =C18*C23*C27/C$29 -> 0.0002022308047 | D32: mg/kg | E32: Eq
B33: Upper | C33: =C19*C24*C28/C$29 -> 0.002022308047 | D33: mg/kg | E33: Eq
E34: FishAmntV6

Sheet D11
A1: Swimming Exposure Assessment Using Zero-Order Absorption, Adult Female, Surface Area, Whole body, for 60 minute(s)
A2: Short Title | B2: Swimming | E2: DrmZrSwm
A3: Receptor | B3: Adult Female
A4: Duration | B4: Acute
A5: Surface Contaminated | B5: Surface Area, Whole body
A6: Parameter/Assumption | B6: Code / Range | C6: Equation/ Value | D6: Units | E6: Reference/Designation
A7: Application Rate | B7: ApRt | C7: ='A01'!ApRt_C -> 1 | D7: lb/acre | E7: Worksheet A01
A8: Surface Area | B8: SA | C8: =A02a!$C$7 -> 16900 | D8: cm2 | E8: U.S. EPA/ORD 1997
A9: Duration of Exposure | B9: T_min | C9: ='A01'!C$31 -> 60 | D9: minutes | E9: Worksheet A01
B10: T_hr | C10: =C9/60 -> 1 | D10: hours | E10: Eq
A11: Body weight | B11: BW | C11: =A02a!$C$4 -> 64 | D11: kg | E11: U.S. EPA/ORD 1985
A12: Water contamination rate | B12: WCR
B13: Central | C13: =B04a!Acute_C -> 0.1225641241 | D13: mg/L per lb/acre | E13: Worksheet B04a
B14: Lower | C14: =B04a!Acute_L -> 0.03676923722 | E14: Worksheet B04a
B15: Upper | C15: =B04a!Acute_U -> 0.3676923722 | E15: Worksheet B04a
A16: Concentration in water in mg/mL | B16: ConcWat | C16: ApR × WCR / 1000
B17: Central | C17: =C$7*C13/1000 -> 0.0001225641241 | D17: mg/mL | E17: Eq
B18: Lower | C18: =C$7*C14/1000 -> 3.676923722e-05 | E18: Eq
B19: Upper | C19: =C$7*C15/1000 -> 0.0003676923722 | E19: Eq
A20: Toxic Equivalency Factor for formulation: (See risk assessment if this has a value other than 1.) | B20: TEF
B21: Central | C21: ='A01'!C$37 -> 1 | D21: Unitless | E21: Worksheet A01
B22: Lower | C22: ='A01'!C$38 -> 1 | E22: Worksheet A01
B23: Upper | C23: ='A01'!C$39 -> 1 | E23: Worksheet A01
A24: Dermal permeability | B24: Kp
B25: Central | C25: ='B01'!$C$14 -> 5.6e-05 | D25: cm/hour | E25: Section 3.2.2.2
B26: Lower | C26: ='B01'!$C$15 -> 2.8e-05 | E26: Section 3.2.2.2
B27: Upper | C27: ='B01'!$C$16 -> 0.00011 | E27: Section 3.2.2.2
A28: Absorbed Dose | B28: Dose | C28: Kp × Conc × T_hr × SA × TEF ÷ BW
B29: Central | C29: =C25*C17*C$10*C$8*C21/C$11 -> 1.812416984e-06 | D29: mg/kg
B30: Lower | C30: =C26*C18*C$10*C$8*C22/C$11 -> 2.718625477e-07 | D30: mg/kg
B31: Upper | C31: =C27*C19*C$10*C$8*C23/C$11 -> 1.068031437e-05 | D31: mg/kg

Sheet E01
A1: Worksheet E01: Summary of Worker Exposure Assessments
A2: Application Rate: | B2: ='A01'!ApRt_C -> 1 | C2: lb a.e./acre | F2: E01aV5-1Wrkr
A3: Scenario | B3: Receptor | C3: mg/kg/day or mg/kg/event | F3: Detail Worksheet
C4: Central | D4: Lower | E4: Upper
A5: Accidental/Incidental Exposures
A6: Contaminated Gloves, 1 min. | B6: Worker | C6: ='C02a'!Dose_C -> 6.72e-05 | D6: ='C02a'!Dose_L -> 6.72e-06 | E6: ='C02a'!Dose_U -> 0.000528 | F6: C02a
A7: Contaminated Gloves, 1 hour | B7: Worker | C7: ='C02b'!Dose_C -> 0.004032 | D7: ='C02b'!Dose_L -> 0.0004032 | E7: ='C02b'!Dose_U -> 0.03168 | F7: C02b
A8: Spill on Hands, 1 hour | B8: Worker | C8: ='C03a'!Dose_C -> 0.0006332516477 | D8: ='C03a'!Dose_L -> 5.067685028e-05 | E8: ='C03a'!Dose_U -> 0.006671921039 | F8: C03a
A9: Spill on lower legs, 1 hour | B9: Worker | C9: ='C03b'!Dose_C -> 0.001560512989 | D9: ='C03b'!Dose_L -> 0.0001248822382 | E9: ='C03b'!Dose_U -> 0.0164415197 | F9: C03b
A10: General Exposures
B11: Worker | C11: ='C01'!Dose_C -> 0.009 | D11: ='C01'!Dose_L -> 0.004 | E11: ='C01'!Dose_U -> 0.02 | F11: C01

Sheet E02
A1: Worksheet E01: Summary of Worker Hazard Quotients (Toxicity)
A2: Application Rate: | B2: ='A01'!ApRt_C -> 1 | C2: lb a.e./acre | F2: E01aV5-1Wrkr
A3: Scenario | B3: Receptor | C3: Hazard Quotients | F3: Toxicity Value
C4: Central | D4: Lower | E4: Upper
A5: Accidental/Incidental Exposures
A6: Contaminated Gloves, 1 min. | B6: Worker | C6: ='C02a'!$C$24/$F$6 -> 2.688e-05 | D6: ='C02a'!$C$25/$F$6 -> 2.688e-06 | E6: ='C02a'!$C$26/$F$6 -> 0.0002112 | F6: ='B02'!$E$4 -> 2.5
A7: Contaminated Gloves, 1 hour | B7: Worker | C7: ='C02b'!$C$24/$F$7 -> 0.0016128 | D7: ='C02b'!$C$25/$F$7 -> 0.00016128 | E7: ='C02b'!$C$26/$F$7 -> 0.012672 | F7: ='B02'!$E$4 -> 2.5
A8: Spill on Hands, 1 hour | B8: Worker | C8: ='C03a'!$C$37/$F$8 -> 0.0002533006591 | D8: ='C03a'!$C$38/$F$8 -> 2.027074011e-05 | E8: ='C03a'!$C$39/$F$8 -> 0.002668768415 | F8: ='B02'!$E$4 -> 2.5
A9: Spill on lower legs, 1 hour | B9: Worker | C9: ='C03b'!$C$37/$F$9 -> 0.0006242051956 | D9: ='C03b'!$C$38/$F$9 -> 4.995289527e-05 | E9: ='C03b'!$C$39/$F$9 -> 0.006576607881 | F9: ='B02'!$E$4 -> 2.5
A10: General Exposures
B11: Worker | C11: ='C01'!$C$22/$F$11 -> 0.0036 | D11: ='C01'!$C$23/$F$11 -> 0.0016 | E11: ='C01'!$C$24/$F$11 -> 0.008 | F11: ='B02'!$E$5 -> 2.5

Sheet E03
A1: Worksheet E03: Summary of Exposure Assessments for the General Public
A2: Application Rate: | B2: ='A01'!ApRt_C -> 1 | C2: lb a.e./acre | F2: E03aV6
A3: Scenario | B3: Receptor | C3: mg/kg/day or mg/kg/event | F3: Detail Worksheet
C4: Central | D4: Lower | E4: Upper
A5: Accidental Acute Exposures (dose in mg/kg/event)
A6: Direct Spray of Child, whole body | B6: Child | C6: No Exposure Assessment | F6: D01a | I6: Spray: Child
A7: Direct Spray of Woman, feet and lower legs | B7: Adult Female | C7: No Exposure Assessment | F7: D01b | I7: Spray: Woman
A8: Water consumption (spill) | B8: Child | C8: ='D05'!Dose_C -> 0.1707518797 | D8: ='D05'!Dose_L -> 0.004166345865 | E8: ='D05'!Dose_U -> 2.049022556 | F8: D05 | I8: Water: Child
A9: Fish consumption (spill) | B9: Adult Male | C9: =D08a!Dose_C -> 0.002562985714 | D9: =D08a!Dose_L -> 0.0001025194286 | E9: =D08a!Dose_U -> 0.02050388571 | F9: D08a | I9: Fish: Man
A10: Fish consumption (spill) | B10: Subsistence Populations | C10: =D08b!Dose_C -> 0.0124905 | D10: =D08b!Dose_L -> 0.00049962 | E10: =D08b!Dose_U -> 0.099924 | F10: D08b | I10: Fish: Subsist
A11: Non-Accidental Acute Exposures (dose in mg/kg/event)
A12: Vegetation Contact, shorts and T-shirt | B12: Adult Female | C12: No Exposure Assessment | F12: D02 | I12: Contact: Female
A13: Contaminated Fruit | B13: Adult Female | C13: No Exposure Assessment | F13: D03a | I13: Fruit: Female
A14: Contaminated Vegetation | B14: Adult Female | C14: No Exposure Assessment | F14: D03b | I14: Veg: Female
A15: Swimming, one hour | B15: Adult Female | C15: ='D11'!Dose_C -> 1.812416984e-06 | D15: ='D11'!Dose_L -> 2.718625477e-07 | E15: ='D11'!Dose_U -> 1.068031437e-05 | F15: D11 | I15: Swim: Female
A16: Water consumption | B16: Child | C16: ='D06'!Dose_C -> 0.009215347673 | D16: ='D06'!Dose_L -> 0.001686408624 | E16: ='D06'!Dose_U -> 0.04146906453 | F16: D06 | I16: Water: Child
A17: Fish consumption | B17: Adult Male | C17: =D09c!Dose_C -> 0.0001383223686 | D17: =D09c!Dose_L -> 4.149671057e-05 | E17: =D09c!Dose_U -> 0.0004149671057 | F17: D09c | I17: Fish: Male
A18: Fish consumption | B18: Subsistence Populations | C18: =D09d!Dose_C -> 0.0006741026823 | D18: =D09d!Dose_L -> 0.0002022308047 | E18: =D09d!Dose_U -> 0.002022308047 | F18: D09d | I18: Fish: Subsist
A19: Chronic/Longer Term Exposures (dose in mg/kg/day)
A20: Contaminated Fruit | B20: Adult Female | C20: No Exposure Assessment | F20: D04a | I20: Fruit: Female
A21: Contaminated Vegetation | B21: Adult Female | C21: No Exposure Assessment | F21: D04b | I21: Veg: Female
A22: Water consumption | B22: Adult Male | C22: ='D07'!Dose_C -> 0.002251291811 | D22: ='D07'!Dose_L -> 0.0002704003722 | E22: ='D07'!Dose_U -> 0.01065397501 | F22: D07 | I22: Water: Male
A23: Fish consumption | B23: Adult Male | C23: =D09a!Dose_C -> 5.628229528e-06 | D23: =D09a!Dose_L -> 9.657156149e-07 | E23: =D09a!Dose_U -> 2.219578126e-05 | F23: D09a | I23: Fish: Male
A24: Fish consumption | B24: Subsistence Populations | C24: =D09b!Dose_C -> 4.558865918e-05 | D24: =D09b!Dose_L -> 7.82229648e-06 | E24: =D09b!Dose_U -> 0.0001797858282 | F24: D09b | I24: Fish: Subsist

Sheet E04
A1: Worksheet E03: Summary of Hazard Quotients (Toxicity) for the General Public
A2: Application Rate: | B2: ='A01'!ApRt_C -> 1 | C2: lb a.e./acre | F2: E03aV6
A3: Scenario | B3: Receptor | C3: Hazard Quotients | F3: Toxicity Value
C4: Central | D4: Lower | E4: Upper
A5: Accidental Acute Exposures (dose in mg/kg/event)
A6: Direct Spray of Child, whole body | B6: Child | C6: No exposure assessment. | I6: Spray: Child
A7: Direct Spray of Woman, feet and lower legs | B7: Adult Female | C7: No exposure assessment. | I7: Spray: Woman
A8: Water consumption (spill) | B8: Child | C8: ='D05'!$C$17/$F$8 -> 0.06830075188 | D8: ='D05'!$C$18/$F$8 -> 0.001666538346 | E8: ='D05'!$C$19/$F$8 -> 0.8196090226 | F8: ='B02'!$E$4 -> 2.5 | I8: Water: Child
A9: Fish consumption (spill) | B9: Adult Male | C9: =D08a!$C$31/$F$9 -> 0.001025194286 | D9: =D08a!$C$32/$F$9 -> 4.100777143e-05 | E9: =D08a!$C$33/$F$9 -> 0.008201554286 | F9: ='B02'!$E$4 -> 2.5 | I9: Fish: Man
A10: Fish consumption (spill) | B10: Subsistence Populations | C10: =D08b!$C$31/$F$10 -> 0.0049962 | D10: =D08b!$C$32/$F$10 -> 0.000199848 | E10: =D08b!$C$33/$F$10 -> 0.0399696 | F10: ='B02'!$E$4 -> 2.5 | I10: Fish: Subsist
A11: Non-Accidental Acute Exposures (dose in mg/kg/event)
A12: Vegetation Contact, shorts and T-shirt | B12: Adult Female | C12: No exposure assessment. | I12: Contact: Female
A13: Contaminated Fruit | B13: Adult Female | C13: No exposure assessment. | I13: Fruit: Female
A14: Contaminated Vegetation | B14: Adult Female | C14: No exposure assessment. | I14: Veg: Female
A15: Swimming, one hour | B15: Adult Female | C15: ='D11'!$C$29/$F$15 -> 7.249667938e-07 | D15: ='D11'!$C$30/$F$15 -> 1.087450191e-07 | E15: ='D11'!$C$31/$F$15 -> 4.272125749e-06 | F15: ='B02'!$E$4 -> 2.5 | I15: Swim: Female
A16: Water consumption | B16: Child | C16: ='D06'!$C$17/$F$16 -> 0.003686139069 | D16: ='D06'!$C$18/$F$16 -> 0.0006745634497 | E16: ='D06'!$C$19/$F$16 -> 0.01658762581 | F16: ='B02'!$E$4 -> 2.5 | I16: Water: Child
A17: Fish consumption | B17: Adult Male | C17: =D09c!$C$31/$F$17 -> 5.532894743e-05 | D17: =D09c!$C$32/$F$17 -> 1.659868423e-05 | E17: =D09c!$C$33/$F$17 -> 0.0001659868423 | F17: ='B02'!$E$4 -> 2.5 | I17: Fish: Male
A18: Fish consumption | B18: Subsistence Populations | C18: =D09d!$C$31/$F$18 -> 0.0002696410729 | D18: =D09d!$C$32/$F$18 -> 8.089232188e-05 | E18: =D09d!$C$33/$F$18 -> 0.0008089232188 | F18: ='B02'!$E$4 -> 2.5 | I18: Fish: Subsist
A19: Chronic/Longer Term Exposures (dose in mg/kg/day)
A20: Contaminated Fruit | B20: Adult Female | C20: No exposure assessment. | I20: Fruit: Female
A21: Contaminated Vegetation | B21: Adult Female | C21: No exposure assessment. | I21: Veg: Female
A22: Water consumption | B22: Adult Male | C22: ='D07'!$C$17/$F$22 -> 0.0009005167245 | D22: ='D07'!$C$18/$F$22 -> 0.0001081601489 | E22: ='D07'!$C$19/$F$22 -> 0.004261590002 | F22: ='B02'!$E$5 -> 2.5 | I22: Water: Male
A23: Fish consumption | B23: Adult Male | C23: =D09a!$C$31/$F$23 -> 2.251291811e-06 | D23: =D09a!$C$32/$F$23 -> 3.862862459e-07 | E23: =D09a!$C$33/$F$23 -> 8.878312505e-06 | F23: ='B02'!$E$5 -> 2.5 | I23: Fish: Male
A24: Fish consumption | B24: Subsistence Populations | C24: =D09b!$C$31/$F$24 -> 1.823546367e-05 | D24: =D09b!$C$32/$F$24 -> 3.128918592e-06 | E24: =D09b!$C$33/$F$24 -> 7.191433129e-05 | F24: ='B02'!$E$5 -> 2.5 | I24: Fish: Subsist

Sheet F02a
A1: Consumption of contaminated water by Mammal, small, Accidental Spill
A2: Short Title | B2: Accidental Spill | E2: WatAlloV6
A3: Receptor | B3: Mammal, small
A4: Duration | B4: Acute | E4: Scenario parameter
A5: Parameter/Assumption | B5: Code / Range | C5: Equation/ Value | D5: Units | E5: Reference/Designation
A6: Concentration in water | B6: ConcWat
B7: Central | C7: =B04b!Acute_C -> 2.271 | D7: mg/L | E7: ='B04b'!Acute_C
B8: Lower | C8: =B04b!Acute_L -> 0.09084 | E8: ='B04b'!Acute_L
B9: Upper | C9: =B04b!Acute_U -> 18.168 | E9: ='B04b'!Acute_U
A10: Receptor
A11: Body weight | B11: BW | C11: =A02b!$C$71 -> 0.02 | D11: kg | E11: Default
A12: Allometric coefficients forwater consumption per day in liters and BW in kilograms
B13: alpha | C13: =A02b!$C$79 -> 0.099 | E13: U.S. EPA/ORD 1993
B14: beta | C14: =A02b!$C$80 -> 0.9 | E14: U.S. EPA/ORD 1993
A15: Amount of water consumed per day | C15: Amnt = alpha BW beta
B16: Amnt | C16: =C13*(C11^C14) -> 0.002927940121 | D16: liters | E16: Eq
A17: Absorbed Dose | B17: Dose | C17: ConcWat × Amnt ÷ BW
B18: Central | C18: =C7*C$16/C$11 -> 0.3324676007 | D18: mg/kg | E18: Eq
B19: Lower | C19: =C8*C$16/C$11 -> 0.01329870403 | D19: mg/kg | E19: Eq
B20: Upper | C20: =C9*C$16/C$11 -> 2.659740805 | D20: mg/kg | E20: Eq

Sheet F02b
A1: Consumption of contaminated water by Mammal, 400 g, Accidental Spill
A2: Short Title | B2: Accidental Spill | E2: WatAlloV6
A3: Receptor | B3: Mammal, 400 g
A4: Duration | B4: Acute | E4: Scenario parameter
A5: Parameter/Assumption | B5: Code / Range | C5: Equation/ Value | D5: Units | E5: Reference/Designation
A6: Concentration in water | B6: ConcWat
B7: Central | C7: =B04b!Acute_C -> 2.271 | D7: mg/L | E7: ='B04b'!Acute_C
B8: Lower | C8: =B04b!Acute_L -> 0.09084 | E8: ='B04b'!Acute_L
B9: Upper | C9: =B04b!Acute_U -> 18.168 | E9: ='B04b'!Acute_U
A10: Receptor
A11: Body weight | B11: BW | C11: =A02b!$C$40 -> 0.4 | D11: kg | E11: Default
A12: Allometric coefficients forwater consumption per day in liters and BW in kilograms
B13: alpha | C13: =A02b!$C$45 -> 0.099 | E13: U.S. EPA/ORD 1993
B14: beta | C14: =A02b!$C$46 -> 0.9 | E14: U.S. EPA/ORD 1993
A15: Amount of water consumed per day | C15: Amnt = alpha BW beta
B16: Amnt | C16: =C13*(C11^C14) -> 0.04339994576 | D16: liters | E16: Eq
A17: Absorbed Dose | B17: Dose | C17: ConcWat × Amnt ÷ BW
B18: Central | C18: =C7*C$16/C$11 -> 0.2464031921 | D18: mg/kg | E18: Eq
B19: Lower | C19: =C8*C$16/C$11 -> 0.009856127683 | D19: mg/kg | E19: Eq
B20: Upper | C20: =C9*C$16/C$11 -> 1.971225537 | D20: mg/kg | E20: Eq

Sheet F02c
A1: Consumption of contaminated water by Mammal, carnivorous, Accidental Spill
A2: Short Title | B2: Accidental Spill | E2: WatAlloV6
A3: Receptor | B3: Mammal, carnivorous
A4: Duration | B4: Acute | E4: Scenario parameter
A5: Parameter/Assumption | B5: Code / Range | C5: Equation/ Value | D5: Units | E5: Reference/Designation
A6: Concentration in water | B6: ConcWat
B7: Central | C7: =B04b!Acute_C -> 2.271 | D7: mg/L | E7: ='B04b'!Acute_C
B8: Lower | C8: =B04b!Acute_L -> 0.09084 | E8: ='B04b'!Acute_L
B9: Upper | C9: =B04b!Acute_U -> 18.168 | E9: ='B04b'!Acute_U
A10: Receptor
A11: Body weight | B11: BW | C11: =A02b!$C$47 -> 5 | D11: kg | E11: U.S. EPA/ORD 1993
A12: Allometric coefficients forwater consumption per day in liters and BW in kilograms
B13: alpha | C13: =A02b!$C$50 -> 0.099 | E13: U.S. EPA/ORD 1993
B14: beta | C14: =A02b!$C$51 -> 0.9 | E14: U.S. EPA/ORD 1993
A15: Amount of water consumed per day | C15: Amnt = alpha BW beta
B16: Amnt | C16: =C13*(C11^C14) -> 0.4214132616 | D16: liters | E16: Eq
A17: Absorbed Dose | B17: Dose | C17: ConcWat × Amnt ÷ BW
B18: Central | C18: =C7*C$16/C$11 -> 0.1914059034 | D18: mg/kg | E18: Eq
B19: Lower | C19: =C8*C$16/C$11 -> 0.007656236138 | D19: mg/kg | E19: Eq
B20: Upper | C20: =C9*C$16/C$11 -> 1.531247228 | D20: mg/kg | E20: Eq

Sheet F02d
A1: Consumption of contaminated water by Mammal, large, Accidental Spill
A2: Short Title | B2: Accidental Spill | E2: WatAlloV6
A3: Receptor | B3: Mammal, large
A4: Duration | B4: Acute | E4: Scenario parameter
A5: Parameter/Assumption | B5: Code / Range | C5: Equation/ Value | D5: Units | E5: Reference/Designation
A6: Concentration in water | B6: ConcWat
B7: Central | C7: =B04b!Acute_C -> 2.271 | D7: mg/L | E7: ='B04b'!Acute_C
B8: Lower | C8: =B04b!Acute_L -> 0.09084 | E8: ='B04b'!Acute_L
B9: Upper | C9: =B04b!Acute_U -> 18.168 | E9: ='B04b'!Acute_U
A10: Receptor
A11: Body weight | B11: BW | C11: =A02b!$C$61 -> 70 | D11: kg | E11: Default
A12: Allometric coefficients forwater consumption per day in liters and BW in kilograms
B13: alpha | C13: =A02b!$C$64 -> 0.099 | E13: U.S. EPA/ORD 1993
B14: beta | C14: =A02b!$C$65 -> 0.9 | E14: U.S. EPA/ORD 1993
A15: Amount of water consumed per day | C15: Amnt = alpha BW beta
B16: Amnt | C16: =C13*(C11^C14) -> 4.531306412 | D16: liters | E16: Eq
A17: Absorbed Dose | B17: Dose | C17: ConcWat × Amnt ÷ BW
B18: Central | C18: =C7*C$16/C$11 -> 0.1470085266 | D18: mg/kg | E18: Eq
B19: Lower | C19: =C8*C$16/C$11 -> 0.005880341063 | D19: mg/kg | E19: Eq
B20: Upper | C20: =C9*C$16/C$11 -> 1.176068213 | D20: mg/kg | E20: Eq

Sheet F02e
A1: Consumption of contaminated water by Bird, small, Accidental Spill
A2: Short Title | B2: Accidental Spill | E2: WatAlloV6
A3: Receptor | B3: Bird, small
A4: Duration | B4: Acute | E4: Scenario parameter
A5: Parameter/Assumption | B5: Code / Range | C5: Equation/ Value | D5: Units | E5: Reference/Designation
A6: Concentration in water | B6: ConcWat
B7: Central | C7: =B04b!Acute_C -> 2.271 | D7: mg/L | E7: ='B04b'!Acute_C
B8: Lower | C8: =B04b!Acute_L -> 0.09084 | E8: ='B04b'!Acute_L
B9: Upper | C9: =B04b!Acute_U -> 18.168 | E9: ='B04b'!Acute_U
A10: Receptor
A11: Body weight | B11: BW | C11: =A02b!$C$31 -> 0.01 | D11: kg | E11: Default
A12: Allometric coefficients forwater consumption per day in liters and BW in kilograms
B13: alpha | C13: =A02b!$C$34 -> 0.059 | E13: U.S. EPA/ORD 1993
B14: beta | C14: =A02b!$C$35 -> 0.67 | E14: U.S. EPA/ORD 1993
A15: Amount of water consumed per day | C15: Amnt = alpha BW beta
B16: Amnt | C16: =C13*(C11^C14) -> 0.002696820319 | D16: liters | E16: Eq
A17: Absorbed Dose | B17: Dose | C17: ConcWat × Amnt ÷ BW
B18: Central | C18: =C7*C$16/C$11 -> 0.6124478944 | D18: mg/kg | E18: Eq
B19: Lower | C19: =C8*C$16/C$11 -> 0.02449791578 | D19: mg/kg | E19: Eq
B20: Upper | C20: =C9*C$16/C$11 -> 4.899583155 | D20: mg/kg | E20: Eq

Sheet F02f
A1: Consumption of contaminated water by Bird, large, Accidental Spill
A2: Short Title | B2: Accidental Spill | E2: WatAlloV6
A3: Receptor | B3: Bird, large
A4: Duration | B4: Acute | E4: Scenario parameter
A5: Parameter/Assumption | B5: Code / Range | C5: Equation/ Value | D5: Units | E5: Reference/Designation
A6: Concentration in water | B6: ConcWat
B7: Central | C7: =B04b!Acute_C -> 2.271 | D7: mg/L | E7: ='B04b'!Acute_C
B8: Lower | C8: =B04b!Acute_L -> 0.09084 | E8: ='B04b'!Acute_L
B9: Upper | C9: =B04b!Acute_U -> 18.168 | E9: ='B04b'!Acute_U
A10: Receptor
A11: Body weight | B11: BW | C11: =A02b!$C$15 -> 4 | D11: kg | E11: Default
A12: Allometric coefficients forwater consumption per day in liters and BW in kilograms
B13: alpha | C13: =A02b!$C$18 -> 0.059 | E13: U.S. EPA/ORD 1993
B14: beta | C14: =A02b!$C$19 -> 0.67 | E14: U.S. EPA/ORD 1993
A15: Amount of water consumed per day | C15: Amnt = alpha BW beta
B16: Amnt | C16: =C13*(C11^C14) -> 0.1493592781 | D16: liters | E16: Eq
A17: Absorbed Dose | B17: Dose | C17: ConcWat × Amnt ÷ BW
B18: Central | C18: =C7*C$16/C$11 -> 0.08479873013 | D18: mg/kg | E18: Eq
B19: Lower | C19: =C8*C$16/C$11 -> 0.003391949205 | D19: mg/kg | E19: Eq
B20: Upper | C20: =C9*C$16/C$11 -> 0.6783898411 | D20: mg/kg | E20: Eq

Sheet F03a
A1: Acute scenario for the consumption of Contaminated Fish ( Accidental Spill) by Mammal, large carnivorous
A2: Short Title | B2: Fish consumption, accidental spill | E2: FishKcalV6
A3: Predator | B3: Mammal, large carnivorous
A4: Food Item (Prey) | B4: Fish
A5: Duration | B5: Acute | E5: Scenario parameter
A6: Parameter/Assumption | B6: Code / Range | C6: Equation/ Value | D6: Units | E6: Reference/Designation
A7: Water
A8: Concentration in water | B8: ConcWat
B9: Central | C9: =B04b!Acute_C -> 2.271 | D9: mg/L | E9: ='B04b'!Acute_C
B10: Lower | C10: =B04b!Acute_L -> 0.09084 | E10: ='B04b'!Acute_L
B11: Upper | C11: =B04b!Acute_U -> 18.168 | E11: ='B04b'!Acute_U
A12: Fish
A13: Bioconcentration factor | B13: BCF
B14: Central | C14: ='B01'!$C$6 -> 0.5 | D14: L/kg | E14: Section 3.2.3.5.
B15: Lower | C15: ='B01'!$C$6 -> 0.5 | E15: Section 3.2.3.5.
B16: Upper | C16: ='B01'!$C$6 -> 0.5 | E16: Section 3.2.3.5.
A17: Concentration in fish | B17: ConcFish | C17: ConcWat × BCF
B18: Central | C18: =C9*C14 -> 1.1355 | D18: mg/kg | E18: Eq
B19: Lower | C19: =C10*C15 -> 0.04542 | E19: Eq
B20: Upper | C20: =C11*C16 -> 9.084 | E20: Eq
A21: Receptor
A22: Body weight | B22: BW | C22: =A02b!$C$52 -> 70 | D22: kg | E22: Reid 2006
A23: Allometric coefficients for caloric requirement per day in kilocalories and BW in grams
B24: alpha | C24: =A02b!$C$53 -> 0.6167 | E24: U.S. EPA/ORD 1993
B25: beta | C25: =A02b!$C$54 -> 0.862 | E25: U.S. EPA/ORD 1993
A26: Caloric requirement per day | B26: KR | C26: =C24*(C22*1000)^C25 -> 9258.666883 | D26: kcal/day | E26: Eq
A27: Caloric content of commodity (dry weight) | B27: KCD | C27: 4.47 | D27: kcal/gdw [Note 1] | E27: WkMk Documentation
A28: Food consumed per day (dry weight) | B28: AmntDry | C28: = KR ÷ KCD
C29: =C26/C27 -> 2071.29013 | D29: gdry/day | E29: Eq
A30: Water content of vegetation as a proportion | B30: PropWater | C30: 0.7 | D30: gwater/gfood | E30: WkMk Documentation
A31: Dry weight content of vegetation as a proportion | B31: PropDry | C31: = 1-PropWater
C32: =1-C30 -> 0.3 | D32: gdry/gfood | E32: Eq
A33: Amount of fish consumed per day, wet weight | B33: AmntFish | C33: = (AmntDry ÷ PropDry) ÷ (1000g/kg)
B34: Central | C34: =(C29/C32)/1000 -> 6.904300435 | D34: kgfood/day | E34: Eq
B35: Lower | C35: =C34*0.3 -> 2.07129013 | D35: Note 1 | E35: Eq
B36: Upper | C36: =C34*1.7 -> 11.73731074 | D36: Note 1 | E36: Eq
A37: Proportion of diet that is contaminated | B37: Prop
B38: Central | C38: 0.3 | D38: Unitless | E38: Scenario parameter
B39: Lower | C39: 0.1 | E39: Scenario parameter
B40: Upper | C40: 1 | E40: Scenario parameter
A41: Dose
A42: Toxic Equivalency Factor for formulation: (See risk assessment if this has a value other than 1.) | B42: TEF
B43: Central | C43: ='A01'!C$37 -> 1 | D43: Unitless | E43: Worksheet A01
B44: Lower | C44: ='A01'!C$38 -> 1 | D44: Note 2 | E44: Worksheet A01
B45: Upper | C45: ='A01'!C$39 -> 1 | D45: Note 2 | E45: Worksheet A01
A46: Dose | B46: Dose | C46: = ConcFish × AmntFish × Prop ÷ BW
B47: Central | C47: =C18*C34*C38/C$22 -> 0.0335992849 | D47: mg/kg | E47: Eq
B48: Lower | C48: =C19*C35*C39/C$22 -> 0.0001343971396 | D48: mg/kg | E48: Eq
B49: Upper | C49: 1.523167582 | D49: mg/kg | E49: Eq
E50: FishKcalV6

Sheet F03b
A1: Acute scenario for the consumption of Contaminated Fish ( Accidental Spill) by Mammal, carnivorous
A2: Short Title | B2: Fish consumption, accidental spill | E2: FishKcalV6
A3: Predator | B3: Mammal, carnivorous
A4: Food Item (Prey) | B4: Fish
A5: Duration | B5: Acute | E5: Scenario parameter
A6: Parameter/Assumption | B6: Code / Range | C6: Equation/ Value | D6: Units | E6: Reference/Designation
A7: Water
A8: Concentration in water | B8: ConcWat
B9: Central | C9: =B04b!Acute_C -> 2.271 | D9: mg/L | E9: ='B04b'!Acute_C
B10: Lower | C10: =B04b!Acute_L -> 0.09084 | E10: ='B04b'!Acute_L
B11: Upper | C11: =B04b!Acute_U -> 18.168 | E11: ='B04b'!Acute_U
A12: Fish
A13: Bioconcentration factor | B13: BCF
B14: Central | C14: ='B01'!$C$6 -> 0.5 | D14: L/kg | E14: Section 3.2.3.5.
B15: Lower | C15: ='B01'!$C$6 -> 0.5 | E15: Section 3.2.3.5.
B16: Upper | C16: ='B01'!$C$6 -> 0.5 | E16: Section 3.2.3.5.
A17: Concentration in fish | B17: ConcFish | C17: ConcWat × BCF
B18: Central | C18: =C9*C14 -> 1.1355 | D18: mg/kg | E18: Eq
B19: Lower | C19: =C10*C15 -> 0.04542 | E19: Eq
B20: Upper | C20: =C11*C16 -> 9.084 | E20: Eq
A21: Receptor
A22: Body weight | B22: BW | C22: =A02b!$C$47 -> 5 | D22: kg | E22: U.S. EPA/ORD 1993
A23: Allometric coefficients for caloric requirement per day in kilocalories and BW in grams
B24: alpha | C24: =A02b!$C$48 -> 0.6167 | E24: U.S. EPA/ORD 1993
B25: beta | C25: =A02b!$C$49 -> 0.862 | E25: U.S. EPA/ORD 1993
A26: Caloric requirement per day | B26: KR | C26: =C24*(C22*1000)^C25 -> 951.8885266 | D26: kcal/day | E26: Eq
A27: Caloric content of commodity (dry weight) | B27: KCD | C27: 4.47 | D27: kcal/gdw [Note 1] | E27: WkMk Documentation
A28: Food consumed per day (dry weight) | B28: AmntDry | C28: = KR ÷ KCD
C29: =C26/C27 -> 212.9504534 | D29: gdry/day | E29: Eq
A30: Water content of vegetation as a proportion | B30: PropWater | C30: 0.7 | D30: gwater/gfood | E30: WkMk Documentation
A31: Dry weight content of vegetation as a proportion | B31: PropDry | C31: = 1-PropWater
C32: =1-C30 -> 0.3 | D32: gdry/gfood | E32: Eq
A33: Amount of fish consumed per day, wet weight | B33: AmntFish | C33: = (AmntDry ÷ PropDry) ÷ (1000g/kg)
B34: Central | C34: =(C29/C32)/1000 -> 0.7098348446 | D34: kgfood/day | E34: Eq
B35: Lower | C35: =C34*0.3 -> 0.2129504534 | D35: Note 1 | E35: Eq
B36: Upper | C36: =C34*1.7 -> 1.206719236 | D36: Note 1 | E36: Eq
A37: Proportion of diet that is contaminated | B37: Prop
B38: Central | C38: 0.3 | D38: Unitless | E38: Scenario parameter
B39: Lower | C39: 0.1 | E39: Scenario parameter
B40: Upper | C40: 1 | E40: Scenario parameter
A41: Dose
A42: Toxic Equivalency Factor for formulation: (See risk assessment if this has a value other than 1.) | B42: TEF
B43: Central | C43: ='A01'!C$37 -> 1 | D43: Unitless | E43: Worksheet A01
B44: Lower | C44: ='A01'!C$38 -> 1 | D44: Note 2 | E44: Worksheet A01
B45: Upper | C45: ='A01'!C$39 -> 1 | D45: Note 2 | E45: Worksheet A01
A46: Dose | B46: Dose | C46: = ConcFish × AmntFish × Prop ÷ BW
B47: Central | C47: =C18*C34*C38/C$22 -> 0.04836104796 | D47: mg/kg | E47: Eq
B48: Lower | C48: =C19*C35*C39/C$22 -> 0.0001934441918 | D48: mg/kg | E48: Eq
B49: Upper | C49: 2.192367508 | D49: mg/kg | E49: Eq
E50: FishKcalV6

Sheet F03c
A1: Acute scenario for the consumption of Contaminated Fish ( Accidental Spill) by Bird, piscivorous
A2: Short Title | B2: Fish consumption, accidental spill | E2: FishKcalV6
A3: Predator | B3: Bird, piscivorous
A4: Food Item (Prey) | B4: Fish
A5: Duration | B5: Acute | E5: Scenario parameter
A6: Parameter/Assumption | B6: Code / Range | C6: Equation/ Value | D6: Units | E6: Reference/Designation
A7: Water
A8: Concentration in water | B8: ConcWat
B9: Central | C9: =B04b!Acute_C -> 2.271 | D9: mg/L | E9: ='B04b'!Acute_C
B10: Lower | C10: =B04b!Acute_L -> 0.09084 | E10: ='B04b'!Acute_L
B11: Upper | C11: =B04b!Acute_U -> 18.168 | E11: ='B04b'!Acute_U
A12: Fish
A13: Bioconcentration factor | B13: BCF
B14: Central | C14: ='B01'!$C$6 -> 0.5 | D14: L/kg | E14: Section 3.2.3.5.
B15: Lower | C15: ='B01'!$C$6 -> 0.5 | E15: Section 3.2.3.5.
B16: Upper | C16: ='B01'!$C$6 -> 0.5 | E16: Section 3.2.3.5.
A17: Concentration in fish | B17: ConcFish | C17: ConcWat × BCF
B18: Central | C18: =C9*C14 -> 1.1355 | D18: mg/kg | E18: Eq
B19: Lower | C19: =C10*C15 -> 0.04542 | E19: Eq
B20: Upper | C20: =C11*C16 -> 9.084 | E20: Eq
A21: Receptor
A22: Body weight | B22: BW | C22: =A02b!$C$24 -> 2.4 | D22: kg | E22: Sibley 2000
A23: Allometric coefficients for caloric requirement per day in kilocalories and BW in grams
B24: alpha | C24: =A02b!$C$27 -> 1.916 | E24: U.S. EPA/ORD 1993
B25: beta | C25: =A02b!$C$28 -> 0.704 | E25: U.S. EPA/ORD 1993
A26: Caloric requirement per day | B26: KR | C26: =C24*(C22*1000)^C25 -> 459.2659192 | D26: kcal/day | E26: Eq
A27: Caloric content of commodity (dry weight) | B27: KCD | C27: 3.87 | D27: kcal/gdw [Note 1] | E27: WkMk Documentation
A28: Food consumed per day (dry weight) | B28: AmntDry | C28: = KR ÷ KCD
C29: =C26/C27 -> 118.6733641 | D29: gdry/day | E29: Eq
A30: Water content of vegetation as a proportion | B30: PropWater | C30: 0.7 | D30: gwater/gfood | E30: WkMk Documentation
A31: Dry weight content of vegetation as a proportion | B31: PropDry | C31: = 1-PropWater
C32: =1-C30 -> 0.3 | D32: gdry/gfood | E32: Eq
A33: Amount of fish consumed per day, wet weight | B33: AmntFish | C33: = (AmntDry ÷ PropDry) ÷ (1000g/kg)
B34: Central | C34: =(C29/C32)/1000 -> 0.3955778805 | D34: kgfood/day | E34: Eq
B35: Lower | C35: =C34*0.3 -> 0.1186733641 | D35: Note 1 | E35: Eq
B36: Upper | C36: =C34*1.7 -> 0.6724823968 | D36: Note 1 | E36: Eq
A37: Proportion of diet that is contaminated | B37: Prop
B38: Central | C38: 0.3 | D38: Unitless | E38: Scenario parameter
B39: Lower | C39: 0.1 | E39: Scenario parameter
B40: Upper | C40: 1 | E40: Scenario parameter
A41: Dose
A42: Toxic Equivalency Factor for formulation: (See risk assessment if this has a value other than 1.) | B42: TEF
B43: Central | C43: ='A01'!C$37 -> 1 | D43: Unitless | E43: Worksheet A01
B44: Lower | C44: ='A01'!C$38 -> 1 | D44: Note 2 | E44: Worksheet A01
B45: Upper | C45: ='A01'!C$39 -> 1 | D45: Note 2 | E45: Worksheet A01
A46: Dose | B46: Dose | C46: = ConcFish × AmntFish × Prop ÷ BW
B47: Central | C47: =C18*C34*C38/C$22 -> 0.05614733541 | D47: mg/kg | E47: Eq
B48: Lower | C48: =C19*C35*C39/C$22 -> 0.0002245893416 | D48: mg/kg | E48: Eq
B49: Upper | C49: 2.545345872 | D49: mg/kg | E49: Eq
E50: FishKcalV6

Sheet F06a
A1: Consumption of contaminated water by Mammal, small, Peak Concentrations
A2: Short Title | B2: Peak Concentrations | E2: WatAlloV6
A3: Receptor | B3: Mammal, small
A4: Duration | B4: Acute | E4: Scenario parameter
A5: Parameter/Assumption | B5: Code / Range | C5: Equation/ Value | D5: Units | E5: Reference/Designation
A6: Concentration in water | B6: ConcWat
B7: Central | C7: =B04a!Acute_C -> 0.1225641241 | D7: mg/L | E7: ='B04a'!Acute_C
B8: Lower | C8: =B04a!Acute_L -> 0.03676923722 | E8: ='B04a'!Acute_L
B9: Upper | C9: =B04a!Acute_U -> 0.3676923722 | E9: ='B04a'!Acute_U
A10: Receptor
A11: Body weight | B11: BW | C11: =A02b!$C$71 -> 0.02 | D11: kg | E11: Default
A12: Allometric coefficients forwater consumption per day in liters and BW in kilograms
B13: alpha | C13: =A02b!$C$79 -> 0.099 | E13: U.S. EPA/ORD 1993
B14: beta | C14: =A02b!$C$80 -> 0.9 | E14: U.S. EPA/ORD 1993
A15: Amount of water consumed per day | C15: Amnt = alpha BW beta
B16: Amnt | C16: =C13*(C11^C14) -> 0.002927940121 | D16: liters | E16: Eq
A17: Absorbed Dose | B17: Dose | C17: ConcWat × Amnt ÷ BW
B18: Central | C18: =C7*C$16/C$11 -> 0.01794302081 | D18: mg/kg | E18: Eq
B19: Lower | C19: =C8*C$16/C$11 -> 0.005382906242 | D19: mg/kg | E19: Eq
B20: Upper | C20: =C9*C$16/C$11 -> 0.05382906242 | D20: mg/kg | E20: Eq

Sheet F06b
A1: Consumption of contaminated water by Mammal, 400 g, Peak Concentrations
A2: Short Title | B2: Peak Concentrations | E2: WatAlloV6
A3: Receptor | B3: Mammal, 400 g
A4: Duration | B4: Acute | E4: Scenario parameter
A5: Parameter/Assumption | B5: Code / Range | C5: Equation/ Value | D5: Units | E5: Reference/Designation
A6: Concentration in water | B6: ConcWat
B7: Central | C7: =B04a!Acute_C -> 0.1225641241 | D7: mg/L | E7: ='B04a'!Acute_C
B8: Lower | C8: =B04a!Acute_L -> 0.03676923722 | E8: ='B04a'!Acute_L
B9: Upper | C9: =B04a!Acute_U -> 0.3676923722 | E9: ='B04a'!Acute_U
A10: Receptor
A11: Body weight | B11: BW | C11: =A02b!$C$40 -> 0.4 | D11: kg | E11: Default
A12: Allometric coefficients forwater consumption per day in liters and BW in kilograms
B13: alpha | C13: =A02b!$C$45 -> 0.099 | E13: U.S. EPA/ORD 1993
B14: beta | C14: =A02b!$C$46 -> 0.9 | E14: U.S. EPA/ORD 1993
A15: Amount of water consumed per day | C15: Amnt = alpha BW beta
B16: Amnt | C16: =C13*(C11^C14) -> 0.04339994576 | D16: liters | E16: Eq
A17: Absorbed Dose | B17: Dose | C17: ConcWat × Amnt ÷ BW
B18: Central | C18: =C7*C$16/C$11 -> 0.01329819084 | D18: mg/kg | E18: Eq
B19: Lower | C19: =C8*C$16/C$11 -> 0.003989457253 | D19: mg/kg | E19: Eq
B20: Upper | C20: =C9*C$16/C$11 -> 0.03989457253 | D20: mg/kg | E20: Eq

Sheet F06c
A1: Consumption of contaminated water by Mammal, carnivorous, Peak Concentrations
A2: Short Title | B2: Peak Concentrations | E2: WatAlloV6
A3: Receptor | B3: Mammal, carnivorous
A4: Duration | B4: Acute | E4: Scenario parameter
A5: Parameter/Assumption | B5: Code / Range | C5: Equation/ Value | D5: Units | E5: Reference/Designation
A6: Concentration in water | B6: ConcWat
B7: Central | C7: =B04a!Acute_C -> 0.1225641241 | D7: mg/L | E7: ='B04a'!Acute_C
B8: Lower | C8: =B04a!Acute_L -> 0.03676923722 | E8: ='B04a'!Acute_L
B9: Upper | C9: =B04a!Acute_U -> 0.3676923722 | E9: ='B04a'!Acute_U
A10: Receptor
A11: Body weight | B11: BW | C11: =A02b!$C$47 -> 5 | D11: kg | E11: U.S. EPA/ORD 1993
A12: Allometric coefficients forwater consumption per day in liters and BW in kilograms
B13: alpha | C13: =A02b!$C$50 -> 0.099 | E13: U.S. EPA/ORD 1993
B14: beta | C14: =A02b!$C$51 -> 0.9 | E14: U.S. EPA/ORD 1993
A15: Amount of water consumed per day | C15: Amnt = alpha BW beta
B16: Amnt | C16: =C13*(C11^C14) -> 0.4214132616 | D16: liters | E16: Eq
A17: Absorbed Dose | B17: Dose | C17: ConcWat × Amnt ÷ BW
B18: Central | C18: =C7*C$16/C$11 -> 0.01033002946 | D18: mg/kg | E18: Eq
B19: Lower | C19: =C8*C$16/C$11 -> 0.003099008837 | D19: mg/kg | E19: Eq
B20: Upper | C20: =C9*C$16/C$11 -> 0.03099008837 | D20: mg/kg | E20: Eq

Sheet F06d
A1: Consumption of contaminated water by Mammal, large, Peak Concentrations
A2: Short Title | B2: Peak Concentrations | E2: WatAlloV6
A3: Receptor | B3: Mammal, large
A4: Duration | B4: Acute | E4: Scenario parameter
A5: Parameter/Assumption | B5: Code / Range | C5: Equation/ Value | D5: Units | E5: Reference/Designation
A6: Concentration in water | B6: ConcWat
B7: Central | C7: =B04a!Acute_C -> 0.1225641241 | D7: mg/L | E7: ='B04a'!Acute_C
B8: Lower | C8: =B04a!Acute_L -> 0.03676923722 | E8: ='B04a'!Acute_L
B9: Upper | C9: =B04a!Acute_U -> 0.3676923722 | E9: ='B04a'!Acute_U
A10: Receptor
A11: Body weight | B11: BW | C11: =A02b!$C$61 -> 70 | D11: kg | E11: Default
A12: Allometric coefficients forwater consumption per day in liters and BW in kilograms
B13: alpha | C13: =A02b!$C$64 -> 0.099 | E13: U.S. EPA/ORD 1993
B14: beta | C14: =A02b!$C$65 -> 0.9 | E14: U.S. EPA/ORD 1993
A15: Amount of water consumed per day | C15: Amnt = alpha BW beta
B16: Amnt | C16: =C13*(C11^C14) -> 4.531306412 | D16: liters | E16: Eq
A17: Absorbed Dose | B17: Dose | C17: ConcWat × Amnt ÷ BW
B18: Central | C18: =C7*C$16/C$11 -> 0.00793393716 | D18: mg/kg | E18: Eq
B19: Lower | C19: =C8*C$16/C$11 -> 0.002380181148 | D19: mg/kg | E19: Eq
B20: Upper | C20: =C9*C$16/C$11 -> 0.02380181148 | D20: mg/kg | E20: Eq

Sheet F06e
A1: Consumption of contaminated water by Bird, small, Peak Concentrations
A2: Short Title | B2: Peak Concentrations | E2: WatAlloV6
A3: Receptor | B3: Bird, small
A4: Duration | B4: Acute | E4: Scenario parameter
A5: Parameter/Assumption | B5: Code / Range | C5: Equation/ Value | D5: Units | E5: Reference/Designation
A6: Concentration in water | B6: ConcWat
B7: Central | C7: =B04a!Acute_C -> 0.1225641241 | D7: mg/L | E7: ='B04a'!Acute_C
B8: Lower | C8: =B04a!Acute_L -> 0.03676923722 | E8: ='B04a'!Acute_L
B9: Upper | C9: =B04a!Acute_U -> 0.3676923722 | E9: ='B04a'!Acute_U
A10: Receptor
A11: Body weight | B11: BW | C11: =A02b!$C$31 -> 0.01 | D11: kg | E11: Default
A12: Allometric coefficients forwater consumption per day in liters and BW in kilograms
B13: alpha | C13: =A02b!$C$34 -> 0.059 | E13: U.S. EPA/ORD 1993
B14: beta | C14: =A02b!$C$35 -> 0.67 | E14: U.S. EPA/ORD 1993
A15: Amount of water consumed per day | C15: Amnt = alpha BW beta
B16: Amnt | C16: =C13*(C11^C14) -> 0.002696820319 | D16: liters | E16: Eq
A17: Absorbed Dose | B17: Dose | C17: ConcWat × Amnt ÷ BW
B18: Central | C18: =C7*C$16/C$11 -> 0.03305334201 | D18: mg/kg | E18: Eq
B19: Lower | C19: =C8*C$16/C$11 -> 0.009916002603 | D19: mg/kg | E19: Eq
B20: Upper | C20: =C9*C$16/C$11 -> 0.09916002603 | D20: mg/kg | E20: Eq

Sheet F06f
A1: Consumption of contaminated water by Bird, large, Peak Concentrations
A2: Short Title | B2: Peak Concentrations | E2: WatAlloV6
A3: Receptor | B3: Bird, large
A4: Duration | B4: Acute | E4: Scenario parameter
A5: Parameter/Assumption | B5: Code / Range | C5: Equation/ Value | D5: Units | E5: Reference/Designation
A6: Concentration in water | B6: ConcWat
B7: Central | C7: =B04a!Acute_C -> 0.1225641241 | D7: mg/L | E7: ='B04a'!Acute_C
B8: Lower | C8: =B04a!Acute_L -> 0.03676923722 | E8: ='B04a'!Acute_L
B9: Upper | C9: =B04a!Acute_U -> 0.3676923722 | E9: ='B04a'!Acute_U
A10: Receptor
A11: Body weight | B11: BW | C11: =A02b!$C$15 -> 4 | D11: kg | E11: Default
A12: Allometric coefficients forwater consumption per day in liters and BW in kilograms
B13: alpha | C13: =A02b!$C$18 -> 0.059 | E13: U.S. EPA/ORD 1993
B14: beta | C14: =A02b!$C$19 -> 0.67 | E14: U.S. EPA/ORD 1993
A15: Amount of water consumed per day | C15: Amnt = alpha BW beta
B16: Amnt | C16: =C13*(C11^C14) -> 0.1493592781 | D16: liters | E16: Eq
A17: Absorbed Dose | B17: Dose | C17: ConcWat × Amnt ÷ BW
B18: Central | C18: =C7*C$16/C$11 -> 0.004576522272 | D18: mg/kg | E18: Eq
B19: Lower | C19: =C8*C$16/C$11 -> 0.001372956682 | D19: mg/kg | E19: Eq
B20: Upper | C20: =C9*C$16/C$11 -> 0.01372956682 | D20: mg/kg | E20: Eq

Sheet F09a
A1: Acute scenario for the consumption of Contaminated Fish (Peak) by Mammal, large carnivorous
A2: Short Title | B2: Fish consumption, accidental spill | E2: FishKcalV6
A3: Predator | B3: Mammal, large carnivorous
A4: Food Item (Prey) | B4: Fish
A5: Duration | B5: Acute | E5: Scenario parameter
A6: Parameter/Assumption | B6: Code / Range | C6: Equation/ Value | D6: Units | E6: Reference/Designation
A7: Water
A8: Concentration in water | B8: ConcWat
B9: Central | C9: =B04a!Acute_C -> 0.1225641241 | D9: mg/L | E9: ='B04a'!Acute_C
B10: Lower | C10: =B04a!Acute_L -> 0.03676923722 | E10: ='B04a'!Acute_L
B11: Upper | C11: =B04a!Acute_U -> 0.3676923722 | E11: ='B04a'!Acute_U
A12: Fish
A13: Bioconcentration factor | B13: BCF
B14: Central | C14: ='B01'!$C$6 -> 0.5 | D14: L/kg | E14: Section 3.2.3.5.
B15: Lower | C15: ='B01'!$C$6 -> 0.5 | E15: Section 3.2.3.5.
B16: Upper | C16: ='B01'!$C$6 -> 0.5 | E16: Section 3.2.3.5.
A17: Concentration in fish | B17: ConcFish | C17: ConcWat × BCF
B18: Central | C18: =C9*C14 -> 0.06128206203 | D18: mg/kg | E18: Eq
B19: Lower | C19: =C10*C15 -> 0.01838461861 | E19: Eq
B20: Upper | C20: =C11*C16 -> 0.1838461861 | E20: Eq
A21: Receptor
A22: Body weight | B22: BW | C22: =A02b!$C$52 -> 70 | D22: kg | E22: Reid 2006
A23: Allometric coefficients for caloric requirement per day in kilocalories and BW in grams
B24: alpha | C24: =A02b!$C$53 -> 0.6167 | E24: U.S. EPA/ORD 1993
B25: beta | C25: =A02b!$C$54 -> 0.862 | E25: U.S. EPA/ORD 1993
A26: Caloric requirement per day | B26: KR | C26: =C24*(C22*1000)^C25 -> 9258.666883 | D26: kcal/day | E26: Eq
A27: Caloric content of commodity (dry weight) | B27: KCD | C27: 4.47 | D27: kcal/gdw [Note 1] | E27: WkMk Documentation
A28: Food consumed per day (dry weight) | B28: AmntDry | C28: = KR ÷ KCD
C29: =C26/C27 -> 2071.29013 | D29: gdry/day | E29: Eq
A30: Water content of vegetation as a proportion | B30: PropWater | C30: 0.7 | D30: gwater/gfood | E30: WkMk Documentation
A31: Dry weight content of vegetation as a proportion | B31: PropDry | C31: = 1-PropWater
C32: =1-C30 -> 0.3 | D32: gdry/gfood | E32: Eq
A33: Amount of fish consumed per day, wet weight | B33: AmntFish | C33: = (AmntDry ÷ PropDry) ÷ (1000g/kg)
B34: Central | C34: =(C29/C32)/1000 -> 6.904300435 | D34: kgfood/day | E34: Eq
B35: Lower | C35: =C34*0.3 -> 2.07129013 | D35: Note 1 | E35: Eq
B36: Upper | C36: =C34*1.7 -> 11.73731074 | D36: Note 1 | E36: Eq
A37: Proportion of diet that is contaminated | B37: Prop
B38: Central | C38: 0.3 | D38: Unitless | E38: Scenario parameter
B39: Lower | C39: 0.1 | E39: Scenario parameter
B40: Upper | C40: 1 | E40: Scenario parameter
A41: Dose
A42: Toxic Equivalency Factor for formulation: (See risk assessment if this has a value other than 1.) | B42: TEF
B43: Central | C43: ='A01'!C$37 -> 1 | D43: Unitless | E43: Worksheet A01
B44: Lower | C44: ='A01'!C$38 -> 1 | D44: Note 2 | E44: Worksheet A01
B45: Upper | C45: ='A01'!C$39 -> 1 | D45: Note 2 | E45: Worksheet A01
A46: Dose | B46: Dose | C46: = ConcFish × AmntFish × Prop ÷ BW
B47: Central | C47: =C18*C34*C38/C$22 -> 0.001813327575 | D47: mg/kg | E47: Eq
B48: Lower | C48: =C19*C35*C39/C$22 -> 5.439982725e-05 | D48: mg/kg | E48: Eq
B49: Upper | C49: 0.03082656877 | D49: mg/kg | E49: Eq
E50: FishKcalV6

Sheet F09b
A1: Acute scenario for the consumption of Contaminated Fish (Peak) by Mammal, carnivorous
A2: Short Title | B2: Fish consumption, accidental spill | E2: FishKcalV6
A3: Predator | B3: Mammal, carnivorous
A4: Food Item (Prey) | B4: Fish
A5: Duration | B5: Acute | E5: Scenario parameter
A6: Parameter/Assumption | B6: Code / Range | C6: Equation/ Value | D6: Units | E6: Reference/Designation
A7: Water
A8: Concentration in water | B8: ConcWat
B9: Central | C9: =B04a!Acute_C -> 0.1225641241 | D9: mg/L | E9: ='B04a'!Acute_C
B10: Lower | C10: =B04a!Acute_L -> 0.03676923722 | E10: ='B04a'!Acute_L
B11: Upper | C11: =B04a!Acute_U -> 0.3676923722 | E11: ='B04a'!Acute_U
A12: Fish
A13: Bioconcentration factor | B13: BCF
B14: Central | C14: ='B01'!$C$6 -> 0.5 | D14: L/kg | E14: Section 3.2.3.5.
B15: Lower | C15: ='B01'!$C$6 -> 0.5 | E15: Section 3.2.3.5.
B16: Upper | C16: ='B01'!$C$6 -> 0.5 | E16: Section 3.2.3.5.
A17: Concentration in fish | B17: ConcFish | C17: ConcWat × BCF
B18: Central | C18: =C9*C14 -> 0.06128206203 | D18: mg/kg | E18: Eq
B19: Lower | C19: =C10*C15 -> 0.01838461861 | E19: Eq
B20: Upper | C20: =C11*C16 -> 0.1838461861 | E20: Eq
A21: Receptor
A22: Body weight | B22: BW | C22: =A02b!$C$47 -> 5 | D22: kg | E22: U.S. EPA/ORD 1993
A23: Allometric coefficients for caloric requirement per day in kilocalories and BW in grams
B24: alpha | C24: =A02b!$C$48 -> 0.6167 | E24: U.S. EPA/ORD 1993
B25: beta | C25: =A02b!$C$49 -> 0.862 | E25: U.S. EPA/ORD 1993
A26: Caloric requirement per day | B26: KR | C26: =C24*(C22*1000)^C25 -> 951.8885266 | D26: kcal/day | E26: Eq
A27: Caloric content of commodity (dry weight) | B27: KCD | C27: 4.47 | D27: kcal/gdw [Note 1] | E27: WkMk Documentation
A28: Food consumed per day (dry weight) | B28: AmntDry | C28: = KR ÷ KCD
C29: =C26/C27 -> 212.9504534 | D29: gdry/day | E29: Eq
A30: Water content of vegetation as a proportion | B30: PropWater | C30: 0.7 | D30: gwater/gfood | E30: WkMk Documentation
A31: Dry weight content of vegetation as a proportion | B31: PropDry | C31: = 1-PropWater
C32: =1-C30 -> 0.3 | D32: gdry/gfood | E32: Eq
A33: Amount of fish consumed per day, wet weight | B33: AmntFish | C33: = (AmntDry ÷ PropDry) ÷ (1000g/kg)
B34: Central | C34: =(C29/C32)/1000 -> 0.7098348446 | D34: kgfood/day | E34: Eq
B35: Lower | C35: =C34*0.3 -> 0.2129504534 | D35: Note 1 | E35: Eq
B36: Upper | C36: =C34*1.7 -> 1.206719236 | D36: Note 1 | E36: Eq
A37: Proportion of diet that is contaminated | B37: Prop
B38: Central | C38: 0.3 | D38: Unitless | E38: Scenario parameter
B39: Lower | C39: 0.1 | E39: Scenario parameter
B40: Upper | C40: 1 | E40: Scenario parameter
A41: Dose
A42: Toxic Equivalency Factor for formulation: (See risk assessment if this has a value other than 1.) | B42: TEF
B43: Central | C43: ='A01'!C$37 -> 1 | D43: Unitless | E43: Worksheet A01
B44: Lower | C44: ='A01'!C$38 -> 1 | D44: Note 2 | E44: Worksheet A01
B45: Upper | C45: ='A01'!C$39 -> 1 | D45: Note 2 | E45: Worksheet A01
A46: Dose | B46: Dose | C46: = ConcFish × AmntFish × Prop ÷ BW
B47: Central | C47: =C18*C34*C38/C$22 -> 0.002610008579 | D47: mg/kg | E47: Eq
B48: Lower | C48: =C19*C35*C39/C$22 -> 7.830025736e-05 | D48: mg/kg | E48: Eq
B49: Upper | C49: 0.04437014584 | D49: mg/kg | E49: Eq
E50: FishKcalV6

Sheet F09c
A1: Acute scenario for the consumption of Contaminated Fish (Peak) by Bird, piscivorous
A2: Short Title | B2: Fish consumption, accidental spill | E2: FishKcalV6
A3: Predator | B3: Bird, piscivorous
A4: Food Item (Prey) | B4: Fish
A5: Duration | B5: Acute | E5: Scenario parameter
A6: Parameter/Assumption | B6: Code / Range | C6: Equation/ Value | D6: Units | E6: Reference/Designation
A7: Water
A8: Concentration in water | B8: ConcWat
B9: Central | C9: =B04a!Acute_C -> 0.1225641241 | D9: mg/L | E9: ='B04a'!Acute_C
B10: Lower | C10: =B04a!Acute_L -> 0.03676923722 | E10: ='B04a'!Acute_L
B11: Upper | C11: =B04a!Acute_U -> 0.3676923722 | E11: ='B04a'!Acute_U
A12: Fish
A13: Bioconcentration factor | B13: BCF
B14: Central | C14: ='B01'!$C$6 -> 0.5 | D14: L/kg | E14: Section 3.2.3.5.
B15: Lower | C15: ='B01'!$C$6 -> 0.5 | E15: Section 3.2.3.5.
B16: Upper | C16: ='B01'!$C$6 -> 0.5 | E16: Section 3.2.3.5.
A17: Concentration in fish | B17: ConcFish | C17: ConcWat × BCF
B18: Central | C18: =C9*C14 -> 0.06128206203 | D18: mg/kg | E18: Eq
B19: Lower | C19: =C10*C15 -> 0.01838461861 | E19: Eq
B20: Upper | C20: =C11*C16 -> 0.1838461861 | E20: Eq
A21: Receptor
A22: Body weight | B22: BW | C22: =A02b!$C$24 -> 2.4 | D22: kg | E22: Sibley 2000
A23: Allometric coefficients for caloric requirement per day in kilocalories and BW in grams
B24: alpha | C24: =A02b!$C$27 -> 1.916 | E24: U.S. EPA/ORD 1993
B25: beta | C25: =A02b!$C$28 -> 0.704 | E25: U.S. EPA/ORD 1993
A26: Caloric requirement per day | B26: KR | C26: =C24*(C22*1000)^C25 -> 459.2659192 | D26: kcal/day | E26: Eq
A27: Caloric content of commodity (dry weight) | B27: KCD | C27: 3.87 | D27: kcal/gdw [Note 1] | E27: WkMk Documentation
A28: Food consumed per day (dry weight) | B28: AmntDry | C28: = KR ÷ KCD
C29: =C26/C27 -> 118.6733641 | D29: gdry/day | E29: Eq
A30: Water content of vegetation as a proportion | B30: PropWater | C30: 0.7 | D30: gwater/gfood | E30: WkMk Documentation
A31: Dry weight content of vegetation as a proportion | B31: PropDry | C31: = 1-PropWater
C32: =1-C30 -> 0.3 | D32: gdry/gfood | E32: Eq
A33: Amount of fish consumed per day, wet weight | B33: AmntFish | C33: = (AmntDry ÷ PropDry) ÷ (1000g/kg)
B34: Central | C34: =(C29/C32)/1000 -> 0.3955778805 | D34: kgfood/day | E34: Eq
B35: Lower | C35: =C34*0.3 -> 0.1186733641 | D35: Note 1 | E35: Eq
B36: Upper | C36: =C34*1.7 -> 0.6724823968 | D36: Note 1 | E36: Eq
A37: Proportion of diet that is contaminated | B37: Prop
B38: Central | C38: 0.3 | D38: Unitless | E38: Scenario parameter
B39: Lower | C39: 0.1 | E39: Scenario parameter
B40: Upper | C40: 1 | E40: Scenario parameter
A41: Dose
A42: Toxic Equivalency Factor for formulation: (See risk assessment if this has a value other than 1.) | B42: TEF
B43: Central | C43: ='A01'!C$37 -> 1 | D43: Unitless | E43: Worksheet A01
B44: Lower | C44: ='A01'!C$38 -> 1 | D44: Note 2 | E44: Worksheet A01
B45: Upper | C45: ='A01'!C$39 -> 1 | D45: Note 2 | E45: Worksheet A01
A46: Dose | B46: Dose | C46: = ConcFish × AmntFish × Prop ÷ BW
B47: Central | C47: =C18*C34*C38/C$22 -> 0.003030228526 | D47: mg/kg | E47: Eq
B48: Lower | C48: =C19*C35*C39/C$22 -> 9.090685578e-05 | D48: mg/kg | E48: Eq
B49: Upper | C49: 0.05151388494 | D49: mg/kg | E49: Eq
E50: FishKcalV6

Sheet F12a
A1: Consumption of contaminated water by Mammal, small, Longer-term Concentrations
A2: Short Title | B2: Longer-term Concentrations | E2: WatAlloV6
A3: Receptor | B3: Mammal, small
A4: Duration | B4: Chronic | E4: Scenario parameter
A5: Parameter/Assumption | B5: Code / Range | C5: Equation/ Value | D5: Units | E5: Reference/Designation
A6: Concentration in water | B6: ConcWat
B7: Central | C7: =B04a!Chronic_C -> 0.07879521339 | D7: mg/L | E7: ='B04a'!Chronic_C
B8: Lower | C8: =B04a!Chronic_L -> 0.01352001861 | E8: ='B04a'!Chronic_L
B9: Upper | C9: =B04a!Chronic_U -> 0.3107409377 | E9: ='B04a'!Chronic_U
A10: Receptor
A11: Body weight | B11: BW | C11: =A02b!$C$71 -> 0.02 | D11: kg | E11: Default
A12: Allometric coefficients forwater consumption per day in liters and BW in kilograms
B13: alpha | C13: =A02b!$C$79 -> 0.099 | E13: U.S. EPA/ORD 1993
B14: beta | C14: =A02b!$C$80 -> 0.9 | E14: U.S. EPA/ORD 1993
A15: Amount of water consumed per day | C15: Amnt = alpha BW beta
B16: Amnt | C16: =C13*(C11^C14) -> 0.002927940121 | D16: liters | E16: Eq
A17: Absorbed Dose | B17: Dose | C17: ConcWat × Amnt ÷ BW
B18: Central | C18: =C7*C$16/C$11 -> 0.01153538333 | D18: mg/kg | E18: Eq
B19: Lower | C19: =C8*C$16/C$11 -> 0.001979290246 | D19: mg/kg | E19: Eq
B20: Upper | C20: =C9*C$16/C$11 -> 0.04549154293 | D20: mg/kg | E20: Eq

Sheet F12b
A1: Consumption of contaminated water by Mammal, 400 g, Longer-term Concentrations
A2: Short Title | B2: Longer-term Concentrations | E2: WatAlloV6
A3: Receptor | B3: Mammal, 400 g
A4: Duration | B4: Chronic | E4: Scenario parameter
A5: Parameter/Assumption | B5: Code / Range | C5: Equation/ Value | D5: Units | E5: Reference/Designation
A6: Concentration in water | B6: ConcWat
B7: Central | C7: =B04a!Chronic_C -> 0.07879521339 | D7: mg/L | E7: ='B04a'!Chronic_C
B8: Lower | C8: =B04a!Chronic_L -> 0.01352001861 | E8: ='B04a'!Chronic_L
B9: Upper | C9: =B04a!Chronic_U -> 0.3107409377 | E9: ='B04a'!Chronic_U
A10: Receptor
A11: Body weight | B11: BW | C11: =A02b!$C$40 -> 0.4 | D11: kg | E11: Default
A12: Allometric coefficients forwater consumption per day in liters and BW in kilograms
B13: alpha | C13: =A02b!$C$45 -> 0.099 | E13: U.S. EPA/ORD 1993
B14: beta | C14: =A02b!$C$46 -> 0.9 | E14: U.S. EPA/ORD 1993
A15: Amount of water consumed per day | C15: Amnt = alpha BW beta
B16: Amnt | C16: =C13*(C11^C14) -> 0.04339994576 | D16: liters | E16: Eq
A17: Absorbed Dose | B17: Dose | C17: ConcWat × Amnt ÷ BW
B18: Central | C18: =C7*C$16/C$11 -> 0.008549269969 | D18: mg/kg | E18: Eq
B19: Lower | C19: =C8*C$16/C$11 -> 0.001466920186 | D19: mg/kg | E19: Eq
B20: Upper | C20: =C9*C$16/C$11 -> 0.03371534961 | D20: mg/kg | E20: Eq

Sheet F12c
A1: Consumption of contaminated water by Mammal, carnivorous, Longer-term Concentrations
A2: Short Title | B2: Longer-term Concentrations | E2: WatAlloV6
A3: Receptor | B3: Mammal, carnivorous
A4: Duration | B4: Chronic | E4: Scenario parameter
A5: Parameter/Assumption | B5: Code / Range | C5: Equation/ Value | D5: Units | E5: Reference/Designation
A6: Concentration in water | B6: ConcWat
B7: Central | C7: =B04a!Chronic_C -> 0.07879521339 | D7: mg/L | E7: ='B04a'!Chronic_C
B8: Lower | C8: =B04a!Chronic_L -> 0.01352001861 | E8: ='B04a'!Chronic_L
B9: Upper | C9: =B04a!Chronic_U -> 0.3107409377 | E9: ='B04a'!Chronic_U
A10: Receptor
A11: Body weight | B11: BW | C11: =A02b!$C$47 -> 5 | D11: kg | E11: U.S. EPA/ORD 1993
A12: Allometric coefficients forwater consumption per day in liters and BW in kilograms
B13: alpha | C13: =A02b!$C$50 -> 0.099 | E13: U.S. EPA/ORD 1993
B14: beta | C14: =A02b!$C$51 -> 0.9 | E14: U.S. EPA/ORD 1993
A15: Amount of water consumed per day | C15: Amnt = alpha BW beta
B16: Amnt | C16: =C13*(C11^C14) -> 0.4214132616 | D16: liters | E16: Eq
A17: Absorbed Dose | B17: Dose | C17: ConcWat × Amnt ÷ BW
B18: Central | C18: =C7*C$16/C$11 -> 0.006641069575 | D18: mg/kg | E18: Eq
B19: Lower | C19: =C8*C$16/C$11 -> 0.001139503028 | D19: mg/kg | E19: Eq
B20: Upper | C20: =C9*C$16/C$11 -> 0.02619007041 | D20: mg/kg | E20: Eq

Sheet F12d
A1: Consumption of contaminated water by Mammal, large, Longer-term Concentrations
A2: Short Title | B2: Longer-term Concentrations | E2: WatAlloV6
A3: Receptor | B3: Mammal, large
A4: Duration | B4: Chronic | E4: Scenario parameter
A5: Parameter/Assumption | B5: Code / Range | C5: Equation/ Value | D5: Units | E5: Reference/Designation
A6: Concentration in water | B6: ConcWat
B7: Central | C7: =B04a!Chronic_C -> 0.07879521339 | D7: mg/L | E7: ='B04a'!Chronic_C
B8: Lower | C8: =B04a!Chronic_L -> 0.01352001861 | E8: ='B04a'!Chronic_L
B9: Upper | C9: =B04a!Chronic_U -> 0.3107409377 | E9: ='B04a'!Chronic_U
A10: Receptor
A11: Body weight | B11: BW | C11: =A02b!$C$61 -> 70 | D11: kg | E11: Default
A12: Allometric coefficients forwater consumption per day in liters and BW in kilograms
B13: alpha | C13: =A02b!$C$64 -> 0.099 | E13: U.S. EPA/ORD 1993
B14: beta | C14: =A02b!$C$65 -> 0.9 | E14: U.S. EPA/ORD 1993
A15: Amount of water consumed per day | C15: Amnt = alpha BW beta
B16: Amnt | C16: =C13*(C11^C14) -> 4.531306412 | D16: liters | E16: Eq
A17: Absorbed Dose | B17: Dose | C17: ConcWat × Amnt ÷ BW
B18: Central | C18: =C7*C$16/C$11 -> 0.005100646509 | D18: mg/kg | E18: Eq
B19: Lower | C19: =C8*C$16/C$11 -> 0.0008751906715 | D19: mg/kg | E19: Eq
B20: Upper | C20: =C9*C$16/C$11 -> 0.02011517719 | D20: mg/kg | E20: Eq

Sheet F12e
A1: Consumption of contaminated water by Bird, small, Longer-term Concentrations
A2: Short Title | B2: Longer-term Concentrations | E2: WatAlloV6
A3: Receptor | B3: Bird, small
A4: Duration | B4: Chronic | E4: Scenario parameter
A5: Parameter/Assumption | B5: Code / Range | C5: Equation/ Value | D5: Units | E5: Reference/Designation
A6: Concentration in water | B6: ConcWat
B7: Central | C7: =B04a!Chronic_C -> 0.07879521339 | D7: mg/L | E7: ='B04a'!Chronic_C
B8: Lower | C8: =B04a!Chronic_L -> 0.01352001861 | E8: ='B04a'!Chronic_L
B9: Upper | C9: =B04a!Chronic_U -> 0.3107409377 | E9: ='B04a'!Chronic_U
A10: Receptor
A11: Body weight | B11: BW | C11: =A02b!$C$31 -> 0.01 | D11: kg | E11: Default
A12: Allometric coefficients forwater consumption per day in liters and BW in kilograms
B13: alpha | C13: =A02b!$C$34 -> 0.059 | E13: U.S. EPA/ORD 1993
B14: beta | C14: =A02b!$C$35 -> 0.67 | E14: U.S. EPA/ORD 1993
A15: Amount of water consumed per day | C15: Amnt = alpha BW beta
B16: Amnt | C16: =C13*(C11^C14) -> 0.002696820319 | D16: liters | E16: Eq
A17: Absorbed Dose | B17: Dose | C17: ConcWat × Amnt ÷ BW
B18: Central | C18: =C7*C$16/C$11 -> 0.02124965325 | D18: mg/kg | E18: Eq
B19: Lower | C19: =C8*C$16/C$11 -> 0.003646106089 | D19: mg/kg | E19: Eq
B20: Upper | C20: =C9*C$16/C$11 -> 0.08380124746 | D20: mg/kg | E20: Eq

Sheet F12f
A1: Consumption of contaminated water by Bird, large, Longer-term Concentrations
A2: Short Title | B2: Longer-term Concentrations | E2: WatAlloV6
A3: Receptor | B3: Bird, large
A4: Duration | B4: Chronic | E4: Scenario parameter
A5: Parameter/Assumption | B5: Code / Range | C5: Equation/ Value | D5: Units | E5: Reference/Designation
A6: Concentration in water | B6: ConcWat
B7: Central | C7: =B04a!Chronic_C -> 0.07879521339 | D7: mg/L | E7: ='B04a'!Chronic_C
B8: Lower | C8: =B04a!Chronic_L -> 0.01352001861 | E8: ='B04a'!Chronic_L
B9: Upper | C9: =B04a!Chronic_U -> 0.3107409377 | E9: ='B04a'!Chronic_U
A10: Receptor
A11: Body weight | B11: BW | C11: =A02b!$C$15 -> 4 | D11: kg | E11: Default
A12: Allometric coefficients forwater consumption per day in liters and BW in kilograms
B13: alpha | C13: =A02b!$C$18 -> 0.059 | E13: U.S. EPA/ORD 1993
B14: beta | C14: =A02b!$C$19 -> 0.67 | E14: U.S. EPA/ORD 1993
A15: Amount of water consumed per day | C15: Amnt = alpha BW beta
B16: Amnt | C16: =C13*(C11^C14) -> 0.1493592781 | D16: liters | E16: Eq
A17: Absorbed Dose | B17: Dose | C17: ConcWat × Amnt ÷ BW
B18: Central | C18: =C7*C$16/C$11 -> 0.002942199047 | D18: mg/kg | E18: Eq
B19: Lower | C19: =C8*C$16/C$11 -> 0.0005048350548 | D19: mg/kg | E19: Eq
B20: Upper | C20: =C9*C$16/C$11 -> 0.01160301053 | D20: mg/kg | E20: Eq

Sheet F13a
A1: Chronic scenario for the consumption of Contaminated Fish (Longer-term) by Mammal, large carnivorous
A2: Short Title | B2: Fish consumption, accidental spill | E2: FishKcalV6
A3: Predator | B3: Mammal, large carnivorous
A4: Food Item (Prey) | B4: Fish
A5: Duration | B5: Chronic | E5: Scenario parameter
A6: Parameter/Assumption | B6: Code / Range | C6: Equation/ Value | D6: Units | E6: Reference/Designation
A7: Water
A8: Concentration in water | B8: ConcWat
B9: Central | C9: =B04a!Chronic_C -> 0.07879521339 | D9: mg/L | E9: ='B04a'!Chronic_C
B10: Lower | C10: =B04a!Chronic_L -> 0.01352001861 | E10: ='B04a'!Chronic_L
B11: Upper | C11: =B04a!Chronic_U -> 0.3107409377 | E11: ='B04a'!Chronic_U
A12: Fish
A13: Bioconcentration factor | B13: BCF
B14: Central | C14: ='B01'!$C$6 -> 0.5 | D14: L/kg | E14: Section 3.2.3.5.
B15: Lower | C15: ='B01'!$C$6 -> 0.5 | E15: Section 3.2.3.5.
B16: Upper | C16: ='B01'!$C$6 -> 0.5 | E16: Section 3.2.3.5.
A17: Concentration in fish | B17: ConcFish | C17: ConcWat × BCF
B18: Central | C18: =C9*C14 -> 0.03939760669 | D18: mg/kg | E18: Eq
B19: Lower | C19: =C10*C15 -> 0.006760009304 | E19: Eq
B20: Upper | C20: =C11*C16 -> 0.1553704688 | E20: Eq
A21: Receptor
A22: Body weight | B22: BW | C22: =A02b!$C$52 -> 70 | D22: kg | E22: Reid 2006
A23: Allometric coefficients for caloric requirement per day in kilocalories and BW in grams
B24: alpha | C24: =A02b!$C$53 -> 0.6167 | E24: U.S. EPA/ORD 1993
B25: beta | C25: =A02b!$C$54 -> 0.862 | E25: U.S. EPA/ORD 1993
A26: Caloric requirement per day | B26: KR | C26: =C24*(C22*1000)^C25 -> 9258.666883 | D26: kcal/day | E26: Eq
A27: Caloric content of commodity (dry weight) | B27: KCD | C27: 4.47 | D27: kcal/gdw [Note 1] | E27: WkMk Documentation
A28: Food consumed per day (dry weight) | B28: AmntDry | C28: = KR ÷ KCD
C29: =C26/C27 -> 2071.29013 | D29: gdry/day | E29: Eq
A30: Water content of vegetation as a proportion | B30: PropWater | C30: 0.7 | D30: gwater/gfood | E30: WkMk Documentation
A31: Dry weight content of vegetation as a proportion | B31: PropDry | C31: = 1-PropWater
C32: =1-C30 -> 0.3 | D32: gdry/gfood | E32: Eq
A33: Amount of fish consumed per day, wet weight | B33: AmntFish | C33: = (AmntDry ÷ PropDry) ÷ (1000g/kg)
B34: Central | C34: =(C29/C32)/1000 -> 6.904300435 | D34: kgfood/day | E34: Eq
B35: Lower | C35: =C34*0.3 -> 2.07129013 | D35: Note 1 | E35: Eq
B36: Upper | C36: =C34*1.7 -> 11.73731074 | D36: Note 1 | E36: Eq
A37: Proportion of diet that is contaminated | B37: Prop
B38: Central | C38: 0.3 | D38: Unitless | E38: Scenario parameter
B39: Lower | C39: 0.1 | E39: Scenario parameter
B40: Upper | C40: 1 | E40: Scenario parameter
A41: Dose
A42: Toxic Equivalency Factor for formulation: (See risk assessment if this has a value other than 1.) | B42: TEF
B43: Central | C43: ='A01'!C$37 -> 1 | D43: Unitless | E43: Worksheet A01
B44: Lower | C44: ='A01'!C$38 -> 1 | D44: Note 2 | E44: Worksheet A01
B45: Upper | C45: ='A01'!C$39 -> 1 | D45: Note 2 | E45: Worksheet A01
A46: Dose | B46: Dose | C46: = ConcFish × AmntFish × Prop ÷ BW
B47: Central | C47: =C18*C34*C38/C$22 -> 0.001165769627 | D47: mg/kg | E47: Eq
B48: Lower | C48: =C19*C35*C39/C$22 -> 2.000277222e-05 | D48: mg/kg | E48: Eq
B49: Upper | C49: 0.02605187818 | D49: mg/kg | E49: Eq
E50: FishKcalV6

Sheet F13b
A1: Chronic scenario for the consumption of Contaminated Fish (Longer-term) by Mammal, carnivorous
A2: Short Title | B2: Fish consumption, accidental spill | E2: FishKcalV6
A3: Predator | B3: Mammal, carnivorous
A4: Food Item (Prey) | B4: Fish
A5: Duration | B5: Chronic | E5: Scenario parameter
A6: Parameter/Assumption | B6: Code / Range | C6: Equation/ Value | D6: Units | E6: Reference/Designation
A7: Water
A8: Concentration in water | B8: ConcWat
B9: Central | C9: =B04a!Chronic_C -> 0.07879521339 | D9: mg/L | E9: ='B04a'!Chronic_C
B10: Lower | C10: =B04a!Chronic_L -> 0.01352001861 | E10: ='B04a'!Chronic_L
B11: Upper | C11: =B04a!Chronic_U -> 0.3107409377 | E11: ='B04a'!Chronic_U
A12: Fish
A13: Bioconcentration factor | B13: BCF
B14: Central | C14: ='B01'!$C$6 -> 0.5 | D14: L/kg | E14: Section 3.2.3.5.
B15: Lower | C15: ='B01'!$C$6 -> 0.5 | E15: Section 3.2.3.5.
B16: Upper | C16: ='B01'!$C$6 -> 0.5 | E16: Section 3.2.3.5.
A17: Concentration in fish | B17: ConcFish | C17: ConcWat × BCF
B18: Central | C18: =C9*C14 -> 0.03939760669 | D18: mg/kg | E18: Eq
B19: Lower | C19: =C10*C15 -> 0.006760009304 | E19: Eq
B20: Upper | C20: =C11*C16 -> 0.1553704688 | E20: Eq
A21: Receptor
A22: Body weight | B22: BW | C22: =A02b!$C$47 -> 5 | D22: kg | E22: U.S. EPA/ORD 1993
A23: Allometric coefficients for caloric requirement per day in kilocalories and BW in grams
B24: alpha | C24: =A02b!$C$48 -> 0.6167 | E24: U.S. EPA/ORD 1993
B25: beta | C25: =A02b!$C$49 -> 0.862 | E25: U.S. EPA/ORD 1993
A26: Caloric requirement per day | B26: KR | C26: =C24*(C22*1000)^C25 -> 951.8885266 | D26: kcal/day | E26: Eq
A27: Caloric content of commodity (dry weight) | B27: KCD | C27: 4.47 | D27: kcal/gdw [Note 1] | E27: WkMk Documentation
A28: Food consumed per day (dry weight) | B28: AmntDry | C28: = KR ÷ KCD
C29: =C26/C27 -> 212.9504534 | D29: gdry/day | E29: Eq
A30: Water content of vegetation as a proportion | B30: PropWater | C30: 0.7 | D30: gwater/gfood | E30: WkMk Documentation
A31: Dry weight content of vegetation as a proportion | B31: PropDry | C31: = 1-PropWater
C32: =1-C30 -> 0.3 | D32: gdry/gfood | E32: Eq
A33: Amount of fish consumed per day, wet weight | B33: AmntFish | C33: = (AmntDry ÷ PropDry) ÷ (1000g/kg)
B34: Central | C34: =(C29/C32)/1000 -> 0.7098348446 | D34: kgfood/day | E34: Eq
B35: Lower | C35: =C34*0.3 -> 0.2129504534 | D35: Note 1 | E35: Eq
B36: Upper | C36: =C34*1.7 -> 1.206719236 | D36: Note 1 | E36: Eq
A37: Proportion of diet that is contaminated | B37: Prop
B38: Central | C38: 0.3 | D38: Unitless | E38: Scenario parameter
B39: Lower | C39: 0.1 | E39: Scenario parameter
B40: Upper | C40: 1 | E40: Scenario parameter
A41: Dose
A42: Toxic Equivalency Factor for formulation: (See risk assessment if this has a value other than 1.) | B42: TEF
B43: Central | C43: ='A01'!C$37 -> 1 | D43: Unitless | E43: Worksheet A01
B44: Lower | C44: ='A01'!C$38 -> 1 | D44: Note 2 | E44: Worksheet A01
B45: Upper | C45: ='A01'!C$39 -> 1 | D45: Note 2 | E45: Worksheet A01
A46: Dose | B46: Dose | C46: = ConcFish × AmntFish × Prop ÷ BW
B47: Central | C47: =C18*C34*C38/C$22 -> 0.001677947642 | D47: mg/kg | E47: Eq
B48: Lower | C48: =C19*C35*C39/C$22 -> 2.879094092e-05 | D48: mg/kg | E48: Eq
B49: Upper | C49: 0.03749770668 | D49: mg/kg | E49: Eq
E50: FishKcalV6

Sheet F13c
A1: Chronic scenario for the consumption of Contaminated Fish (Longer-term) by Bird, piscivorous
A2: Short Title | B2: Fish consumption, accidental spill | E2: FishKcalV6
A3: Predator | B3: Bird, piscivorous
A4: Food Item (Prey) | B4: Fish
A5: Duration | B5: Chronic | E5: Scenario parameter
A6: Parameter/Assumption | B6: Code / Range | C6: Equation/ Value | D6: Units | E6: Reference/Designation
A7: Water
A8: Concentration in water | B8: ConcWat
B9: Central | C9: =B04a!Chronic_C -> 0.07879521339 | D9: mg/L | E9: ='B04a'!Chronic_C
B10: Lower | C10: =B04a!Chronic_L -> 0.01352001861 | E10: ='B04a'!Chronic_L
B11: Upper | C11: =B04a!Chronic_U -> 0.3107409377 | E11: ='B04a'!Chronic_U
A12: Fish
A13: Bioconcentration factor | B13: BCF
B14: Central | C14: ='B01'!$C$6 -> 0.5 | D14: L/kg | E14: Section 3.2.3.5.
B15: Lower | C15: ='B01'!$C$6 -> 0.5 | E15: Section 3.2.3.5.
B16: Upper | C16: ='B01'!$C$6 -> 0.5 | E16: Section 3.2.3.5.
A17: Concentration in fish | B17: ConcFish | C17: ConcWat × BCF
B18: Central | C18: =C9*C14 -> 0.03939760669 | D18: mg/kg | E18: Eq
B19: Lower | C19: =C10*C15 -> 0.006760009304 | E19: Eq
B20: Upper | C20: =C11*C16 -> 0.1553704688 | E20: Eq
A21: Receptor
A22: Body weight | B22: BW | C22: =A02b!$C$24 -> 2.4 | D22: kg | E22: Sibley 2000
A23: Allometric coefficients for caloric requirement per day in kilocalories and BW in grams
B24: alpha | C24: =A02b!$C$27 -> 1.916 | E24: U.S. EPA/ORD 1993
B25: beta | C25: =A02b!$C$28 -> 0.704 | E25: U.S. EPA/ORD 1993
A26: Caloric requirement per day | B26: KR | C26: =C24*(C22*1000)^C25 -> 459.2659192 | D26: kcal/day | E26: Eq
A27: Caloric content of commodity (dry weight) | B27: KCD | C27: 3.87 | D27: kcal/gdw [Note 1] | E27: WkMk Documentation
A28: Food consumed per day (dry weight) | B28: AmntDry | C28: = KR ÷ KCD
C29: =C26/C27 -> 118.6733641 | D29: gdry/day | E29: Eq
A30: Water content of vegetation as a proportion | B30: PropWater | C30: 0.7 | D30: gwater/gfood | E30: WkMk Documentation
A31: Dry weight content of vegetation as a proportion | B31: PropDry | C31: = 1-PropWater
C32: =1-C30 -> 0.3 | D32: gdry/gfood | E32: Eq
A33: Amount of fish consumed per day, wet weight | B33: AmntFish | C33: = (AmntDry ÷ PropDry) ÷ (1000g/kg)
B34: Central | C34: =(C29/C32)/1000 -> 0.3955778805 | D34: kgfood/day | E34: Eq
B35: Lower | C35: =C34*0.3 -> 0.1186733641 | D35: Note 1 | E35: Eq
B36: Upper | C36: =C34*1.7 -> 0.6724823968 | D36: Note 1 | E36: Eq
A37: Proportion of diet that is contaminated | B37: Prop
B38: Central | C38: 0.3 | D38: Unitless | E38: Scenario parameter
B39: Lower | C39: 0.1 | E39: Scenario parameter
B40: Upper | C40: 1 | E40: Scenario parameter
A41: Dose
A42: Toxic Equivalency Factor for formulation: (See risk assessment if this has a value other than 1.) | B42: TEF
B43: Central | C43: ='A01'!C$37 -> 1 | D43: Unitless | E43: Worksheet A01
B44: Lower | C44: ='A01'!C$38 -> 1 | D44: Note 2 | E44: Worksheet A01
B45: Upper | C45: ='A01'!C$39 -> 1 | D45: Note 2 | E45: Worksheet A01
A46: Dose | B46: Dose | C46: = ConcFish × AmntFish × Prop ÷ BW
B47: Central | C47: =C18*C34*C38/C$22 -> 0.001948102719 | D47: mg/kg | E47: Eq
B48: Lower | C48: =C19*C35*C39/C$22 -> 3.342637691e-05 | D48: mg/kg | E48: Eq
B49: Upper | C49: 0.04353496053 | D49: mg/kg | E49: Eq
E50: FishKcalV6

Sheet G01
A1: Summary of Exposure Assessments for the Terrestrial Animals | F1: G01V6
A2: Application Rate: | B2: ='A01'!ApRt_C -> 1 | C2: lb a.e./acre | F2: G01V6
A3: Scenario | B3: Receptor | C3: mg/kg/day or mg/kg/event | F3: Detail Worksheet
C4: Central | D4: Lower | E4: Upper
A5: Accidental Acute Exposures
A6: Direct Spray | J6: Spray: Partial Abs
A7: first-order absorption | B7: Small mammal (20g) | C7: No Exposure Assessment | F7: F01a | J7: Spray: 100% Abs
A8: 100% absorption | B8: Small mammal (20g) | C8: No Exposure Assessment | F8: F01b
A9: Contaminated Water | J9: Spill: Sm Mam
A10: Spill | B10: Small mammal (20g) | C10: =F02a!Dose_C -> 0.3324676007 | D10: =F02a!Dose_L -> 0.01329870403 | E10: =F02a!Dose_U -> 2.659740805 | F10: F02a | J10: Spill: Med Mam
A11: Spill | B11: Larger Mammal (400g) | C11: =F02b!Dose_C -> 0.2464031921 | D11: =F02b!Dose_L -> 0.009856127683 | E11: =F02b!Dose_U -> 1.971225537 | F11: F02b | J11: Spill: Canid
A12: Spill | B12: Canid (5 kg) | C12: =F02c!Dose_C -> 0.1914059034 | D12: =F02c!Dose_L -> 0.007656236138 | E12: =F02c!Dose_U -> 1.531247228 | F12: F02c | J12: Spill: Lrg Mam
A13: Spill | B13: Large Mammal (70g) | C13: =F02d!Dose_C -> 0.1470085266 | D13: =F02d!Dose_L -> 0.005880341063 | E13: =F02d!Dose_U -> 1.176068213 | F13: F02d | J13: Spill: Sm Brd
A14: Spill | B14: Small bird (10g) | C14: =F02e!Dose_C -> 0.6124478944 | D14: =F02e!Dose_L -> 0.02449791578 | E14: =F02e!Dose_U -> 4.899583155 | F14: F02e | J14: Spill: Lrg Brd
A15: Spill | B15: Large Bird (4 kg) | C15: =F02f!Dose_C -> 0.08479873013 | D15: =F02f!Dose_L -> 0.003391949205 | E15: =F02f!Dose_U -> 0.6783898411 | F15: F02f
A16: Consumption of contaminated Fish | J16: Fish: Bear
A17: Spill | B17: Large Mammalian Carnivore (70 kg) | C17: =F03a!Dose_C -> 0.0335992849 | D17: =F03a!Dose_L -> 0.0001343971396 | E17: =F03a!Dose_U -> 1.523167582 | F17: F03a | J17: Fish: Fox
A18: Spill | B18: Canid (5 kg) | C18: =F03b!Dose_C -> 0.04836104796 | D18: =F03b!Dose_L -> 0.0001934441918 | E18: =F03b!Dose_U -> 2.192367508 | F18: F03b | J18: Fish: Bird
A19: Spill | B19: Fish-eating bird (2.4 kg) | C19: =F03c!Dose_C -> 0.05614733541 | D19: =F03c!Dose_L -> 0.0002245893416 | E19: =F03c!Dose_U -> 2.545345872 | F19: F03c
A20: Non-Accidental Acute Exposures
A21: Contaminated Fruit (Lowest Residue Rate)
B22: Small mammal (20g) | C22: No Exposure Assessment | F22: F04a | J22: Grass: Sm Mam
B23: Larger Mammal (400g) | C23: No Exposure Assessment | F23: F04b | J23: Grass: Med Mam
B24: Large Mammal (70g) | C24: No Exposure Assessment | F24: F04c | J24: Grass: Lrg Mam
B25: Small bird (10g) | C25: No Exposure Assessment | F25: F04d | J25: Grass: Sm Brd
B26: Large Bird (4 kg) | C26: No Exposure Assessment | F26: F04e | J26: Grass: Lrg Brd
A27: Contaminated Vegetation (Short Grass - Highest Residue Rate)
B28: Small mammal (20g) | C28: No Exposure Assessment | F28: F05a | J28: Veg: Sm Mam
B29: Larger Mammal (400g) | C29: No Exposure Assessment | F29: F05b | J29: Veg: Med Mam
B30: Large Mammal | C30: No Exposure Assessment | F30: F05c | J30: Veg: Lrg Mam
B31: Small bird (10g) | C31: No Exposure Assessment | F31: F05d | J31: Veg: Sm Brd
B32: Large Bird (4 kg) | C32: No Exposure Assessment | F32: F05e | J32: Veg: Lrg Brd
A33: Contaminated Water
B34: Small mammal (20g) | C34: =F06a!Dose_C -> 0.01794302081 | D34: =F06a!Dose_L -> 0.005382906242 | E34: =F06a!Dose_U -> 0.05382906242 | F34: F06a | J34: Water: Sm Mam
B35: Larger Mammal (400g) | C35: =F06b!Dose_C -> 0.01329819084 | D35: =F06b!Dose_L -> 0.003989457253 | E35: =F06b!Dose_U -> 0.03989457253 | F35: F06b | J35: Water: Med Mam
B36: Canid (5 kg) | C36: =F06c!Dose_C -> 0.01033002946 | D36: =F06c!Dose_L -> 0.003099008837 | E36: =F06c!Dose_U -> 0.03099008837 | F36: F06c | J36: Water: Canid
B37: Large Mammal (70g) | C37: =F06d!Dose_C -> 0.00793393716 | D37: =F06d!Dose_L -> 0.002380181148 | E37: =F06d!Dose_U -> 0.02380181148 | F37: F06d | J37: Water: Lrg Mam
B38: Small bird (10g) | C38: =F06e!Dose_C -> 0.03305334201 | D38: =F06e!Dose_L -> 0.009916002603 | E38: =F06e!Dose_U -> 0.09916002603 | F38: F06e | J38: Water: Sm Brd
B39: Large Bird (4 kg) | C39: =F06f!Dose_C -> 0.004576522272 | D39: =F06f!Dose_L -> 0.001372956682 | E39: =F06f!Dose_U -> 0.01372956682 | F39: F06f | J39: Water: Lrg Brd
A40: Contaminated Insects
B41: Small mammal (20g) | C41: No Exposure Assessment | F41: F07a | J41: Insects: Sm Mam
B42: Larger Mammal (400g) | C42: No Exposure Assessment | F42: F07b | J42: Insects: Med Mam
B43: Small bird (10g) | C43: No Exposure Assessment | F43: F07c | J43: Insects: Sm Brd
A44: Consumption of small mammal (after direct spray) by predator
B45: Canid (5 kg) | C45: No Exposure Assessment | F45: F08a | J45: Canid Eats Sm Mam
B46: Carnivorous bird (640 g) | C46: No Exposure Assessment | F46: F08b | J46: Bird Eats Sm Mam
A47: Consumption of contaminated Fish
B48: Large Mammalian Carnivore (70 kg) | C48: =F09a!Dose_C -> 0.001813327575 | D48: =F09a!Dose_L -> 5.439982725e-05 | E48: =F09a!Dose_U -> 0.03082656877 | F48: F09a | J48: Fish: Lrg Mam
B49: Canid (5 kg) | C49: =F09b!Dose_C -> 0.002610008579 | D49: =F09b!Dose_L -> 7.830025736e-05 | E49: =F09b!Dose_U -> 0.04437014584 | F49: F09b | J49: Fish: Canid
B50: Fish-eating bird (2.4 kg) | C50: =F09c!Dose_C -> 0.003030228526 | D50: =F09c!Dose_L -> 9.090685578e-05 | E50: =F09c!Dose_U -> 0.05151388494 | F50: F09c | J50: Fish: Brd
A51: Chronic/Longer Term Exposures
A52: Contaminated Fruit (Lowest Residue Rate)
B53: Small mammal (20g) | C53: No Exposure Assessment | F53: F10a | I53: Grass: Sm Mam
B54: Larger Mammal (400g) | C54: No Exposure Assessment | F54: F10b | I54: Grass: Med Mam
B55: Large Mammal (70g) | C55: No Exposure Assessment | F55: F10c | I55: Grass: Lrg Mam
B56: Small bird (10g) | C56: No Exposure Assessment | F56: F10d | I56: Grass: Sm Brd
B57: Large Bird (4 kg) | C57: No Exposure Assessment | F57: F10e | I57: Grass: Lrg Brd
A58: Contaminated Vegetation (Short Grass - Highest Residue Rate)
B59: Small mammal (20g) | C59: No Exposure Assessment | F59: F11a | I59: Veg: Sm Mam
B60: Larger Mammal (400g) | C60: No Exposure Assessment | F60: F11b | I60: Veg: Med Mam
B61: Large Mammal (70g) | C61: No Exposure Assessment | F61: F11c | I61: Veg: Lrg Mam
B62: Small bird (10g) | C62: No Exposure Assessment | F62: F11d | I62: Veg: Sm Brd
B63: Large Bird (4 kg) | C63: No Exposure Assessment | F63: F11e | I63: Veg: Lrg Brd
A64: Contaminated Water
B65: Small mammal (20g) | C65: =F12a!Dose_C -> 0.01153538333 | D65: =F12a!Dose_L -> 0.001979290246 | E65: =F12a!Dose_U -> 0.04549154293 | F65: F12a | I65: Water: Sm Mam
B66: Larger Mammal (400g) | C66: =F12b!Dose_C -> 0.008549269969 | D66: =F12b!Dose_L -> 0.001466920186 | E66: =F12b!Dose_U -> 0.03371534961 | F66: F12b | I66: Water: Med Mam
B67: Canid (5 kg) | C67: =F12c!Dose_C -> 0.006641069575 | D67: =F12c!Dose_L -> 0.001139503028 | E67: =F12c!Dose_U -> 0.02619007041 | F67: F12c | I67: Water: Canid
B68: Large Mammal (70g) | C68: =F12d!Dose_C -> 0.005100646509 | D68: =F12d!Dose_L -> 0.0008751906715 | E68: =F12d!Dose_U -> 0.02011517719 | F68: F12d | I68: Water: Lrg Mam
B69: Small bird (10g) | C69: =F12e!Dose_C -> 0.02124965325 | D69: =F12e!Dose_L -> 0.003646106089 | E69: =F12e!Dose_U -> 0.08380124746 | F69: F12e | I69: Water: Sm Brd
B70: Large Bird (4 kg) | C70: =F12f!Dose_C -> 0.002942199047 | D70: =F12f!Dose_L -> 0.0005048350548 | E70: =F12f!Dose_U -> 0.01160301053 | F70: F12f | I70: Water: Lrg Brd
A71: Consumption of contaminated Fish
B72: Large Mammalian Carnivore (70 kg) | C72: =F13a!Dose_C -> 0.001165769627 | D72: =F13a!Dose_L -> 2.000277222e-05 | E72: =F13a!Dose_U -> 0.02605187818 | F72: F13a | I72: Fish: Lrg Mam
B73: Canid (5 kg) | C73: =F13b!Dose_C -> 0.001677947642 | D73: =F13b!Dose_L -> 2.879094092e-05 | E73: =F13b!Dose_U -> 0.03749770668 | F73: F13b | I73: Fish: Canid
B74: Fish-eating bird (2.4 kg) | C74: =F13c!Dose_C -> 0.001948102719 | D74: =F13c!Dose_L -> 3.342637691e-05 | E74: =F13c!Dose_U -> 0.04353496053 | F74: F13c | I74: Fish: Brd

Sheet G02
A1: Summary of Hazard Quotients (Toxicity) for the Terrestrial Animals | F1: G01V6
A2: Application Rate: | B2: ='A01'!ApRt_C -> 1 | C2: lb a.e./acre | F2: G01V6
A3: Scenario | B3: Receptor | C3: Hazard Quotients | F3: Toxicity Value
C4: Central | D4: Lower | E4: Upper
A5: Accidental Acute Exposures
A6: Direct Spray | J6: Spray: Partial Abs
A7: first-order absorption | B7: Small mammal (20g) | C7: No exposure assessment. | J7: Spray: 100% Abs
A8: 100% absorption | B8: Small mammal (20g) | C8: No exposure assessment.
A9: Contaminated Water | J9: Spill: Sm Mam
A10: Spill | B10: Small mammal (20g) | C10: =F02a!$C$18/$F$10 -> 0.0004504981039 | D10: =F02a!$C$19/$F$10 -> 1.801992416e-05 | E10: =F02a!$C$20/$F$10 -> 0.003603984831 | F10: ='B02'!$E$6 -> 738 | G10: NOAEL | J10: Spill: Med Mam
A11: Spill | B11: Larger Mammal (400g) | C11: =F02b!$C$18/$F$11 -> 0.0003338796641 | D11: =F02b!$C$19/$F$11 -> 1.335518656e-05 | E11: =F02b!$C$20/$F$11 -> 0.002671037313 | F11: ='B02'!$E$6 -> 738 | G11: NOAEL | J11: Spill: Canid
A12: Spill | B12: Canid (5 kg) | C12: =F02c!$C$18/$F$12 -> 0.0007656236138 | D12: =F02c!$C$19/$F$12 -> 3.062494455e-05 | E12: =F02c!$C$20/$F$12 -> 0.00612498891 | F12: ='B02'!$E$18 -> 250 | G12: NOAEL | J12: Spill: Lrg Mam
A13: Spill | B13: Large Mammal (70g) | C13: =F02d!$C$18/$F$13 -> 0.0001991985455 | D13: =F02d!$C$19/$F$13 -> 7.96794182e-06 | E13: =F02d!$C$20/$F$13 -> 0.001593588364 | F13: ='B02'!$E$6 -> 738 | G13: NOAEL | J13: Spill: Sm Brd
A14: Spill | B14: Small bird (10g) | C14: =F02e!$C$18/$F$14 -> 0.0002440031452 | D14: =F02e!$C$19/$F$14 -> 9.760125807e-06 | E14: =F02e!$C$20/$F$14 -> 0.001952025161 | F14: ='B02'!$E$8 -> 2510 | G14: NOAEL | J14: Spill: Lrg Brd
A15: Spill | B15: Large Bird (4 kg) | C15: =F02f!$C$18/$F$15 -> 3.378435464e-05 | D15: =F02f!$C$19/$F$15 -> 1.351374185e-06 | E15: =F02f!$C$20/$F$15 -> 0.0002702748371 | F15: ='B02'!$E$8 -> 2510 | G15: NOAEL
A16: Consumption of contaminated Fish | J16: Fish: Bear
A17: Spill | B17: Large Mammalian Carnivore (70 kg) | C17: =F03a!$C$47/$F$17 -> 4.552748632e-05 | D17: =F03a!$C$48/$F$17 -> 1.821099453e-07 | E17: =F03a!$C$49/$F$17 -> 0.002063912713 | F17: ='B02'!$E$6 -> 738 | G17: NOAEL | J17: Fish: Fox
A18: Spill | B18: Canid (5 kg) | C18: =F03b!$C$47/$F$18 -> 0.0001934441918 | D18: =F03b!$C$48/$F$18 -> 7.737767674e-07 | E18: =F03b!$C$49/$F$18 -> 0.00876947003 | F18: ='B02'!$E$18 -> 250 | G18: NOAEL | J18: Fish: Bird
A19: Spill | B19: Fish-eating bird (2.4 kg) | C19: =F03c!$C$47/$F$19 -> 2.236945634e-05 | D19: =F03c!$C$48/$F$19 -> 8.947782536e-08 | E19: =F03c!$C$49/$F$19 -> 0.001014082021 | F19: ='B02'!$E$8 -> 2510 | G19: NOAEL
A20: Non-Accidental Acute Exposures
A21: Contaminated Fruit (Lowest Residue Rate)
B22: Small mammal (20g) | C22: No exposure assessment. | J22: Grass: Sm Mam
B23: Larger Mammal (400g) | C23: No exposure assessment. | J23: Grass: Med Mam
B24: Large Mammal (70g) | C24: No exposure assessment. | J24: Grass: Lrg Mam
B25: Small bird (10g) | C25: No exposure assessment. | J25: Grass: Sm Brd
B26: Large Bird (4 kg) | C26: No exposure assessment. | J26: Grass: Lrg Brd
A27: Contaminated Vegetation (Short Grass - Highest Residue Rate)
B28: Small mammal (20g) | C28: No exposure assessment. | J28: Veg: Sm Mam
B29: Larger Mammal (400g) | C29: No exposure assessment. | J29: Veg: Med Mam
B30: Large Mammal | C30: No exposure assessment. | J30: Veg: Lrg Mam
B31: Small bird (10g) | C31: No exposure assessment. | J31: Veg: Sm Brd
B32: Large Bird (4 kg) | C32: No exposure assessment. | J32: Veg: Lrg Brd
A33: Contaminated Water
B34: Small mammal (20g) | C34: =F06a!$C$18/$F$34 -> 2.431303633e-05 | D34: =F06a!$C$19/$F$34 -> 7.293910898e-06 | E34: =F06a!$C$20/$F$34 -> 7.293910898e-05 | F34: ='B02'!$E$6 -> 738 | G34: NOAEL | J34: Water: Sm Mam
B35: Larger Mammal (400g) | C35: =F06b!$C$18/$F$35 -> 1.801922878e-05 | D35: =F06b!$C$19/$F$35 -> 5.405768635e-06 | E35: =F06b!$C$20/$F$35 -> 5.405768635e-05 | F35: ='B02'!$E$6 -> 738 | G35: NOAEL | J35: Water: Med Mam
B36: Canid (5 kg) | C36: =F06c!$C$18/$F$36 -> 4.132011782e-05 | D36: =F06c!$C$19/$F$36 -> 1.239603535e-05 | E36: =F06c!$C$20/$F$36 -> 0.0001239603535 | F36: ='B02'!$E$18 -> 250 | G36: NOAEL | J36: Water: Canid
B37: Large Mammal (70g) | C37: =F06d!$C$18/$F$37 -> 1.075059236e-05 | D37: =F06d!$C$19/$F$37 -> 3.225177707e-06 | E37: =F06d!$C$20/$F$37 -> 3.225177707e-05 | F37: ='B02'!$E$6 -> 738 | G37: NOAEL | J37: Water: Lrg Mam
B38: Small bird (10g) | C38: =F06e!$C$18/$F$38 -> 1.316866216e-05 | D38: =F06e!$C$19/$F$38 -> 3.950598647e-06 | E38: =F06e!$C$20/$F$38 -> 3.950598647e-05 | F38: ='B02'!$E$8 -> 2510 | G38: NOAEL | J38: Water: Sm Brd
B39: Large Bird (4 kg) | C39: =F06f!$C$18/$F$39 -> 1.823315646e-06 | D39: =F06f!$C$19/$F$39 -> 5.469946939e-07 | E39: =F06f!$C$20/$F$39 -> 5.469946939e-06 | F39: ='B02'!$E$8 -> 2510 | G39: NOAEL | J39: Water: Lrg Brd
A40: Contaminated Insects
B41: Small mammal (20g) | C41: No exposure assessment. | J41: Insects: Sm Mam
B42: Larger Mammal (400g) | C42: No exposure assessment. | J42: Insects: Med Mam
B43: Small bird (10g) | C43: No exposure assessment. | J43: Insects: Sm Brd
A44: Consumption of small mammal (after direct spray) by predator
B45: Canid (5 kg) | C45: No exposure assessment. | J45: Canid Eats Sm Mam
B46: Carnivorous bird (640 g) | C46: No exposure assessment. | J46: Bird Eats Sm Mam
A47: Consumption of contaminated Fish
B48: Large Mammalian Carnivore (70 kg) | C48: =F09a!$C$47/$F$48 -> 2.457083435e-06 | D48: =F09a!$C$48/$F$48 -> 7.371250305e-08 | E48: =F09a!$C$49/$F$48 -> 4.177041839e-05 | F48: ='B02'!$E$6 -> 738 | G48: NOAEL | J48: Fish: Lrg Mam
B49: Canid (5 kg) | C49: =F09b!$C$47/$F$49 -> 1.044003431e-05 | D49: =F09b!$C$48/$F$49 -> 3.132010294e-07 | E49: =F09b!$C$49/$F$49 -> 0.0001774805833 | F49: ='B02'!$E$18 -> 250 | G49: NOAEL | J49: Fish: Canid
B50: Fish-eating bird (2.4 kg) | C50: =F09c!$C$47/$F$50 -> 1.207262361e-06 | D50: =F09c!$C$48/$F$50 -> 3.621787083e-08 | E50: =F09c!$C$49/$F$50 -> 2.052346014e-05 | F50: ='B02'!$E$8 -> 2510 | G50: NOAEL | J50: Fish: Brd
A51: Chronic/Longer Term Exposures
A52: Contaminated Fruit (Lowest Residue Rate)
B53: Small mammal (20g) | C53: No exposure assessment. | I53: Grass: Sm Mam
B54: Larger Mammal (400g) | C54: No exposure assessment. | I54: Grass: Med Mam
B55: Large Mammal (70g) | C55: No exposure assessment. | I55: Grass: Lrg Mam
B56: Small bird (10g) | C56: No exposure assessment. | I56: Grass: Sm Brd
B57: Large Bird (4 kg) | C57: No exposure assessment. | I57: Grass: Lrg Brd
A58: Contaminated Vegetation (Short Grass - Highest Residue Rate)
B59: Small mammal (20g) | C59: No exposure assessment. | I59: Veg: Sm Mam
B60: Larger Mammal (400g) | C60: No exposure assessment. | I60: Veg: Med Mam
B61: Large Mammal (70g) | C61: No exposure assessment. | I61: Veg: Lrg Mam
B62: Small bird (10g) | C62: No exposure assessment. | I62: Veg: Sm Brd
B63: Large Bird (4 kg) | C63: No exposure assessment. | I63: Veg: Lrg Brd
A64: Contaminated Water
B65: Small mammal (20g) | C65: =F12a!$C$18/$F$65 -> 1.563060072e-05 | D65: =F12a!$C$19/$F$65 -> 2.681965102e-06 | E65: =F12a!$C$20/$F$65 -> 6.164165708e-05 | F65: ='B02'!$E$7 -> 738 | G65: NOAEL | I65: Water: Sm Mam
B66: Larger Mammal (400g) | C66: =F12b!$C$18/$F$66 -> 1.158437665e-05 | D66: =F12b!$C$19/$F$66 -> 1.987696729e-06 | E66: =F12b!$C$20/$F$66 -> 4.568475556e-05 | F66: ='B02'!$E$7 -> 738 | G66: NOAEL | I66: Water: Med Mam
B67: Canid (5 kg) | C67: =F12c!$C$18/$F$67 -> 2.65642783e-05 | D67: =F12c!$C$19/$F$67 -> 4.558012111e-06 | E67: =F12c!$C$20/$F$67 -> 0.0001047602817 | F67: ='B02'!$E$25 -> 250 | G67: NOAEL | I67: Water: Canid
B68: Large Mammal (70g) | C68: =F12d!$C$18/$F$68 -> 6.911445134e-06 | D68: =F12d!$C$19/$F$68 -> 1.185895219e-06 | E68: =F12d!$C$20/$F$68 -> 2.725633765e-05 | F68: ='B02'!$E$7 -> 738 | G68: NOAEL | I68: Water: Lrg Mam
B69: Small bird (10g) | C69: =F12e!$C$18/$F$69 -> 3.483549713e-05 | D69: =F12e!$C$19/$F$69 -> 5.977223097e-06 | E69: =F12e!$C$20/$F$69 -> 0.0001373790942 | F69: ='B02'!$E$9 -> 610 | G69: NOAEL | I69: Water: Sm Brd
B70: Large Bird (4 kg) | C70: =F12f!$C$18/$F$70 -> 4.823277127e-06 | D70: =F12f!$C$19/$F$70 -> 8.275984504e-07 | E70: =F12f!$C$20/$F$70 -> 1.902132874e-05 | F70: ='B02'!$E$9 -> 610 | G70: NOAEL | I70: Water: Lrg Brd
A71: Consumption of contaminated Fish
B72: Large Mammalian Carnivore (70 kg) | C72: =F13a!$C$47/$F$72 -> 1.579633641e-06 | D72: =F13a!$C$48/$F$72 -> 2.71040274e-08 | E72: =F13a!$C$49/$F$72 -> 3.530064794e-05 | F72: ='B02'!$E$7 -> 738 | G72: NOAEL | I72: Fish: Lrg Mam
B73: Canid (5 kg) | C73: =F13b!$C$47/$F$73 -> 6.711790566e-06 | D73: =F13b!$C$48/$F$73 -> 1.151637637e-07 | E73: =F13b!$C$49/$F$73 -> 0.0001499908267 | F73: ='B02'!$E$25 -> 250 | G73: NOAEL | I73: Fish: Canid
B74: Fish-eating bird (2.4 kg) | C74: =F13c!$C$47/$F$74 -> 3.193611015e-06 | D74: =F13c!$C$48/$F$74 -> 5.479733919e-08 | E74: =F13c!$C$49/$F$74 -> 7.136878776e-05 | F74: ='B02'!$E$9 -> 610 | G74: NOAEL | I74: Fish: Brd

Sheet G03
A1: Worksheet G03: Summary of Hazard Quotients for Aquatic Species
A2: Application Rate: | B2: 1 | C2: lb a.e./acre | F2: AqToxSumV6
A3: Exposures | C3: Concentrations (mg/L)
B4: Scenario | C4: Central | D4: Lower | E4: Upper | F4: Worksheet
B5: Accidental Spill | C5: =B04b!Acute_C -> 2.271 | D5: =B04b!Acute_L -> 0.09084 | E5: =B04b!Acute_U -> 18.168 | F5: B04b
B6: Peak EEC | C6: =B04a!Acute_C -> 0.1225641241 | D6: =B04a!Acute_L -> 0.03676923722 | E6: =B04a!Acute_U -> 0.3676923722 | F6: B04a
B7: Chronic | C7: =B04a!Chronic_C -> 0.07879521339 | D7: =B04a!Chronic_L -> 0.01352001861 | E7: =B04a!Chronic_U -> 0.3107409377 | F7: B04a
A8: Receptor | B8: Type | C8: Hazard Quotients | F8: Toxicity Value | G8: Toxicity Endpoint
C9: Central | D9: Lower | E9: Upper
A10: Accidental Acute Exposures
A11: Fish | B11: Sensitive | C11: =C$5/$F11 -> 0.2183653846 | D11: 0.008734615385 | E11: 1.746923077 | F11: ='B02'!$E$11 -> 10.4 | G11: NOAEC | J11: Fish Sn
B12: Tolerant | C12: No toxicity data. | F12: N/A | J12: Fish Tl
A13: Amphibian | B13: Sensitive | C13: No toxicity data. | F13: N/A | J13: Amph Sn
B14: Tolerant | C14: No toxicity data. | F14: N/A | J14: Amph To
A15: Invertebrate | B15: Sensitive | C15: No toxicity data. | F15: N/A | J15: Invt Sn
B16: Tolerant | C16: 0.0553902439 | D16: 0.002215609756 | E16: 0.4431219512 | F16: ='B02'!$E$14 -> 41 | G16: NOAEC | J16: Invt Tl
A17: Macrophyte | B17: Sensitive | C17: 757 | D17: 30.28 | E17: 6056 | F17: ='B02'!$E$19 -> 0.003 | G17: NOAEC | J17: Plant Sn
B18: Tolerant | C18: 22.71 | D18: 0.9084 | E18: 181.68 | F18: ='B02'!$E$20 -> 0.1 | G18: NOAEC | J18: Plant Tl
A19: Algae | B19: Sensitive | C19: 0.2988157895 | D19: 0.01195263158 | E19: 2.390526316 | F19: ='B02'!$E$16 -> 7.6 | G19: NOAEC | J19: Algae Sn
B20: Tolerant | C20: 0.04461689587 | D20: 0.001784675835 | E20: 0.356935167 | F20: ='B02'!$E$17 -> 50.9 | G20: NOEC | J20: Algae Tl
A21: Non-Accidental Acute Exposures
A22: Fish | B22: Sensitive | C22: =C$6/$F22 -> 0.01178501193 | D22: 0.003535503579 | E22: 0.03535503579 | F22: ='B02'!$E$11 -> 10.4 | G22: NOAEC
B23: Tolerant | C23: No toxicity data. | F23: N/A
A24: Amphibian | B24: Sensitive | C24: No toxicity data. | F24: N/A
B25: Tolerant | C25: No toxicity data. | F25: N/A
A26: Invertebrate | B26: Sensitive | C26: No toxicity data. | F26: N/A
B27: Tolerant | C27: 0.002989368879 | D27: 0.0008968106638 | E27: 0.008968106638 | F27: ='B02'!$E$14 -> 41 | G27: NOAEC
A28: Macrophyte | B28: Sensitive | C28: 40.85470802 | D28: 12.25641241 | E28: 122.5641241 | F28: ='B02'!$E$19 -> 0.003 | G28: NOAEC
B29: Tolerant | C29: 1.225641241 | D29: 0.3676923722 | E29: 3.676923722 | F29: ='B02'!$E$20 -> 0.1 | G29: NOAEC
A30: Algae | B30: Sensitive | C30: 0.01612685843 | D30: 0.004838057529 | E30: 0.04838057529 | F30: ='B02'!$E$16 -> 7.6 | G30: NOAEC
B31: Tolerant | C31: 0.002407939569 | D31: 0.0007223818707 | E31: 0.007223818707 | F31: ='B02'!$E$17 -> 50.9 | G31: NOEC
A32: Chronic/Longer Term Exposures
A33: Fish | B33: Sensitive | C33: =C$7/$F33 -> 0.01969880335 | D33: 0.003380004652 | E33: 0.07768523442 | F33: ='B02'!$E$12 -> 4 | G33: NOAEC*
B34: Tolerant | C34: 0.006566267782 | D34: 0.001126668217 | E34: 0.02589507814 | F34: ='B02'!$E$13 -> 12 | G34: NOEC
A35: Amphibian | B35: Sensitive | C35: No toxicity data. | F35: N/A
B36: Tolerant | C36: No toxicity data. | F36: N/A
A37: Invertebrate | B37: Sensitive | C37: No toxicity data. | F37: N/A
B38: Tolerant | C38: 0.006566267782 | D38: 0.001126668217 | E38: 0.02589507814 | F38: ='B02'!$E$15 -> 12 | G38: NOAEC
A39: Macrophyte | B39: Sensitive | C39: 26.26507113 | D39: 4.506672869 | E39: 103.5803126 | F39: ='B02'!$E$19 -> 0.003 | G39: NOAEC
B40: Tolerant | C40: 0.7879521339 | D40: 0.1352001861 | E40: 3.107409377 | F40: ='B02'!$E$20 -> 0.1 | G40: NOAEC
A41: Algae | B41: Sensitive | C41: 0.01036779124 | D41: 0.001778949817 | E41: 0.04088696548 | F41: ='B02'!$E$16 -> 7.6 | G41: NOAEC
B42: Tolerant | C42: 0.001548039556 | D42: 0.0002656192261 | E42: 0.006104930013 | F42: ='B02'!$E$17 -> 50.9 | G42: NOEC

Sheet G06a
A1: Potential exposure of non-target plants through the use of contaminated irrigation water based on estimates concentrations in ambient water.
A2: Short Title | B2: Irrigation Water | E2: PlntWatIrrgAq
A3: Receptor | B3: Non-target plants
A4: Duration | B4: acute
A5: Parameter/Assumption | B5: Code / Range | C5: Equation/ Value | D5: Units | E5: Reference/Designation
A6: Toxicity Values (Post-emergence in lb/ac)
A7: Sensitive species | B7: NOAEL | C7: ='B02'!$E$23 -> 6.4e-05 | D7: lb/acre | E7: Table 21
A8: Tolerant species | B8: NOAEL | C8: ='B02'!$E$24 -> 0.4 | D8: lb/acre | E8: Table 21
A9: Concentration in irrigation water | B9: ConcWat
B10: Central | C10: =B04a!Acute_C -> 0.1225641241 | D10: mg/L | E10: Worksheet B04a
B11: Lower | C11: =B04a!Acute_L -> 0.03676923722 | E11: Worksheet B04a
B12: Upper | C12: =B04a!Acute_U -> 0.3676923722 | E12: Worksheet B04a
A13: Amount of irrigation water applied | B13: IrrigAmnt
B14: Central | C14: 1 | D14: inches | E14: Scenario parameter
B15: Lower | C15: 0.25 | E15: Scenario parameter
B16: Upper | C16: 2 | E16: Scenario parameter
A17: Liters of water applied per acre per inch of irrigation water | B17: LpApI | C17: 10279 | D17: Liters/inch
A18: Liters of water applied per acre | B18: LPA | C18: IrrigAmnt × LpApl
B19: Central | C19: =C14*C$17 -> 10279 | D19: liters | E19: Eq
B20: Lower | C20: =C15*C$17 -> 2569.75 | E20: Eq
B21: Upper | C21: =C16*C$17 -> 20558 | E21: Eq
A22: Application Rate (mg/acre) | B22: ApRmg/a | C22: ConcWat × LPA
B23: Central | C23: =C10*C19 -> 1259.836631 | D23: mg/acre | E23: Eq
B24: Lower | C24: =C11*C20 -> 94.48774734 | E24: Eq
B25: Upper | C25: =C12*C21 -> 7559.019787 | E25: Eq
A26: Conversion factor for mg to lb | B26: Conv | C26: =A02d!$C$9 -> 2.204e-06 | E26: Budavari 1989
A27: Functional application rate (lb/acre) | B27: FncApR | C27: ApRmg/a × Conv
B28: Central | C28: =C23*C$26 -> 0.002776679935 | D28: lb/acre | E28: Eq
B29: Lower | C29: =C24*C$26 -> 0.0002082509951 | E29: Eq
B30: Upper | C30: =C25*C$26 -> 0.01666007961 | E30: Eq
A31: Hazard Quotients (Sensitive Species) | B31: HISens | C31: = FncApRt / ToxValSens
B32: Central | C32: =IF(ISNUMBER($C$7), C28/$C$7, "N/A") -> 43.38562399
B33: Lower | C33: =IF(ISNUMBER($C$7), C29/$C$7, "N/A") -> 3.253921799
B34: Upper | C34: 260.3137439
A35: Hazard Quotients (Tolerant Species) | B35: HITol | C35: = FncApRt / ToxValTol
B36: Central | C36: =IF( ISNUMBER($C$8), C28/$C$8, "N/A") -> 0.006941699838
B37: Lower | C37: =IF( ISNUMBER($C$8), C29/$C$8, "N/A") -> 0.0005206274878
B38: Upper | C38: 0.04165019903

Sheet G09
A1: Exposures and HQs for a Terrestrial Insect (Honeybee) Associated with Direct Spray or Drift Following Terrestrial Applications
A2: Short Title | B2: Direct Spray or Drift | E2: BeeSprayHQs3Apps
A3: Receptor | B3: Honeybee
A4: Duration | B4: Acute
A5: Parameter/Assumption | B5: Code / Range | C5: Equation/ Value | D5: Units | E5: Reference/Designation
A6: Toxicity Value (Spray) | B6: ToxVal | C6: ='B02'!$E$10 -> 860 | D6: mg/kg bw | E6: NOAEL
A7: Application rate | B7: ApRtlb/ac | C7: ='A01'!ApRt_C -> 1 | D7: lb/acre | E7: Worksheet A01
A8: Conversion Factor for lbs/acre to mg/cm2 | B8: CnvF | C8: 0.01121 | D8: mg/cm2/lb/acre
A9: Application rate, mg/cm2 | B9: ApRmgcm | C9: ApRlb/a × CnvF
C10: =C7*C8 -> 0.01121 | D10: lb/acre | E10: Eq
A11: Body weight | B11: BW | C11: =A02b!$C$36 -> 0.000116 | D11: kg | E11: Winston 1987
B12: SA | C12: =A02b!$C$37 -> 1.42 | D12: cm2 | E12: Humphery and Dykes 2008
A13: Proportion of body surface sprayed | B13: PrpSA | C13: 0.5 | D13: unitless | E13: Scenario parameter
A14: Amount Deposited on Skin (Direct Spray) | B14: Amnt | C14: ApRmgcm× SA × PrpSA
C15: =C$10*C$12*C$13 -> 0.0079591 | D15: mg | E15: Eq
A16: Foliar Interception | B16: FolInt | C16: Lower | D16: Central | E16: Upper
C17: 0 | D17: 0.5 | E17: 0.9
A19: Proportion of Drift at distances downwind in feet [0 feet = direct spray] | B19: Prop | C19: Aerial | D19: High Boom Ground Broadcast | E19: Low Boom Ground Broadcast | F19: Backpack
A20: 0 | B20: feet | C20: 1 | D20: 1 | E20: 1 | F20: 1
A21: 25 | B21: feet | C21: 0.223 | D21: 0.104 | E21: 0.035 | F21: 0.00832
A22: 50 | B22: feet | C22: 0.171 | D22: 0.05 | E22: 0.0177 | F22: 0.00433
A23: 100 | B23: feet | C23: 0.0979 | D23: 0.0248 | E23: 0.00948 | F23: 0.00241
A24: 300 | B24: feet | C24: 0.0312 | D24: 0.00753 | E24: 0.0035 | F24: 0.000941
A25: 500 | B25: feet | C25: 0.0192 | D25: 0.00391 | E25: 0.00209 | F25: 0.000579
A26: 900 | B26: feet | C26: 0.0124 | D26: 0.00166 | E26: 0.00109 | F26: 0.000312
A27: Doses (mg/kg bw) = Prop x FolInt x Amnt ÷ BW) | E27: HQ = Absorbed Doses/ToxVal
A28: Aerial | B28: Foliar Interception | E28: Foliar Interception
A29: Distance Downwind | B29: None | C29: 0.5 | D29: 0.9 | E29: None | F29: 0.5 | G29: 0.9
A30: =A20 -> 0 | B30: =$C20*(1-C$17)*$C$15/$C$11 -> 68.61293103 | C30: 34.30646552 | D30: 6.861293103 | E30: =B30/$C$6 -> 0.07978247795 | F30: 0.03989123897 | G30: 0.007978247795
A31: 25 | B31: 15.30068362 | C31: 7.65034181 | D31: 1.530068362 | E31: 0.01779149258 | F31: 0.008895746291 | G31: 0.001779149258
A32: 50 | B32: 11.73281121 | C32: 5.866405603 | D32: 1.173281121 | E32: 0.01364280373 | F32: 0.006821401864 | G32: 0.001364280373
A33: 100 | B33: 6.717205948 | C33: 3.358602974 | D33: 0.6717205948 | E33: 0.007810704591 | F33: 0.003905352296 | G33: 0.0007810704591
A34: 300 | B34: 2.140723448 | C34: 1.070361724 | D34: 0.2140723448 | E34: 0.002489213312 | F34: 0.001244606656 | G34: 0.0002489213312
A35: 500 | B35: 1.317368276 | C35: 0.6586841379 | D35: 0.1317368276 | E35: 0.001531823577 | F35: 0.0007659117883 | G35: 0.0001531823577
A36: 900 | B36: 0.8508003448 | C36: 0.4254001724 | D36: 0.08508003448 | E36: 0.0009893027265 | F36: 0.0004946513633 | G36: 9.893027265e-05
A37: Highboom Ground | B37: Foliar Interception | E37: Foliar Interception
A38: Distance Downwind | B38: None | C38: 0.5 | D38: 0.9 | E38: None | F38: 0.5 | G38: 0.9
A39: =A29 -> Distance Downwind | B39: =$D20*(1-C$17)*$C$15/$C$11 -> 68.61293103 | C39: =$D20*(1-D$17)*$C$15/$C$11 -> 34.30646552 | D39: =$D20*(1-E$17)*$C$15/$C$11 -> 6.861293103 | E39: =B39/$C$6 -> 0.07978247795 | F39: 0.03989123897 | G39: 0.007978247795
A40: 0 | B40: =$D21*(1-C$17)*$C$15/$C$11 -> 7.135744828 | C40: 3.567872414 | D40: 0.7135744828 | E40: 0.008297377706 | F40: 0.004148688853 | G40: 0.0008297377706
A41: 25 | B41: 3.430646552 | C41: 1.715323276 | D41: 0.3430646552 | E41: 0.003989123897 | F41: 0.001994561949 | G41: 0.0003989123897
A42: 50 | B42: 1.70160069 | C42: 0.8508003448 | D42: 0.170160069 | E42: 0.001978605453 | F42: 0.0009893027265 | G42: 0.0001978605453
A43: 100 | B43: 0.5166553707 | C43: 0.2583276853 | D43: 0.05166553707 | E43: 0.0006007620589 | F43: 0.0003003810295 | G43: 6.007620589e-05
A44: 300 | B44: 0.2682765603 | C44: 0.1341382802 | D44: 0.02682765603 | E44: 0.0003119494888 | F44: 0.0001559747444 | G44: 3.119494888e-05
A45: 500 | B45: 0.1138974655 | C45: 0.05694873276 | D45: 0.01138974655 | E45: 0.0001324389134 | F45: 6.62194567e-05 | G45: 1.324389134e-05
A46: Low Ground | B46: Foliar Interception | E46: Foliar Interception
A47: Distance Downwind | B47: None | C47: 0.5 | D47: 0.9 | E47: None | F47: 0.5 | G47: 0.9
A48: =A38 -> Distance Downwind | B48: =$E20*(1-C$17)*$C$15/$C$11 -> 68.61293103 | C48: =$E20*(1-D$17)*$C$15/$C$11 -> 34.30646552 | D48: =$E20*(1-E$17)*$C$15/$C$11 -> 6.861293103 | E48: =B48/$C$6 -> 0.07978247795 | F48: 0.03989123897 | G48: 0.007978247795
A49: Distance Downwind | B49: =$E21*(1-C$17)*$C$15/$C$11 -> 2.401452586 | C49: 1.200726293 | D49: 0.2401452586 | E49: 0.002792386728 | F49: 0.001396193364 | G49: 0.0002792386728
A50: 0 | B50: 1.214448879 | C50: 0.6072244397 | D50: 0.1214448879 | E50: 0.00141214986 | F50: 0.0007060749298 | G50: 0.000141214986
A51: 25 | B51: 0.6504505862 | C51: 0.3252252931 | D51: 0.06504505862 | E51: 0.0007563378909 | F51: 0.0003781689455 | G51: 7.563378909e-05
A52: 50 | B52: 0.2401452586 | C52: 0.1200726293 | D52: 0.02401452586 | E52: 0.0002792386728 | F52: 0.0001396193364 | G52: 2.792386728e-05
A53: 100 | B53: 0.1434010259 | C53: 0.07170051293 | D53: 0.01434010259 | E53: 0.0001667453789 | F53: 8.337268945e-05 | G53: 1.667453789e-05
A54: 300 | B54: 0.07478809483 | C54: 0.03739404741 | D54: 0.007478809483 | E54: 8.696290096e-05 | F54: 4.348145048e-05 | G54: 8.696290096e-06
A55: Backpack | B55: Foliar Interception | E55: Foliar Interception
A56: Distance Downwind | B56: None | C56: 0.5 | D56: 0.9 | E56: None | F56: 0.5 | G56: 0.9
A57: =A47 -> Distance Downwind | B57: =$F20*(1-C$17)*$C$15/$C$11 -> 68.61293103 | C57: =$F20*(1-D$17)*$C$15/$C$11 -> 34.30646552 | D57: =$F20*(1-E$17)*$C$15/$C$11 -> 6.861293103 | E57: =B57/$C$6 -> 0.07978247795 | F57: 0.03989123897 | G57: 0.007978247795
A58: Distance Downwind | B58: =$F21*(1-C$17)*$C$15/$C$11 -> 0.5708595862 | C58: 0.2854297931 | D58: 0.05708595862 | E58: 0.0006637902165 | F58: 0.0003318951083 | G58: 6.637902165e-05
A59: Distance Downwind | B59: 0.2970939914 | C59: 0.1485469957 | D59: 0.02970939914 | E59: 0.0003454581295 | F59: 0.0001727290648 | G59: 3.454581295e-05
A60: 0 | B60: 0.1653571638 | C60: 0.0826785819 | D60: 0.01653571638 | E60: 0.0001922757719 | F60: 9.613788593e-05 | G60: 1.922757719e-05
A61: 25 | B61: 0.0645647681 | C61: 0.03228238405 | D61: 0.00645647681 | E61: 7.507531175e-05 | F61: 3.753765587e-05 | G61: 7.507531175e-06
A62: 50 | B62: 0.03972688707 | C62: 0.01986344353 | D62: 0.003972688707 | E62: 4.619405473e-05 | F62: 2.309702737e-05 | G62: 4.619405473e-06
A63: 100 | B63: 0.02140723448 | C63: 0.01070361724 | D63: 0.002140723448 | E63: 2.489213312e-05 | F63: 1.244606656e-05 | G63: 2.489213312e-06

Sheet References
A1: References cited in workbook
A2: Citation | B2: Full Reference
A3: Boxenbaum and D’Souza 1990 | B3: Boxenbaum J; D'Souza R. 1990. Interspecies pharmacokinetic scaling, biological design and neoteny. Adv. Drug Res. 19: 139-195.
A4: Budavari 1989 | B4: Budavari S. (Ed). 1989. The Merck Index: An Encyclopedia of Chemicals, Drugs,and Biologicals, 11th ed. Merck & Co., Inc., Rahway, New Jersey.
A5: Burnmaster 1998 | B5: Burnmaster DE. 1998. Lognormal distribution for total water intake and tap water intake by pregnant and lactating women in the United States. Risk Analysis. 18(5): 215-219
A6: Default | B6: These are plausible default values that are typically used in SERA risk assessments.
A7: Dunning 1993 | B7: Dunning JB. 1993. CRC Handbook of Avian Body Masses. CRC Press, Boca Raton FL, 371 pp.
A8: Durkin et al. 1995 | B8: Durkin PR; Rubin L; Withey J; Meylan W. 1995. Methods of assessing dermal absorption with emphasis on uptake from contaminated vegetation. Toxicol. Indust. Health. 11(1): 63-79.
A9: Fletcher et al. 1994 | B9: Fletcher JS; Nellessen JE; Pfleeger TG. 1994. Literature review and evaluation of the EPA food-chain (Kenega) nomogram, an instrument for estimating pesticide residues on plants. Environ. Toxicol. Chem. 13(9):1383-1391.
A10: Harris and Solomon 1992 | B10: Harris SA; Solomon KR. 1992. Human exposure to 2,4-D following controlled activities on recently sprayed turf. J. Environ. Sci. Health. B27(1): 9-22.
A11: Hoerger and Kenaga 1972 | B11: Hoerger F; Kenaga EE. 1972. Pesticide residues on plants: Correlation of representative data as a basis for estimation of their magnitude in the environment. In: Environmental Quality and Safety, Volume I: Global Aspects of Toxicology and Technology as Applied to the Environment. F. Coulston and F. Kerte (eds.). Academic Press, New York, NY. pp. 9-28.
A12: Humphery and Dykes 2008 | B12: Humphrey JAC; Dykes ES. 2008. Thermal energy conduction in a honey bee comb due to cell-heating bees. J Theoretical Biology. 250 (1): 194-208.
A13: ICRP 1975 | B13: ICRP (International Commission on Radiologic Protection). 1975. Report of the Task Group on Reference Man. Recommendations of the International Commission on Radiological Protection (ICRP) Publ. No. 23. Pergamon Press, New York, NY.
A14: Knisel et al. 1992 | B14: Knisel WG; Davis FM; Leonard RA. 1992. GLEAMS Version 2.0 User Manual. U.S. Department of Agriculture, Agricultural Research Service, Southeast Watershed Research Laboratory, Tifton, GA. 202pp
A15: Manugistics 1995 | B15: Manugistics. 1995. Statgraphics Plus for Windows. Version 3. Available from Manugistics, Inc. Rockville, Maryland.
A16: Mason and Johnson 1987 | B16: Mason RW; Johnson BL. 1987. Ergonomic factors in chemical hazard control. In: Handbook of Human Factors. Salveny, G; ed. John Wiley and Sons, New York, NY. pp. 772-741.
A17: Mendenhall and Scheaffer 1973 | B17: Mendenhall W; Scheaffer RF. 1973. Mathematical Statistics with Applications. Duxbury Press, North Scituate, Massachusetts. 461 pp. plus appendices.
A18: N/A | B18: Not applicable
A19: Nagy 2005 | B19: Nagy KA. 2005. Field metabolic rate and body size. Journal of Experimental Biology. 208: 1621-1625.
A20: Ratnapalan et al. 2003 | B20: Ratnapalan S; Potylitsina Y; Tan LH; Roifman M; Koren G. 2003. Measuring a toddler's mouthful: toxicologic considerations. J Pediatr. 142(6):729-30.
A21: Reichle et al. 1973 | B21: Reichle DE, Goldstein RA; Van Hook RI; Dodson DJ. 1973. Analysis of Insect Consumption in a Forest Canopy. Ecology. 54: 1076-1084.
A22: Reid 2006 | B22: Reid FA. 2006. A Field Guide to Mammals of North America North of Mexico. Fourth Edition. The Peterson Field Guide Series. Houghton Mifflin Company, Boston MA. 570 pp.
A23: Ruffle et al. 1994 | B23: Ruffle B; Burmaster DE; Anderson PD; Gordon HD. 1994. Lognormal distributions for fish consumption by the general U.S. population. Risk Analy. 14(4): 395-404.
A24: SERA 1997 | B24: SERA (Syracuse Environmental Research Associates, Inc.). 1997. Reevaluation of Methods for Assessing Worker Exposure to Pesticides, SERA TR 96-21-08-01, draft dated December 31, 1997. Prepared under USDA/FS Contract 53-3187-5-12. Syracuse Environmental Research Associates, Inc., Fayetteville, NY.
A25: SERA 2005 | B25: SERA (Syracuse Environmental Research Associates, Inc.). 2005. Hexazinone - Human Health and Ecological Risk Assessment– Final Report, SERA SERA TR 05-43-20-03d, Final Report dated October 25, 2005. Available at: http://www.fs.fed.us/foresthealth/pesticide/risk.shtml.
A26: SERA 2007 | B26: SERA (Syracuse Environmental Research Associates, Inc.). 2007. Preparation of Environmental Documentation and Risk Assessments, SERA MD 2007-01a, draft dated July 2001. Syracuse Environmental Research Associates, Inc., Fayetteville, NY. Available at www.sera-inc.com.
A27: SERA 2010 | B27: SERA (Syracuse Environmental Research Associates, Inc.). 2010. Strychnine Human Health and Ecological Risk Assessment, SERA TR-052-17-02a, draft dated February 22, 2010. Syracuse Environmental Research Associates, Inc., Manlius, NY. Available at www.sera-inc.com.
A28: Sibley 2000 | B28: Sibley DA. 2000. The Sibley Guide to Birds. National Audubon Society, Chanticleer Press Edition. Alfred A. Knopf Inc., New York. 545 pp.
A29: Teske et al. 2001 | B29: Teske ME; Bird SL; Esterly DM; Ray SL; Perry SG. 2001. A User’s Guide for AgDRIFT 2.0: A Tiered Approach for the Assesment of Spray Drift. Continuum Dynamics, Inc. Public Use Version. C.D.I. Report No. 01-01. Available, with executable model at: http://www.agdrift.com
A30: U.S. EPA/OPP 1999 | B30: U.S. EPA/OPP ((U.S. Environmental Protection Agency/Office of Pesticide Programs). 1999. ECOFRAM: Terrestrial ECOFRAM Terrestrial Draft Report. Ecological Committee on FIFRA Risk Assessment Methods(ECOFRAM). Report dated May 10, 1999. Available at: http://www.epa.gov/oppefed1/ ecorisk/terrreport.pdf.
A31: U.S. EPA/ORD 1985 | B31: U.S. EPA/ORD (U.S. Environmental Protection Agency/Office of Research and Development). 1985. Development of Statistical Distributions or Ranges of Standard Factors Used in Exposure Assessments, Report prepared by GCA Corp., Chapel Hill. Available from NTIS: PB85-242667.
A32: U.S. EPA/ORD 1992 | B32: U.S. EPA/ORD (U.S. Environmental Protection Agency/Office of Research and Development). 1992. Dermal Exposure Assessment: Principles and Applications. EPA/600/8-91/011B. Interim Report. Exposure Assessment Group, Office of Health and Environmental Assessment, Washington, DC.
A33: U.S. EPA/ORD 1993 | B33: U.S. EPA/ORD (U.S. Environmental Protection Agency/Office of Research and Development). 1993. Wildlife Exposure Factors Handbook. Volumes 1 and 2. EPA/600/R-93/187a,b. Pagination not continuous. Available NTIS: PB94-174778 and PB94-174779.
A34: U.S. EPA/ORD 1996 | B34: U.S. EPA (U.S. Environmental Protection Agency/Office of Research and Development). 1996. Exposure Factors Handbook. National Center for Environmental Assessment, U.S. EPA, Washington, DC. EPA/600/P-95/002Ba-c. Avail. NTIS: PB97-117683, 97-117691, PB97-117709.
A35: U.S. EPA/ORD 1997 | B35: U.S. EPA (U.S. Environmental Protection Agency/Office of Research and Development). 1996. Exposure Factors Handbook. National Center for Environmental Assessment, U.S. EPA, Washington, DC. EPA/600/P-95/002Fa. Available at: http://rais.ornl.gov/homepage/EFH_Final_1997_EPA600P95002Fa.pdf
A36: USDA 1989a | B36: USDA (U.S. Department of Agriculture/Forest Service). 1989a. Final Environmental Impact Statement: Vegetation Management in the Coastal Plain/Piedmont, Management Bulletin R8-MB-23, dated January, 1989. 1213 pp.
A37: USDA 1989b | B37: USDA (U.S. Department of Agriculture/Forest Service). 1989b. Draft Environmental Impact Statement: Vegetation Management in the Ozark/Ouachita Mountains, Management Bulletin R8-MB-23, dated June, 1989. 499 pp.
A38: USDA 1989c | B38: USDA (U.S. Department of Agriculture/Forest Service). 1989c. Final Environmental Impact Statement: Vegetation Management in the Appalachian Mountains, Management Bulletin R8-MB-38, dated July, 1989. 1104 pp.
A39: Waldbauer 1968 | B39: Waldbauer GP. 1968. The consumption and utilization of food by insects. Advan Insect Physiol. 5: 229-288
A40: Winston 1987 | B40: Winston ML. 1987. The Biology of the Honey Bee. Harvard University Press, Cambridge, MA. ISBN 0-674-07409-2 280 pp.
A41: Wolfram Research 1997 | B41: Wolfram Research. 1997. Mathematica Version 3.0.1. Available from Wolfram Research, Inc. Champaign, IL.

Sheet PlntRunoV5 (hidden)
A1: Summary of Exposure Assessment and Risk Characterization for Terrestrial Plants from Runoff
A2: Short Title | B2: Runoff to terrestrial plants
A3: Receptor | B3: Terrestrial vegetation
A4: Duration | B4: Acute
A5: User-Specified Gleams-Driver File | B5: None
A6: Parameter/Assumption | B6: Code / Range | C6: Value | D6: Units | E6: Reference
A7: Worksheet Application Rate | B7: ApRtWB | C7: 0.2 | D7: lb/acre | E7: Prog!ApRt
A8: Offsite Application Rates Inputs
A9: Run ID: | B9: See Risk Assessment
A10: Application Rate Used in Run: | B10: ApRtRun | C10: 1 | D10: lb/acre
A11: Functional Off-site Application Rate | B11: ApRtOffsite
B12: Central | C12: 0.027 | D12: lb/acre
B13: Lower | C13: 0.0095
B14: Upper | C14: 0.057
A15: Calculated Values
A16: Normalized Off-site Functional Application Rate | B16: NormApRtOffsite | C16: ApRtOffsite / ApRtRun
B17: Central | C17: =C12/C$10 -> 0.027 | D17: Unitless | E17: Eq
B18: Lower | C18: =C13/C$10 -> 0.0095 | E18: Eq
B19: Upper | C19: =C14/C$10 -> 0.057 | E19: Eq
A20: Off-site Application Rate at Workbook Application Rate | B20: ApRtWB | C20: ApRtWB x NormApRtOffsite
B21: Central | C21: =C17*C$7 -> 0.0054 | D21: lb/acre | E21: Eq
B22: Lower | C22: =C18*C$7 -> 0.0019 | E22: Eq
B23: Upper | C23: =C19*C$7 -> 0.0114 | E23: Eq
A24: Toxicity Values (seedling emergence) in units of lbs/acre
C25: Sensitive | D25: Tolerant
B26: Endpoint
C27: 0.0037 | D27: 0.37
A28: Hazard Quotients
B29: Central | C29: =IF(ISNUMBER(C$27), $C21/C$27, "N/A") -> 1.459459459 | D29: 0.01459459459
B30: Lower | C30: 0.5135135135 | D30: 0.005135135135
B31: Upper | C31: 3.081081081 | D31: 0.03081081081
